﻿_id,date,cmname,unit,category,price,currency,country,admname,adm1id,mktname,mktid,cmid,ptid,umid,catid,sn,default
1,2003-01-15T00:00:00,"Rice (mixed, low quality) - Wholesale",KG,cereals and tubers,845,KHR,Cambodia,Banteay Meanchey,791,Banteay Meanchey,640,165,14,5,1,640_165_14_5,""
2,2003-02-15T00:00:00,"Rice (mixed, low quality) - Wholesale",KG,cereals and tubers,950,KHR,Cambodia,Banteay Meanchey,791,Banteay Meanchey,640,165,14,5,1,640_165_14_5,""
3,2003-03-15T00:00:00,"Rice (mixed, low quality) - Wholesale",KG,cereals and tubers,880,KHR,Cambodia,Banteay Meanchey,791,Banteay Meanchey,640,165,14,5,1,640_165_14_5,""
4,2003-04-15T00:00:00,"Rice (mixed, low quality) - Wholesale",KG,cereals and tubers,870,KHR,Cambodia,Banteay Meanchey,791,Banteay Meanchey,640,165,14,5,1,640_165_14_5,""
5,2003-05-15T00:00:00,"Rice (mixed, low quality) - Wholesale",KG,cereals and tubers,860,KHR,Cambodia,Banteay Meanchey,791,Banteay Meanchey,640,165,14,5,1,640_165_14_5,""
6,2003-06-15T00:00:00,"Rice (mixed, low quality) - Wholesale",KG,cereals and tubers,700,KHR,Cambodia,Banteay Meanchey,791,Banteay Meanchey,640,165,14,5,1,640_165_14_5,""
7,2003-07-15T00:00:00,"Rice (mixed, low quality) - Wholesale",KG,cereals and tubers,705,KHR,Cambodia,Banteay Meanchey,791,Banteay Meanchey,640,165,14,5,1,640_165_14_5,""
8,2003-08-15T00:00:00,"Rice (mixed, low quality) - Wholesale",KG,cereals and tubers,710,KHR,Cambodia,Banteay Meanchey,791,Banteay Meanchey,640,165,14,5,1,640_165_14_5,""
9,2003-09-15T00:00:00,"Rice (mixed, low quality) - Wholesale",KG,cereals and tubers,810,KHR,Cambodia,Banteay Meanchey,791,Banteay Meanchey,640,165,14,5,1,640_165_14_5,""
10,2003-10-15T00:00:00,"Rice (mixed, low quality) - Wholesale",KG,cereals and tubers,800,KHR,Cambodia,Banteay Meanchey,791,Banteay Meanchey,640,165,14,5,1,640_165_14_5,""
11,2003-11-15T00:00:00,"Rice (mixed, low quality) - Wholesale",KG,cereals and tubers,780,KHR,Cambodia,Banteay Meanchey,791,Banteay Meanchey,640,165,14,5,1,640_165_14_5,""
12,2003-12-15T00:00:00,"Rice (mixed, low quality) - Wholesale",KG,cereals and tubers,690,KHR,Cambodia,Banteay Meanchey,791,Banteay Meanchey,640,165,14,5,1,640_165_14_5,""
13,2004-02-15T00:00:00,"Rice (mixed, low quality) - Wholesale",KG,cereals and tubers,665,KHR,Cambodia,Banteay Meanchey,791,Banteay Meanchey,640,165,14,5,1,640_165_14_5,""
14,2004-03-15T00:00:00,"Rice (mixed, low quality) - Wholesale",KG,cereals and tubers,580,KHR,Cambodia,Banteay Meanchey,791,Banteay Meanchey,640,165,14,5,1,640_165_14_5,""
15,2004-04-15T00:00:00,"Rice (mixed, low quality) - Wholesale",KG,cereals and tubers,700,KHR,Cambodia,Banteay Meanchey,791,Banteay Meanchey,640,165,14,5,1,640_165_14_5,""
16,2004-05-15T00:00:00,"Rice (mixed, low quality) - Wholesale",KG,cereals and tubers,780,KHR,Cambodia,Banteay Meanchey,791,Banteay Meanchey,640,165,14,5,1,640_165_14_5,""
17,2004-06-15T00:00:00,"Rice (mixed, low quality) - Wholesale",KG,cereals and tubers,770,KHR,Cambodia,Banteay Meanchey,791,Banteay Meanchey,640,165,14,5,1,640_165_14_5,""
18,2004-07-15T00:00:00,"Rice (mixed, low quality) - Wholesale",KG,cereals and tubers,800,KHR,Cambodia,Banteay Meanchey,791,Banteay Meanchey,640,165,14,5,1,640_165_14_5,""
19,2004-08-15T00:00:00,"Rice (mixed, low quality) - Wholesale",KG,cereals and tubers,820,KHR,Cambodia,Banteay Meanchey,791,Banteay Meanchey,640,165,14,5,1,640_165_14_5,""
20,2004-09-15T00:00:00,"Rice (mixed, low quality) - Wholesale",KG,cereals and tubers,894.29,KHR,Cambodia,Banteay Meanchey,791,Banteay Meanchey,640,165,14,5,1,640_165_14_5,""
21,2004-10-15T00:00:00,"Rice (mixed, low quality) - Wholesale",KG,cereals and tubers,940,KHR,Cambodia,Banteay Meanchey,791,Banteay Meanchey,640,165,14,5,1,640_165_14_5,""
22,2004-11-15T00:00:00,"Rice (mixed, low quality) - Wholesale",KG,cereals and tubers,950,KHR,Cambodia,Banteay Meanchey,791,Banteay Meanchey,640,165,14,5,1,640_165_14_5,""
23,2004-12-15T00:00:00,"Rice (mixed, low quality) - Wholesale",KG,cereals and tubers,960,KHR,Cambodia,Banteay Meanchey,791,Banteay Meanchey,640,165,14,5,1,640_165_14_5,""
24,2005-01-15T00:00:00,"Rice (mixed, low quality) - Wholesale",KG,cereals and tubers,960,KHR,Cambodia,Banteay Meanchey,791,Banteay Meanchey,640,165,14,5,1,640_165_14_5,""
25,2005-02-15T00:00:00,"Rice (mixed, low quality) - Wholesale",KG,cereals and tubers,830,KHR,Cambodia,Banteay Meanchey,791,Banteay Meanchey,640,165,14,5,1,640_165_14_5,""
26,2005-03-15T00:00:00,"Rice (mixed, low quality) - Wholesale",KG,cereals and tubers,895,KHR,Cambodia,Banteay Meanchey,791,Banteay Meanchey,640,165,14,5,1,640_165_14_5,""
27,2005-04-15T00:00:00,"Rice (mixed, low quality) - Wholesale",KG,cereals and tubers,880,KHR,Cambodia,Banteay Meanchey,791,Banteay Meanchey,640,165,14,5,1,640_165_14_5,""
28,2005-05-15T00:00:00,"Rice (mixed, low quality) - Wholesale",KG,cereals and tubers,885,KHR,Cambodia,Banteay Meanchey,791,Banteay Meanchey,640,165,14,5,1,640_165_14_5,""
29,2005-06-15T00:00:00,"Rice (mixed, low quality) - Wholesale",KG,cereals and tubers,883.33,KHR,Cambodia,Banteay Meanchey,791,Banteay Meanchey,640,165,14,5,1,640_165_14_5,""
30,2005-07-15T00:00:00,"Rice (mixed, low quality) - Wholesale",KG,cereals and tubers,900,KHR,Cambodia,Banteay Meanchey,791,Banteay Meanchey,640,165,14,5,1,640_165_14_5,""
31,2005-08-15T00:00:00,"Rice (mixed, low quality) - Wholesale",KG,cereals and tubers,937.5,KHR,Cambodia,Banteay Meanchey,791,Banteay Meanchey,640,165,14,5,1,640_165_14_5,""
32,2005-09-15T00:00:00,"Rice (mixed, low quality) - Wholesale",KG,cereals and tubers,992.5,KHR,Cambodia,Banteay Meanchey,791,Banteay Meanchey,640,165,14,5,1,640_165_14_5,""
33,2005-10-15T00:00:00,"Rice (mixed, low quality) - Wholesale",KG,cereals and tubers,1000,KHR,Cambodia,Banteay Meanchey,791,Banteay Meanchey,640,165,14,5,1,640_165_14_5,""
34,2005-11-15T00:00:00,"Rice (mixed, low quality) - Wholesale",KG,cereals and tubers,1000,KHR,Cambodia,Banteay Meanchey,791,Banteay Meanchey,640,165,14,5,1,640_165_14_5,""
35,2005-12-15T00:00:00,"Rice (mixed, low quality) - Wholesale",KG,cereals and tubers,965.71,KHR,Cambodia,Banteay Meanchey,791,Banteay Meanchey,640,165,14,5,1,640_165_14_5,""
36,2006-01-15T00:00:00,"Rice (mixed, low quality) - Wholesale",KG,cereals and tubers,960,KHR,Cambodia,Banteay Meanchey,791,Banteay Meanchey,640,165,14,5,1,640_165_14_5,""
37,2006-02-15T00:00:00,"Rice (mixed, low quality) - Wholesale",KG,cereals and tubers,858.57,KHR,Cambodia,Banteay Meanchey,791,Banteay Meanchey,640,165,14,5,1,640_165_14_5,""
38,2006-03-15T00:00:00,"Rice (mixed, low quality) - Wholesale",KG,cereals and tubers,823.33,KHR,Cambodia,Banteay Meanchey,791,Banteay Meanchey,640,165,14,5,1,640_165_14_5,""
39,2006-04-15T00:00:00,"Rice (mixed, low quality) - Wholesale",KG,cereals and tubers,800,KHR,Cambodia,Banteay Meanchey,791,Banteay Meanchey,640,165,14,5,1,640_165_14_5,""
40,2006-05-15T00:00:00,"Rice (mixed, low quality) - Wholesale",KG,cereals and tubers,812.5,KHR,Cambodia,Banteay Meanchey,791,Banteay Meanchey,640,165,14,5,1,640_165_14_5,""
41,2006-06-15T00:00:00,"Rice (mixed, low quality) - Wholesale",KG,cereals and tubers,860,KHR,Cambodia,Banteay Meanchey,791,Banteay Meanchey,640,165,14,5,1,640_165_14_5,""
42,2006-12-15T00:00:00,"Rice (mixed, low quality) - Wholesale",KG,cereals and tubers,830,KHR,Cambodia,Banteay Meanchey,791,Banteay Meanchey,640,165,14,5,1,640_165_14_5,""
43,2007-01-15T00:00:00,"Rice (mixed, low quality) - Wholesale",KG,cereals and tubers,870,KHR,Cambodia,Banteay Meanchey,791,Banteay Meanchey,640,165,14,5,1,640_165_14_5,""
44,2007-02-15T00:00:00,"Rice (mixed, low quality) - Wholesale",KG,cereals and tubers,880,KHR,Cambodia,Banteay Meanchey,791,Banteay Meanchey,640,165,14,5,1,640_165_14_5,""
45,2007-03-15T00:00:00,"Rice (mixed, low quality) - Wholesale",KG,cereals and tubers,917.5,KHR,Cambodia,Banteay Meanchey,791,Banteay Meanchey,640,165,14,5,1,640_165_14_5,""
46,2007-04-15T00:00:00,"Rice (mixed, low quality) - Wholesale",KG,cereals and tubers,900,KHR,Cambodia,Banteay Meanchey,791,Banteay Meanchey,640,165,14,5,1,640_165_14_5,""
47,2007-05-15T00:00:00,"Rice (mixed, low quality) - Wholesale",KG,cereals and tubers,985,KHR,Cambodia,Banteay Meanchey,791,Banteay Meanchey,640,165,14,5,1,640_165_14_5,""
48,2007-06-15T00:00:00,"Rice (mixed, low quality) - Wholesale",KG,cereals and tubers,1070,KHR,Cambodia,Banteay Meanchey,791,Banteay Meanchey,640,165,14,5,1,640_165_14_5,""
49,2007-07-15T00:00:00,"Rice (mixed, low quality) - Wholesale",KG,cereals and tubers,1155,KHR,Cambodia,Banteay Meanchey,791,Banteay Meanchey,640,165,14,5,1,640_165_14_5,""
50,2007-08-15T00:00:00,"Rice (mixed, low quality) - Wholesale",KG,cereals and tubers,1240,KHR,Cambodia,Banteay Meanchey,791,Banteay Meanchey,640,165,14,5,1,640_165_14_5,""
51,2007-09-15T00:00:00,"Rice (mixed, low quality) - Wholesale",KG,cereals and tubers,1245,KHR,Cambodia,Banteay Meanchey,791,Banteay Meanchey,640,165,14,5,1,640_165_14_5,""
52,2007-10-15T00:00:00,"Rice (mixed, low quality) - Wholesale",KG,cereals and tubers,1288.89,KHR,Cambodia,Banteay Meanchey,791,Banteay Meanchey,640,165,14,5,1,640_165_14_5,""
53,2007-11-15T00:00:00,"Rice (mixed, low quality) - Wholesale",KG,cereals and tubers,1329.45,KHR,Cambodia,Banteay Meanchey,791,Banteay Meanchey,640,165,14,5,1,640_165_14_5,""
54,2007-12-15T00:00:00,"Rice (mixed, low quality) - Wholesale",KG,cereals and tubers,1370,KHR,Cambodia,Banteay Meanchey,791,Banteay Meanchey,640,165,14,5,1,640_165_14_5,""
55,2008-01-15T00:00:00,"Rice (mixed, low quality) - Wholesale",KG,cereals and tubers,1400,KHR,Cambodia,Banteay Meanchey,791,Banteay Meanchey,640,165,14,5,1,640_165_14_5,""
56,2008-02-15T00:00:00,"Rice (mixed, low quality) - Wholesale",KG,cereals and tubers,1400,KHR,Cambodia,Banteay Meanchey,791,Banteay Meanchey,640,165,14,5,1,640_165_14_5,""
57,2008-03-15T00:00:00,"Rice (mixed, low quality) - Wholesale",KG,cereals and tubers,1400,KHR,Cambodia,Banteay Meanchey,791,Banteay Meanchey,640,165,14,5,1,640_165_14_5,""
58,2008-04-15T00:00:00,"Rice (mixed, low quality) - Wholesale",KG,cereals and tubers,2286,KHR,Cambodia,Banteay Meanchey,791,Banteay Meanchey,640,165,14,5,1,640_165_14_5,""
59,2008-05-15T00:00:00,"Rice (mixed, low quality) - Wholesale",KG,cereals and tubers,2000,KHR,Cambodia,Banteay Meanchey,791,Banteay Meanchey,640,165,14,5,1,640_165_14_5,""
60,2008-06-15T00:00:00,"Rice (mixed, low quality) - Wholesale",KG,cereals and tubers,2100,KHR,Cambodia,Banteay Meanchey,791,Banteay Meanchey,640,165,14,5,1,640_165_14_5,""
61,2008-07-15T00:00:00,"Rice (mixed, low quality) - Wholesale",KG,cereals and tubers,2000,KHR,Cambodia,Banteay Meanchey,791,Banteay Meanchey,640,165,14,5,1,640_165_14_5,""
62,2008-08-15T00:00:00,"Rice (mixed, low quality) - Wholesale",KG,cereals and tubers,2000,KHR,Cambodia,Banteay Meanchey,791,Banteay Meanchey,640,165,14,5,1,640_165_14_5,""
63,2008-09-15T00:00:00,"Rice (mixed, low quality) - Wholesale",KG,cereals and tubers,2000,KHR,Cambodia,Banteay Meanchey,791,Banteay Meanchey,640,165,14,5,1,640_165_14_5,""
64,2008-10-15T00:00:00,"Rice (mixed, low quality) - Wholesale",KG,cereals and tubers,2000,KHR,Cambodia,Banteay Meanchey,791,Banteay Meanchey,640,165,14,5,1,640_165_14_5,""
65,2008-11-15T00:00:00,"Rice (mixed, low quality) - Wholesale",KG,cereals and tubers,1825,KHR,Cambodia,Banteay Meanchey,791,Banteay Meanchey,640,165,14,5,1,640_165_14_5,""
66,2008-12-15T00:00:00,"Rice (mixed, low quality) - Wholesale",KG,cereals and tubers,1600,KHR,Cambodia,Banteay Meanchey,791,Banteay Meanchey,640,165,14,5,1,640_165_14_5,""
67,2009-01-15T00:00:00,"Rice (mixed, low quality) - Wholesale",KG,cereals and tubers,1600,KHR,Cambodia,Banteay Meanchey,791,Banteay Meanchey,640,165,14,5,1,640_165_14_5,""
68,2009-02-15T00:00:00,"Rice (mixed, low quality) - Wholesale",KG,cereals and tubers,1400,KHR,Cambodia,Banteay Meanchey,791,Banteay Meanchey,640,165,14,5,1,640_165_14_5,""
69,2009-03-15T00:00:00,"Rice (mixed, low quality) - Wholesale",KG,cereals and tubers,1400,KHR,Cambodia,Banteay Meanchey,791,Banteay Meanchey,640,165,14,5,1,640_165_14_5,""
70,2009-04-15T00:00:00,"Rice (mixed, low quality) - Wholesale",KG,cereals and tubers,1400,KHR,Cambodia,Banteay Meanchey,791,Banteay Meanchey,640,165,14,5,1,640_165_14_5,""
71,2009-05-15T00:00:00,"Rice (mixed, low quality) - Wholesale",KG,cereals and tubers,1200,KHR,Cambodia,Banteay Meanchey,791,Banteay Meanchey,640,165,14,5,1,640_165_14_5,""
72,2009-06-15T00:00:00,"Rice (mixed, low quality) - Wholesale",KG,cereals and tubers,1200,KHR,Cambodia,Banteay Meanchey,791,Banteay Meanchey,640,165,14,5,1,640_165_14_5,""
73,2009-07-15T00:00:00,"Rice (mixed, low quality) - Wholesale",KG,cereals and tubers,1340,KHR,Cambodia,Banteay Meanchey,791,Banteay Meanchey,640,165,14,5,1,640_165_14_5,""
74,2009-08-15T00:00:00,"Rice (mixed, low quality) - Wholesale",KG,cereals and tubers,1500,KHR,Cambodia,Banteay Meanchey,791,Banteay Meanchey,640,165,14,5,1,640_165_14_5,""
75,2009-09-15T00:00:00,"Rice (mixed, low quality) - Wholesale",KG,cereals and tubers,1650,KHR,Cambodia,Banteay Meanchey,791,Banteay Meanchey,640,165,14,5,1,640_165_14_5,""
76,2009-10-15T00:00:00,"Rice (mixed, low quality) - Wholesale",KG,cereals and tubers,1718.75,KHR,Cambodia,Banteay Meanchey,791,Banteay Meanchey,640,165,14,5,1,640_165_14_5,""
77,2009-11-15T00:00:00,"Rice (mixed, low quality) - Wholesale",KG,cereals and tubers,1725,KHR,Cambodia,Banteay Meanchey,791,Banteay Meanchey,640,165,14,5,1,640_165_14_5,""
78,2009-12-15T00:00:00,"Rice (mixed, low quality) - Wholesale",KG,cereals and tubers,1775,KHR,Cambodia,Banteay Meanchey,791,Banteay Meanchey,640,165,14,5,1,640_165_14_5,""
79,2010-01-15T00:00:00,"Rice (mixed, low quality) - Wholesale",KG,cereals and tubers,1800,KHR,Cambodia,Banteay Meanchey,791,Banteay Meanchey,640,165,14,5,1,640_165_14_5,""
80,2010-02-15T00:00:00,"Rice (mixed, low quality) - Wholesale",KG,cereals and tubers,1800,KHR,Cambodia,Banteay Meanchey,791,Banteay Meanchey,640,165,14,5,1,640_165_14_5,""
81,2010-03-15T00:00:00,"Rice (mixed, low quality) - Wholesale",KG,cereals and tubers,1800,KHR,Cambodia,Banteay Meanchey,791,Banteay Meanchey,640,165,14,5,1,640_165_14_5,""
82,2010-04-15T00:00:00,"Rice (mixed, low quality) - Wholesale",KG,cereals and tubers,1800,KHR,Cambodia,Banteay Meanchey,791,Banteay Meanchey,640,165,14,5,1,640_165_14_5,""
83,2010-05-15T00:00:00,"Rice (mixed, low quality) - Wholesale",KG,cereals and tubers,1800,KHR,Cambodia,Banteay Meanchey,791,Banteay Meanchey,640,165,14,5,1,640_165_14_5,""
84,2010-06-15T00:00:00,"Rice (mixed, low quality) - Wholesale",KG,cereals and tubers,1800,KHR,Cambodia,Banteay Meanchey,791,Banteay Meanchey,640,165,14,5,1,640_165_14_5,""
85,2010-07-15T00:00:00,"Rice (mixed, low quality) - Wholesale",KG,cereals and tubers,1748.33,KHR,Cambodia,Banteay Meanchey,791,Banteay Meanchey,640,165,14,5,1,640_165_14_5,""
86,2010-08-15T00:00:00,"Rice (mixed, low quality) - Wholesale",KG,cereals and tubers,1500,KHR,Cambodia,Banteay Meanchey,791,Banteay Meanchey,640,165,14,5,1,640_165_14_5,""
87,2010-09-15T00:00:00,"Rice (mixed, low quality) - Wholesale",KG,cereals and tubers,1683.33,KHR,Cambodia,Banteay Meanchey,791,Banteay Meanchey,640,165,14,5,1,640_165_14_5,""
88,2010-10-15T00:00:00,"Rice (mixed, low quality) - Wholesale",KG,cereals and tubers,1700,KHR,Cambodia,Banteay Meanchey,791,Banteay Meanchey,640,165,14,5,1,640_165_14_5,""
89,2010-11-15T00:00:00,"Rice (mixed, low quality) - Wholesale",KG,cereals and tubers,1800,KHR,Cambodia,Banteay Meanchey,791,Banteay Meanchey,640,165,14,5,1,640_165_14_5,""
90,2010-12-15T00:00:00,"Rice (mixed, low quality) - Wholesale",KG,cereals and tubers,1800,KHR,Cambodia,Banteay Meanchey,791,Banteay Meanchey,640,165,14,5,1,640_165_14_5,""
91,2011-01-15T00:00:00,"Rice (mixed, low quality) - Wholesale",KG,cereals and tubers,1500,KHR,Cambodia,Banteay Meanchey,791,Banteay Meanchey,640,165,14,5,1,640_165_14_5,""
92,2011-02-15T00:00:00,"Rice (mixed, low quality) - Wholesale",KG,cereals and tubers,1500,KHR,Cambodia,Banteay Meanchey,791,Banteay Meanchey,640,165,14,5,1,640_165_14_5,""
93,2011-03-15T00:00:00,"Rice (mixed, low quality) - Wholesale",KG,cereals and tubers,1500,KHR,Cambodia,Banteay Meanchey,791,Banteay Meanchey,640,165,14,5,1,640_165_14_5,""
94,2011-04-15T00:00:00,"Rice (mixed, low quality) - Wholesale",KG,cereals and tubers,1500,KHR,Cambodia,Banteay Meanchey,791,Banteay Meanchey,640,165,14,5,1,640_165_14_5,""
95,2011-05-15T00:00:00,"Rice (mixed, low quality) - Wholesale",KG,cereals and tubers,1593.55,KHR,Cambodia,Banteay Meanchey,791,Banteay Meanchey,640,165,14,5,1,640_165_14_5,""
96,2011-06-15T00:00:00,"Rice (mixed, low quality) - Wholesale",KG,cereals and tubers,1500,KHR,Cambodia,Banteay Meanchey,791,Banteay Meanchey,640,165,14,5,1,640_165_14_5,""
97,2011-07-15T00:00:00,"Rice (mixed, low quality) - Wholesale",KG,cereals and tubers,1500,KHR,Cambodia,Banteay Meanchey,791,Banteay Meanchey,640,165,14,5,1,640_165_14_5,""
98,2011-08-15T00:00:00,"Rice (mixed, low quality) - Wholesale",KG,cereals and tubers,1558.0699,KHR,Cambodia,Banteay Meanchey,791,Banteay Meanchey,640,165,14,5,1,640_165_14_5,""
99,2011-09-15T00:00:00,"Rice (mixed, low quality) - Wholesale",KG,cereals and tubers,1700,KHR,Cambodia,Banteay Meanchey,791,Banteay Meanchey,640,165,14,5,1,640_165_14_5,""
100,2011-10-15T00:00:00,"Rice (mixed, low quality) - Wholesale",KG,cereals and tubers,1800,KHR,Cambodia,Banteay Meanchey,791,Banteay Meanchey,640,165,14,5,1,640_165_14_5,""
101,2011-11-15T00:00:00,"Rice (mixed, low quality) - Wholesale",KG,cereals and tubers,2000,KHR,Cambodia,Banteay Meanchey,791,Banteay Meanchey,640,165,14,5,1,640_165_14_5,""
102,2011-12-15T00:00:00,"Rice (mixed, low quality) - Wholesale",KG,cereals and tubers,2000,KHR,Cambodia,Banteay Meanchey,791,Banteay Meanchey,640,165,14,5,1,640_165_14_5,""
103,2012-01-15T00:00:00,"Rice (mixed, low quality) - Wholesale",KG,cereals and tubers,2000,KHR,Cambodia,Banteay Meanchey,791,Banteay Meanchey,640,165,14,5,1,640_165_14_5,""
104,2012-02-15T00:00:00,"Rice (mixed, low quality) - Wholesale",KG,cereals and tubers,1960,KHR,Cambodia,Banteay Meanchey,791,Banteay Meanchey,640,165,14,5,1,640_165_14_5,""
105,2012-03-15T00:00:00,"Rice (mixed, low quality) - Wholesale",KG,cereals and tubers,2000,KHR,Cambodia,Banteay Meanchey,791,Banteay Meanchey,640,165,14,5,1,640_165_14_5,""
106,2012-04-15T00:00:00,"Rice (mixed, low quality) - Wholesale",KG,cereals and tubers,2000,KHR,Cambodia,Banteay Meanchey,791,Banteay Meanchey,640,165,14,5,1,640_165_14_5,""
107,2012-05-15T00:00:00,"Rice (mixed, low quality) - Wholesale",KG,cereals and tubers,2000,KHR,Cambodia,Banteay Meanchey,791,Banteay Meanchey,640,165,14,5,1,640_165_14_5,""
108,2012-06-15T00:00:00,"Rice (mixed, low quality) - Wholesale",KG,cereals and tubers,2000,KHR,Cambodia,Banteay Meanchey,791,Banteay Meanchey,640,165,14,5,1,640_165_14_5,""
109,2012-07-15T00:00:00,"Rice (mixed, low quality) - Wholesale",KG,cereals and tubers,2000,KHR,Cambodia,Banteay Meanchey,791,Banteay Meanchey,640,165,14,5,1,640_165_14_5,""
110,2012-08-15T00:00:00,"Rice (mixed, low quality) - Wholesale",KG,cereals and tubers,2000,KHR,Cambodia,Banteay Meanchey,791,Banteay Meanchey,640,165,14,5,1,640_165_14_5,""
111,2012-09-15T00:00:00,"Rice (mixed, low quality) - Wholesale",KG,cereals and tubers,2000,KHR,Cambodia,Banteay Meanchey,791,Banteay Meanchey,640,165,14,5,1,640_165_14_5,""
112,2012-10-15T00:00:00,"Rice (mixed, low quality) - Wholesale",KG,cereals and tubers,2000,KHR,Cambodia,Banteay Meanchey,791,Banteay Meanchey,640,165,14,5,1,640_165_14_5,""
113,2012-11-15T00:00:00,"Rice (mixed, low quality) - Wholesale",KG,cereals and tubers,2000,KHR,Cambodia,Banteay Meanchey,791,Banteay Meanchey,640,165,14,5,1,640_165_14_5,""
114,2012-12-15T00:00:00,"Rice (mixed, low quality) - Wholesale",KG,cereals and tubers,1800,KHR,Cambodia,Banteay Meanchey,791,Banteay Meanchey,640,165,14,5,1,640_165_14_5,""
115,2013-01-15T00:00:00,"Rice (mixed, low quality) - Wholesale",KG,cereals and tubers,1600,KHR,Cambodia,Banteay Meanchey,791,Banteay Meanchey,640,165,14,5,1,640_165_14_5,""
116,2013-02-15T00:00:00,"Rice (mixed, low quality) - Wholesale",KG,cereals and tubers,1800,KHR,Cambodia,Banteay Meanchey,791,Banteay Meanchey,640,165,14,5,1,640_165_14_5,""
117,2013-03-15T00:00:00,"Rice (mixed, low quality) - Wholesale",KG,cereals and tubers,1800,KHR,Cambodia,Banteay Meanchey,791,Banteay Meanchey,640,165,14,5,1,640_165_14_5,""
118,2013-04-15T00:00:00,"Rice (mixed, low quality) - Wholesale",KG,cereals and tubers,1800,KHR,Cambodia,Banteay Meanchey,791,Banteay Meanchey,640,165,14,5,1,640_165_14_5,""
119,2013-05-15T00:00:00,"Rice (mixed, low quality) - Wholesale",KG,cereals and tubers,2000,KHR,Cambodia,Banteay Meanchey,791,Banteay Meanchey,640,165,14,5,1,640_165_14_5,""
120,2013-06-15T00:00:00,"Rice (mixed, low quality) - Wholesale",KG,cereals and tubers,1800,KHR,Cambodia,Banteay Meanchey,791,Banteay Meanchey,640,165,14,5,1,640_165_14_5,""
121,2013-07-15T00:00:00,"Rice (mixed, low quality) - Wholesale",KG,cereals and tubers,2000,KHR,Cambodia,Banteay Meanchey,791,Banteay Meanchey,640,165,14,5,1,640_165_14_5,""
122,2013-08-15T00:00:00,"Rice (mixed, low quality) - Wholesale",KG,cereals and tubers,1600,KHR,Cambodia,Banteay Meanchey,791,Banteay Meanchey,640,165,14,5,1,640_165_14_5,""
123,2013-09-15T00:00:00,"Rice (mixed, low quality) - Wholesale",KG,cereals and tubers,1600,KHR,Cambodia,Banteay Meanchey,791,Banteay Meanchey,640,165,14,5,1,640_165_14_5,""
124,2013-10-15T00:00:00,"Rice (mixed, low quality) - Wholesale",KG,cereals and tubers,1750,KHR,Cambodia,Banteay Meanchey,791,Banteay Meanchey,640,165,14,5,1,640_165_14_5,""
125,2013-11-15T00:00:00,"Rice (mixed, low quality) - Wholesale",KG,cereals and tubers,1800,KHR,Cambodia,Banteay Meanchey,791,Banteay Meanchey,640,165,14,5,1,640_165_14_5,""
126,2013-12-15T00:00:00,"Rice (mixed, low quality) - Wholesale",KG,cereals and tubers,1800,KHR,Cambodia,Banteay Meanchey,791,Banteay Meanchey,640,165,14,5,1,640_165_14_5,""
127,2014-01-15T00:00:00,"Rice (mixed, low quality) - Wholesale",KG,cereals and tubers,1800,KHR,Cambodia,Banteay Meanchey,791,Banteay Meanchey,640,165,14,5,1,640_165_14_5,""
128,2014-02-15T00:00:00,"Rice (mixed, low quality) - Wholesale",KG,cereals and tubers,1800,KHR,Cambodia,Banteay Meanchey,791,Banteay Meanchey,640,165,14,5,1,640_165_14_5,""
129,2014-03-15T00:00:00,"Rice (mixed, low quality) - Wholesale",KG,cereals and tubers,1800,KHR,Cambodia,Banteay Meanchey,791,Banteay Meanchey,640,165,14,5,1,640_165_14_5,""
130,2014-04-15T00:00:00,"Rice (mixed, low quality) - Wholesale",KG,cereals and tubers,1800,KHR,Cambodia,Banteay Meanchey,791,Banteay Meanchey,640,165,14,5,1,640_165_14_5,""
131,2014-05-15T00:00:00,"Rice (mixed, low quality) - Wholesale",KG,cereals and tubers,1800,KHR,Cambodia,Banteay Meanchey,791,Banteay Meanchey,640,165,14,5,1,640_165_14_5,""
132,2014-06-15T00:00:00,"Rice (mixed, low quality) - Wholesale",KG,cereals and tubers,1800,KHR,Cambodia,Banteay Meanchey,791,Banteay Meanchey,640,165,14,5,1,640_165_14_5,""
133,2014-07-15T00:00:00,"Rice (mixed, low quality) - Wholesale",KG,cereals and tubers,1800,KHR,Cambodia,Banteay Meanchey,791,Banteay Meanchey,640,165,14,5,1,640_165_14_5,""
134,2014-08-15T00:00:00,"Rice (mixed, low quality) - Wholesale",KG,cereals and tubers,1800,KHR,Cambodia,Banteay Meanchey,791,Banteay Meanchey,640,165,14,5,1,640_165_14_5,""
135,2014-09-15T00:00:00,"Rice (mixed, low quality) - Wholesale",KG,cereals and tubers,1800,KHR,Cambodia,Banteay Meanchey,791,Banteay Meanchey,640,165,14,5,1,640_165_14_5,""
136,2014-10-15T00:00:00,"Rice (mixed, low quality) - Wholesale",KG,cereals and tubers,1800,KHR,Cambodia,Banteay Meanchey,791,Banteay Meanchey,640,165,14,5,1,640_165_14_5,""
137,2014-11-15T00:00:00,"Rice (mixed, low quality) - Wholesale",KG,cereals and tubers,1800,KHR,Cambodia,Banteay Meanchey,791,Banteay Meanchey,640,165,14,5,1,640_165_14_5,""
138,2014-12-15T00:00:00,"Rice (mixed, low quality) - Wholesale",KG,cereals and tubers,1550,KHR,Cambodia,Banteay Meanchey,791,Banteay Meanchey,640,165,14,5,1,640_165_14_5,""
139,2015-01-15T00:00:00,"Rice (mixed, low quality) - Wholesale",KG,cereals and tubers,1550,KHR,Cambodia,Banteay Meanchey,791,Banteay Meanchey,640,165,14,5,1,640_165_14_5,""
140,2015-02-15T00:00:00,"Rice (mixed, low quality) - Wholesale",KG,cereals and tubers,1300,KHR,Cambodia,Banteay Meanchey,791,Banteay Meanchey,640,165,14,5,1,640_165_14_5,""
141,2015-03-15T00:00:00,"Rice (mixed, low quality) - Wholesale",KG,cereals and tubers,1300,KHR,Cambodia,Banteay Meanchey,791,Banteay Meanchey,640,165,14,5,1,640_165_14_5,""
142,2015-04-15T00:00:00,"Rice (mixed, low quality) - Wholesale",KG,cereals and tubers,1300,KHR,Cambodia,Banteay Meanchey,791,Banteay Meanchey,640,165,14,5,1,640_165_14_5,""
143,2015-05-15T00:00:00,"Rice (mixed, low quality) - Wholesale",KG,cereals and tubers,1300,KHR,Cambodia,Banteay Meanchey,791,Banteay Meanchey,640,165,14,5,1,640_165_14_5,""
144,2015-06-15T00:00:00,"Rice (mixed, low quality) - Wholesale",KG,cereals and tubers,1350,KHR,Cambodia,Banteay Meanchey,791,Banteay Meanchey,640,165,14,5,1,640_165_14_5,""
145,2015-07-15T00:00:00,"Rice (mixed, low quality) - Wholesale",KG,cereals and tubers,1500,KHR,Cambodia,Banteay Meanchey,791,Banteay Meanchey,640,165,14,5,1,640_165_14_5,""
146,2015-08-15T00:00:00,"Rice (mixed, low quality) - Wholesale",KG,cereals and tubers,1550,KHR,Cambodia,Banteay Meanchey,791,Banteay Meanchey,640,165,14,5,1,640_165_14_5,""
147,2015-09-15T00:00:00,"Rice (mixed, low quality) - Wholesale",KG,cereals and tubers,1600,KHR,Cambodia,Banteay Meanchey,791,Banteay Meanchey,640,165,14,5,1,640_165_14_5,""
148,2015-10-15T00:00:00,"Rice (mixed, low quality) - Wholesale",KG,cereals and tubers,1600,KHR,Cambodia,Banteay Meanchey,791,Banteay Meanchey,640,165,14,5,1,640_165_14_5,""
149,2015-11-15T00:00:00,"Rice (mixed, low quality) - Wholesale",KG,cereals and tubers,1450,KHR,Cambodia,Banteay Meanchey,791,Banteay Meanchey,640,165,14,5,1,640_165_14_5,""
150,2015-12-15T00:00:00,"Rice (mixed, low quality) - Wholesale",KG,cereals and tubers,1400,KHR,Cambodia,Banteay Meanchey,791,Banteay Meanchey,640,165,14,5,1,640_165_14_5,""
151,2016-01-15T00:00:00,"Rice (mixed, low quality) - Wholesale",KG,cereals and tubers,1400,KHR,Cambodia,Banteay Meanchey,791,Banteay Meanchey,640,165,14,5,1,640_165_14_5,""
152,2016-02-15T00:00:00,"Rice (mixed, low quality) - Wholesale",KG,cereals and tubers,1400,KHR,Cambodia,Banteay Meanchey,791,Banteay Meanchey,640,165,14,5,1,640_165_14_5,""
153,2016-03-15T00:00:00,"Rice (mixed, low quality) - Wholesale",KG,cereals and tubers,1400,KHR,Cambodia,Banteay Meanchey,791,Banteay Meanchey,640,165,14,5,1,640_165_14_5,""
154,2016-04-15T00:00:00,"Rice (mixed, low quality) - Wholesale",KG,cereals and tubers,1400,KHR,Cambodia,Banteay Meanchey,791,Banteay Meanchey,640,165,14,5,1,640_165_14_5,""
155,2016-05-15T00:00:00,"Rice (mixed, low quality) - Wholesale",KG,cereals and tubers,1400,KHR,Cambodia,Banteay Meanchey,791,Banteay Meanchey,640,165,14,5,1,640_165_14_5,""
156,2016-06-15T00:00:00,"Rice (mixed, low quality) - Wholesale",KG,cereals and tubers,1400,KHR,Cambodia,Banteay Meanchey,791,Banteay Meanchey,640,165,14,5,1,640_165_14_5,""
157,2016-07-15T00:00:00,"Rice (mixed, low quality) - Wholesale",KG,cereals and tubers,1550,KHR,Cambodia,Banteay Meanchey,791,Banteay Meanchey,640,165,14,5,1,640_165_14_5,""
158,2016-08-15T00:00:00,"Rice (mixed, low quality) - Wholesale",KG,cereals and tubers,1550,KHR,Cambodia,Banteay Meanchey,791,Banteay Meanchey,640,165,14,5,1,640_165_14_5,""
159,2016-09-15T00:00:00,"Rice (mixed, low quality) - Wholesale",KG,cereals and tubers,1400,KHR,Cambodia,Banteay Meanchey,791,Banteay Meanchey,640,165,14,5,1,640_165_14_5,""
160,2016-10-15T00:00:00,"Rice (mixed, low quality) - Wholesale",KG,cereals and tubers,1400,KHR,Cambodia,Banteay Meanchey,791,Banteay Meanchey,640,165,14,5,1,640_165_14_5,""
161,2016-11-15T00:00:00,"Rice (mixed, low quality) - Wholesale",KG,cereals and tubers,1500,KHR,Cambodia,Banteay Meanchey,791,Banteay Meanchey,640,165,14,5,1,640_165_14_5,""
162,2016-12-15T00:00:00,"Rice (mixed, low quality) - Wholesale",KG,cereals and tubers,1300,KHR,Cambodia,Banteay Meanchey,791,Banteay Meanchey,640,165,14,5,1,640_165_14_5,""
163,2017-01-15T00:00:00,"Rice (mixed, low quality) - Wholesale",KG,cereals and tubers,1450,KHR,Cambodia,Banteay Meanchey,791,Banteay Meanchey,640,165,14,5,1,640_165_14_5,""
164,2017-02-15T00:00:00,"Rice (mixed, low quality) - Wholesale",KG,cereals and tubers,1400,KHR,Cambodia,Banteay Meanchey,791,Banteay Meanchey,640,165,14,5,1,640_165_14_5,""
165,2017-03-15T00:00:00,"Rice (mixed, low quality) - Wholesale",KG,cereals and tubers,1500,KHR,Cambodia,Banteay Meanchey,791,Banteay Meanchey,640,165,14,5,1,640_165_14_5,""
166,2017-04-15T00:00:00,"Rice (mixed, low quality) - Wholesale",KG,cereals and tubers,1600,KHR,Cambodia,Banteay Meanchey,791,Banteay Meanchey,640,165,14,5,1,640_165_14_5,""
167,2017-05-15T00:00:00,"Rice (mixed, low quality) - Wholesale",KG,cereals and tubers,1560,KHR,Cambodia,Banteay Meanchey,791,Banteay Meanchey,640,165,14,5,1,640_165_14_5,""
168,2017-06-15T00:00:00,"Rice (mixed, low quality) - Wholesale",KG,cereals and tubers,1600,KHR,Cambodia,Banteay Meanchey,791,Banteay Meanchey,640,165,14,5,1,640_165_14_5,""
169,2017-07-15T00:00:00,"Rice (mixed, low quality) - Wholesale",KG,cereals and tubers,1600,KHR,Cambodia,Banteay Meanchey,791,Banteay Meanchey,640,165,14,5,1,640_165_14_5,""
170,2017-08-15T00:00:00,"Rice (mixed, low quality) - Wholesale",KG,cereals and tubers,1600,KHR,Cambodia,Banteay Meanchey,791,Banteay Meanchey,640,165,14,5,1,640_165_14_5,""
171,2017-09-15T00:00:00,"Rice (mixed, low quality) - Wholesale",KG,cereals and tubers,1600,KHR,Cambodia,Banteay Meanchey,791,Banteay Meanchey,640,165,14,5,1,640_165_14_5,""
172,2017-10-15T00:00:00,"Rice (mixed, low quality) - Wholesale",KG,cereals and tubers,1800,KHR,Cambodia,Banteay Meanchey,791,Banteay Meanchey,640,165,14,5,1,640_165_14_5,""
173,2017-11-15T00:00:00,"Rice (mixed, low quality) - Wholesale",KG,cereals and tubers,1800,KHR,Cambodia,Banteay Meanchey,791,Banteay Meanchey,640,165,14,5,1,640_165_14_5,""
174,2017-12-15T00:00:00,"Rice (mixed, low quality) - Wholesale",KG,cereals and tubers,1600,KHR,Cambodia,Banteay Meanchey,791,Banteay Meanchey,640,165,14,5,1,640_165_14_5,""
175,2018-01-15T00:00:00,"Rice (mixed, low quality) - Wholesale",KG,cereals and tubers,1600,KHR,Cambodia,Banteay Meanchey,791,Banteay Meanchey,640,165,14,5,1,640_165_14_5,""
176,2018-02-15T00:00:00,"Rice (mixed, low quality) - Wholesale",KG,cereals and tubers,1650,KHR,Cambodia,Banteay Meanchey,791,Banteay Meanchey,640,165,14,5,1,640_165_14_5,""
177,2018-03-15T00:00:00,"Rice (mixed, low quality) - Wholesale",KG,cereals and tubers,1600,KHR,Cambodia,Banteay Meanchey,791,Banteay Meanchey,640,165,14,5,1,640_165_14_5,""
178,2018-04-15T00:00:00,"Rice (mixed, low quality) - Wholesale",KG,cereals and tubers,1600,KHR,Cambodia,Banteay Meanchey,791,Banteay Meanchey,640,165,14,5,1,640_165_14_5,""
179,2018-05-15T00:00:00,"Rice (mixed, low quality) - Wholesale",KG,cereals and tubers,1700,KHR,Cambodia,Banteay Meanchey,791,Banteay Meanchey,640,165,14,5,1,640_165_14_5,""
180,2018-06-15T00:00:00,"Rice (mixed, low quality) - Wholesale",KG,cereals and tubers,1700,KHR,Cambodia,Banteay Meanchey,791,Banteay Meanchey,640,165,14,5,1,640_165_14_5,""
181,2018-07-15T00:00:00,"Rice (mixed, low quality) - Wholesale",KG,cereals and tubers,1900,KHR,Cambodia,Banteay Meanchey,791,Banteay Meanchey,640,165,14,5,1,640_165_14_5,""
182,2018-08-15T00:00:00,"Rice (mixed, low quality) - Wholesale",KG,cereals and tubers,1900,KHR,Cambodia,Banteay Meanchey,791,Banteay Meanchey,640,165,14,5,1,640_165_14_5,""
183,2018-09-15T00:00:00,"Rice (mixed, low quality) - Wholesale",KG,cereals and tubers,1700,KHR,Cambodia,Banteay Meanchey,791,Banteay Meanchey,640,165,14,5,1,640_165_14_5,""
184,2018-10-15T00:00:00,"Rice (mixed, low quality) - Wholesale",KG,cereals and tubers,1600,KHR,Cambodia,Banteay Meanchey,791,Banteay Meanchey,640,165,14,5,1,640_165_14_5,""
185,2018-11-15T00:00:00,"Rice (mixed, low quality) - Wholesale",KG,cereals and tubers,1700,KHR,Cambodia,Banteay Meanchey,791,Banteay Meanchey,640,165,14,5,1,640_165_14_5,""
186,2018-12-15T00:00:00,"Rice (mixed, low quality) - Wholesale",KG,cereals and tubers,1700,KHR,Cambodia,Banteay Meanchey,791,Banteay Meanchey,640,165,14,5,1,640_165_14_5,""
187,2019-01-15T00:00:00,"Rice (mixed, low quality) - Wholesale",KG,cereals and tubers,1710,KHR,Cambodia,Banteay Meanchey,791,Banteay Meanchey,640,165,14,5,1,640_165_14_5,""
188,2019-02-15T00:00:00,"Rice (mixed, low quality) - Wholesale",KG,cereals and tubers,1708,KHR,Cambodia,Banteay Meanchey,791,Banteay Meanchey,640,165,14,5,1,640_165_14_5,""
189,2019-03-15T00:00:00,"Rice (mixed, low quality) - Wholesale",KG,cereals and tubers,1732,KHR,Cambodia,Banteay Meanchey,791,Banteay Meanchey,640,165,14,5,1,640_165_14_5,""
190,2019-04-15T00:00:00,"Rice (mixed, low quality) - Wholesale",KG,cereals and tubers,1735,KHR,Cambodia,Banteay Meanchey,791,Banteay Meanchey,640,165,14,5,1,640_165_14_5,""
191,2019-05-15T00:00:00,"Rice (mixed, low quality) - Wholesale",KG,cereals and tubers,1700,KHR,Cambodia,Banteay Meanchey,791,Banteay Meanchey,640,165,14,5,1,640_165_14_5,""
192,2019-06-15T00:00:00,"Rice (mixed, low quality) - Wholesale",KG,cereals and tubers,1700,KHR,Cambodia,Banteay Meanchey,791,Banteay Meanchey,640,165,14,5,1,640_165_14_5,""
193,2019-07-15T00:00:00,"Rice (mixed, low quality) - Wholesale",KG,cereals and tubers,1700,KHR,Cambodia,Banteay Meanchey,791,Banteay Meanchey,640,165,14,5,1,640_165_14_5,""
194,2019-08-15T00:00:00,"Rice (mixed, low quality) - Wholesale",KG,cereals and tubers,1700,KHR,Cambodia,Banteay Meanchey,791,Banteay Meanchey,640,165,14,5,1,640_165_14_5,""
195,2019-09-15T00:00:00,"Rice (mixed, low quality) - Wholesale",KG,cereals and tubers,1800,KHR,Cambodia,Banteay Meanchey,791,Banteay Meanchey,640,165,14,5,1,640_165_14_5,""
196,2019-10-15T00:00:00,"Rice (mixed, low quality) - Wholesale",KG,cereals and tubers,1800,KHR,Cambodia,Banteay Meanchey,791,Banteay Meanchey,640,165,14,5,1,640_165_14_5,""
197,2019-11-15T00:00:00,"Rice (mixed, low quality) - Wholesale",KG,cereals and tubers,1800,KHR,Cambodia,Banteay Meanchey,791,Banteay Meanchey,640,165,14,5,1,640_165_14_5,""
198,2019-12-15T00:00:00,"Rice (mixed, low quality) - Wholesale",KG,cereals and tubers,1700,KHR,Cambodia,Banteay Meanchey,791,Banteay Meanchey,640,165,14,5,1,640_165_14_5,""
199,2020-01-15T00:00:00,"Rice (mixed, low quality) - Wholesale",KG,cereals and tubers,1800,KHR,Cambodia,Banteay Meanchey,791,Banteay Meanchey,640,165,14,5,1,640_165_14_5,""
200,2020-02-15T00:00:00,"Rice (mixed, low quality) - Wholesale",KG,cereals and tubers,1800,KHR,Cambodia,Banteay Meanchey,791,Banteay Meanchey,640,165,14,5,1,640_165_14_5,""
201,2020-04-15T00:00:00,"Rice (mixed, low quality) - Wholesale",KG,cereals and tubers,1725,KHR,Cambodia,Banteay Meanchey,791,Banteay Meanchey,640,165,14,5,1,640_165_14_5,""
202,2020-05-15T00:00:00,"Rice (mixed, low quality) - Wholesale",KG,cereals and tubers,1700,KHR,Cambodia,Banteay Meanchey,791,Banteay Meanchey,640,165,14,5,1,640_165_14_5,""
203,2020-06-15T00:00:00,"Rice (mixed, low quality) - Wholesale",KG,cereals and tubers,1700,KHR,Cambodia,Banteay Meanchey,791,Banteay Meanchey,640,165,14,5,1,640_165_14_5,""
204,2007-01-15T00:00:00,Soybeans - Wholesale,KG,pulses and nuts,1500,KHR,Cambodia,Banteay Meanchey,791,Banteay Meanchey,640,248,14,5,5,640_248_14_5,""
205,2007-02-15T00:00:00,Soybeans - Wholesale,KG,pulses and nuts,1575,KHR,Cambodia,Banteay Meanchey,791,Banteay Meanchey,640,248,14,5,5,640_248_14_5,""
206,2007-03-15T00:00:00,Soybeans - Wholesale,KG,pulses and nuts,1812.5,KHR,Cambodia,Banteay Meanchey,791,Banteay Meanchey,640,248,14,5,5,640_248_14_5,""
207,2007-04-15T00:00:00,Soybeans - Wholesale,KG,pulses and nuts,1816.67,KHR,Cambodia,Banteay Meanchey,791,Banteay Meanchey,640,248,14,5,5,640_248_14_5,""
208,2007-05-15T00:00:00,Soybeans - Wholesale,KG,pulses and nuts,1837.5,KHR,Cambodia,Banteay Meanchey,791,Banteay Meanchey,640,248,14,5,5,640_248_14_5,""
209,2007-06-15T00:00:00,Soybeans - Wholesale,KG,pulses and nuts,1858.34,KHR,Cambodia,Banteay Meanchey,791,Banteay Meanchey,640,248,14,5,5,640_248_14_5,""
210,2007-07-15T00:00:00,Soybeans - Wholesale,KG,pulses and nuts,1879.17,KHR,Cambodia,Banteay Meanchey,791,Banteay Meanchey,640,248,14,5,5,640_248_14_5,""
211,2007-08-15T00:00:00,Soybeans - Wholesale,KG,pulses and nuts,1900,KHR,Cambodia,Banteay Meanchey,791,Banteay Meanchey,640,248,14,5,5,640_248_14_5,""
212,2007-09-15T00:00:00,Soybeans - Wholesale,KG,pulses and nuts,2000,KHR,Cambodia,Banteay Meanchey,791,Banteay Meanchey,640,248,14,5,5,640_248_14_5,""
213,2007-10-15T00:00:00,Soybeans - Wholesale,KG,pulses and nuts,2000,KHR,Cambodia,Banteay Meanchey,791,Banteay Meanchey,640,248,14,5,5,640_248_14_5,""
214,2007-11-15T00:00:00,Soybeans - Wholesale,KG,pulses and nuts,1925,KHR,Cambodia,Banteay Meanchey,791,Banteay Meanchey,640,248,14,5,5,640_248_14_5,""
215,2007-12-15T00:00:00,Soybeans - Wholesale,KG,pulses and nuts,2112.5,KHR,Cambodia,Banteay Meanchey,791,Banteay Meanchey,640,248,14,5,5,640_248_14_5,""
216,2008-01-15T00:00:00,Soybeans - Wholesale,KG,pulses and nuts,2300,KHR,Cambodia,Banteay Meanchey,791,Banteay Meanchey,640,248,14,5,5,640_248_14_5,""
217,2008-02-15T00:00:00,Soybeans - Wholesale,KG,pulses and nuts,2300,KHR,Cambodia,Banteay Meanchey,791,Banteay Meanchey,640,248,14,5,5,640_248_14_5,""
218,2008-03-15T00:00:00,Soybeans - Wholesale,KG,pulses and nuts,2300,KHR,Cambodia,Banteay Meanchey,791,Banteay Meanchey,640,248,14,5,5,640_248_14_5,""
219,2008-04-15T00:00:00,Soybeans - Wholesale,KG,pulses and nuts,2285,KHR,Cambodia,Banteay Meanchey,791,Banteay Meanchey,640,248,14,5,5,640_248_14_5,""
220,2008-05-15T00:00:00,Soybeans - Wholesale,KG,pulses and nuts,2283.3301,KHR,Cambodia,Banteay Meanchey,791,Banteay Meanchey,640,248,14,5,5,640_248_14_5,""
221,2008-06-15T00:00:00,Soybeans - Wholesale,KG,pulses and nuts,2200,KHR,Cambodia,Banteay Meanchey,791,Banteay Meanchey,640,248,14,5,5,640_248_14_5,""
222,2008-07-15T00:00:00,Soybeans - Wholesale,KG,pulses and nuts,2400,KHR,Cambodia,Banteay Meanchey,791,Banteay Meanchey,640,248,14,5,5,640_248_14_5,""
223,2008-08-15T00:00:00,Soybeans - Wholesale,KG,pulses and nuts,2455.5601,KHR,Cambodia,Banteay Meanchey,791,Banteay Meanchey,640,248,14,5,5,640_248_14_5,""
224,2008-09-15T00:00:00,Soybeans - Wholesale,KG,pulses and nuts,2495.24,KHR,Cambodia,Banteay Meanchey,791,Banteay Meanchey,640,248,14,5,5,640_248_14_5,""
225,2008-10-15T00:00:00,Soybeans - Wholesale,KG,pulses and nuts,2500,KHR,Cambodia,Banteay Meanchey,791,Banteay Meanchey,640,248,14,5,5,640_248_14_5,""
226,2008-11-15T00:00:00,Soybeans - Wholesale,KG,pulses and nuts,2140,KHR,Cambodia,Banteay Meanchey,791,Banteay Meanchey,640,248,14,5,5,640_248_14_5,""
227,2008-12-15T00:00:00,Soybeans - Wholesale,KG,pulses and nuts,2082,KHR,Cambodia,Banteay Meanchey,791,Banteay Meanchey,640,248,14,5,5,640_248_14_5,""
228,2009-01-15T00:00:00,Soybeans - Wholesale,KG,pulses and nuts,2024,KHR,Cambodia,Banteay Meanchey,791,Banteay Meanchey,640,248,14,5,5,640_248_14_5,""
229,2009-02-15T00:00:00,Soybeans - Wholesale,KG,pulses and nuts,1966,KHR,Cambodia,Banteay Meanchey,791,Banteay Meanchey,640,248,14,5,5,640_248_14_5,""
230,2009-03-15T00:00:00,Soybeans - Wholesale,KG,pulses and nuts,1908,KHR,Cambodia,Banteay Meanchey,791,Banteay Meanchey,640,248,14,5,5,640_248_14_5,""
231,2009-04-15T00:00:00,Soybeans - Wholesale,KG,pulses and nuts,1850,KHR,Cambodia,Banteay Meanchey,791,Banteay Meanchey,640,248,14,5,5,640_248_14_5,""
232,2009-05-15T00:00:00,Soybeans - Wholesale,KG,pulses and nuts,1800,KHR,Cambodia,Banteay Meanchey,791,Banteay Meanchey,640,248,14,5,5,640_248_14_5,""
233,2009-06-15T00:00:00,Soybeans - Wholesale,KG,pulses and nuts,2300,KHR,Cambodia,Banteay Meanchey,791,Banteay Meanchey,640,248,14,5,5,640_248_14_5,""
234,2009-07-15T00:00:00,Soybeans - Wholesale,KG,pulses and nuts,2250,KHR,Cambodia,Banteay Meanchey,791,Banteay Meanchey,640,248,14,5,5,640_248_14_5,""
235,2009-08-15T00:00:00,Soybeans - Wholesale,KG,pulses and nuts,2300,KHR,Cambodia,Banteay Meanchey,791,Banteay Meanchey,640,248,14,5,5,640_248_14_5,""
236,2009-09-15T00:00:00,Soybeans - Wholesale,KG,pulses and nuts,2650,KHR,Cambodia,Banteay Meanchey,791,Banteay Meanchey,640,248,14,5,5,640_248_14_5,""
237,2009-10-15T00:00:00,Soybeans - Wholesale,KG,pulses and nuts,2800,KHR,Cambodia,Banteay Meanchey,791,Banteay Meanchey,640,248,14,5,5,640_248_14_5,""
238,2009-11-15T00:00:00,Soybeans - Wholesale,KG,pulses and nuts,2421.4299,KHR,Cambodia,Banteay Meanchey,791,Banteay Meanchey,640,248,14,5,5,640_248_14_5,""
239,2009-12-15T00:00:00,Soybeans - Wholesale,KG,pulses and nuts,2511.54,KHR,Cambodia,Banteay Meanchey,791,Banteay Meanchey,640,248,14,5,5,640_248_14_5,""
240,2010-01-15T00:00:00,Soybeans - Wholesale,KG,pulses and nuts,2542.8601,KHR,Cambodia,Banteay Meanchey,791,Banteay Meanchey,640,248,14,5,5,640_248_14_5,""
241,2010-02-15T00:00:00,Soybeans - Wholesale,KG,pulses and nuts,2550,KHR,Cambodia,Banteay Meanchey,791,Banteay Meanchey,640,248,14,5,5,640_248_14_5,""
242,2010-03-15T00:00:00,Soybeans - Wholesale,KG,pulses and nuts,2550,KHR,Cambodia,Banteay Meanchey,791,Banteay Meanchey,640,248,14,5,5,640_248_14_5,""
243,2010-04-15T00:00:00,Soybeans - Wholesale,KG,pulses and nuts,2550,KHR,Cambodia,Banteay Meanchey,791,Banteay Meanchey,640,248,14,5,5,640_248_14_5,""
244,2010-05-15T00:00:00,Soybeans - Wholesale,KG,pulses and nuts,2550,KHR,Cambodia,Banteay Meanchey,791,Banteay Meanchey,640,248,14,5,5,640_248_14_5,""
245,2010-06-15T00:00:00,Soybeans - Wholesale,KG,pulses and nuts,2550,KHR,Cambodia,Banteay Meanchey,791,Banteay Meanchey,640,248,14,5,5,640_248_14_5,""
246,2010-07-15T00:00:00,Soybeans - Wholesale,KG,pulses and nuts,2550,KHR,Cambodia,Banteay Meanchey,791,Banteay Meanchey,640,248,14,5,5,640_248_14_5,""
247,2010-08-15T00:00:00,Soybeans - Wholesale,KG,pulses and nuts,2600,KHR,Cambodia,Banteay Meanchey,791,Banteay Meanchey,640,248,14,5,5,640_248_14_5,""
248,2010-09-15T00:00:00,Soybeans - Wholesale,KG,pulses and nuts,2626.6699,KHR,Cambodia,Banteay Meanchey,791,Banteay Meanchey,640,248,14,5,5,640_248_14_5,""
249,2010-10-15T00:00:00,Soybeans - Wholesale,KG,pulses and nuts,2588.71,KHR,Cambodia,Banteay Meanchey,791,Banteay Meanchey,640,248,14,5,5,640_248_14_5,""
250,2010-11-15T00:00:00,Soybeans - Wholesale,KG,pulses and nuts,2603.8501,KHR,Cambodia,Banteay Meanchey,791,Banteay Meanchey,640,248,14,5,5,640_248_14_5,""
251,2010-12-15T00:00:00,Soybeans - Wholesale,KG,pulses and nuts,2550,KHR,Cambodia,Banteay Meanchey,791,Banteay Meanchey,640,248,14,5,5,640_248_14_5,""
252,2011-01-15T00:00:00,Soybeans - Wholesale,KG,pulses and nuts,2550,KHR,Cambodia,Banteay Meanchey,791,Banteay Meanchey,640,248,14,5,5,640_248_14_5,""
253,2011-02-15T00:00:00,Soybeans - Wholesale,KG,pulses and nuts,2635.71,KHR,Cambodia,Banteay Meanchey,791,Banteay Meanchey,640,248,14,5,5,640_248_14_5,""
254,2011-03-15T00:00:00,Soybeans - Wholesale,KG,pulses and nuts,2700,KHR,Cambodia,Banteay Meanchey,791,Banteay Meanchey,640,248,14,5,5,640_248_14_5,""
255,2011-04-15T00:00:00,Soybeans - Wholesale,KG,pulses and nuts,2730,KHR,Cambodia,Banteay Meanchey,791,Banteay Meanchey,640,248,14,5,5,640_248_14_5,""
256,2011-05-15T00:00:00,Soybeans - Wholesale,KG,pulses and nuts,2987.1001,KHR,Cambodia,Banteay Meanchey,791,Banteay Meanchey,640,248,14,5,5,640_248_14_5,""
257,2011-06-15T00:00:00,Soybeans - Wholesale,KG,pulses and nuts,2986.6699,KHR,Cambodia,Banteay Meanchey,791,Banteay Meanchey,640,248,14,5,5,640_248_14_5,""
258,2011-07-15T00:00:00,Soybeans - Wholesale,KG,pulses and nuts,3000,KHR,Cambodia,Banteay Meanchey,791,Banteay Meanchey,640,248,14,5,5,640_248_14_5,""
259,2011-08-15T00:00:00,Soybeans - Wholesale,KG,pulses and nuts,3000,KHR,Cambodia,Banteay Meanchey,791,Banteay Meanchey,640,248,14,5,5,640_248_14_5,""
260,2011-09-15T00:00:00,Soybeans - Wholesale,KG,pulses and nuts,3000,KHR,Cambodia,Banteay Meanchey,791,Banteay Meanchey,640,248,14,5,5,640_248_14_5,""
261,2011-10-15T00:00:00,Soybeans - Wholesale,KG,pulses and nuts,3000,KHR,Cambodia,Banteay Meanchey,791,Banteay Meanchey,640,248,14,5,5,640_248_14_5,""
262,2011-11-15T00:00:00,Soybeans - Wholesale,KG,pulses and nuts,3000,KHR,Cambodia,Banteay Meanchey,791,Banteay Meanchey,640,248,14,5,5,640_248_14_5,""
263,2011-12-15T00:00:00,Soybeans - Wholesale,KG,pulses and nuts,3000,KHR,Cambodia,Banteay Meanchey,791,Banteay Meanchey,640,248,14,5,5,640_248_14_5,""
264,2012-01-15T00:00:00,Soybeans - Wholesale,KG,pulses and nuts,2951.6101,KHR,Cambodia,Banteay Meanchey,791,Banteay Meanchey,640,248,14,5,5,640_248_14_5,""
265,2012-02-15T00:00:00,Soybeans - Wholesale,KG,pulses and nuts,2534.48,KHR,Cambodia,Banteay Meanchey,791,Banteay Meanchey,640,248,14,5,5,640_248_14_5,""
266,2012-03-15T00:00:00,Soybeans - Wholesale,KG,pulses and nuts,2564.52,KHR,Cambodia,Banteay Meanchey,791,Banteay Meanchey,640,248,14,5,5,640_248_14_5,""
267,2012-04-15T00:00:00,Soybeans - Wholesale,KG,pulses and nuts,2631.6699,KHR,Cambodia,Banteay Meanchey,791,Banteay Meanchey,640,248,14,5,5,640_248_14_5,""
268,2012-05-15T00:00:00,Soybeans - Wholesale,KG,pulses and nuts,2650,KHR,Cambodia,Banteay Meanchey,791,Banteay Meanchey,640,248,14,5,5,640_248_14_5,""
269,2012-06-15T00:00:00,Soybeans - Wholesale,KG,pulses and nuts,2895,KHR,Cambodia,Banteay Meanchey,791,Banteay Meanchey,640,248,14,5,5,640_248_14_5,""
270,2012-07-15T00:00:00,Soybeans - Wholesale,KG,pulses and nuts,3000,KHR,Cambodia,Banteay Meanchey,791,Banteay Meanchey,640,248,14,5,5,640_248_14_5,""
271,2012-08-15T00:00:00,Soybeans - Wholesale,KG,pulses and nuts,3000,KHR,Cambodia,Banteay Meanchey,791,Banteay Meanchey,640,248,14,5,5,640_248_14_5,""
272,2012-09-15T00:00:00,Soybeans - Wholesale,KG,pulses and nuts,3000,KHR,Cambodia,Banteay Meanchey,791,Banteay Meanchey,640,248,14,5,5,640_248_14_5,""
273,2012-10-15T00:00:00,Soybeans - Wholesale,KG,pulses and nuts,3000,KHR,Cambodia,Banteay Meanchey,791,Banteay Meanchey,640,248,14,5,5,640_248_14_5,""
274,2012-11-15T00:00:00,Soybeans - Wholesale,KG,pulses and nuts,3000,KHR,Cambodia,Banteay Meanchey,791,Banteay Meanchey,640,248,14,5,5,640_248_14_5,""
275,2013-01-15T00:00:00,Soybeans - Wholesale,KG,pulses and nuts,3000,KHR,Cambodia,Banteay Meanchey,791,Banteay Meanchey,640,248,14,5,5,640_248_14_5,""
276,2013-02-15T00:00:00,Soybeans - Wholesale,KG,pulses and nuts,3500,KHR,Cambodia,Banteay Meanchey,791,Banteay Meanchey,640,248,14,5,5,640_248_14_5,""
277,2013-03-15T00:00:00,Soybeans - Wholesale,KG,pulses and nuts,3875,KHR,Cambodia,Banteay Meanchey,791,Banteay Meanchey,640,248,14,5,5,640_248_14_5,""
278,2013-04-15T00:00:00,Soybeans - Wholesale,KG,pulses and nuts,4000,KHR,Cambodia,Banteay Meanchey,791,Banteay Meanchey,640,248,14,5,5,640_248_14_5,""
279,2013-05-15T00:00:00,Soybeans - Wholesale,KG,pulses and nuts,3666.6699,KHR,Cambodia,Banteay Meanchey,791,Banteay Meanchey,640,248,14,5,5,640_248_14_5,""
280,2013-06-15T00:00:00,Soybeans - Wholesale,KG,pulses and nuts,4000,KHR,Cambodia,Banteay Meanchey,791,Banteay Meanchey,640,248,14,5,5,640_248_14_5,""
281,2013-07-15T00:00:00,Soybeans - Wholesale,KG,pulses and nuts,4000,KHR,Cambodia,Banteay Meanchey,791,Banteay Meanchey,640,248,14,5,5,640_248_14_5,""
282,2013-08-15T00:00:00,Soybeans - Wholesale,KG,pulses and nuts,4400,KHR,Cambodia,Banteay Meanchey,791,Banteay Meanchey,640,248,14,5,5,640_248_14_5,""
283,2013-09-15T00:00:00,Soybeans - Wholesale,KG,pulses and nuts,4367,KHR,Cambodia,Banteay Meanchey,791,Banteay Meanchey,640,248,14,5,5,640_248_14_5,""
284,2013-10-15T00:00:00,Soybeans - Wholesale,KG,pulses and nuts,4200,KHR,Cambodia,Banteay Meanchey,791,Banteay Meanchey,640,248,14,5,5,640_248_14_5,""
285,2013-11-15T00:00:00,Soybeans - Wholesale,KG,pulses and nuts,4200,KHR,Cambodia,Banteay Meanchey,791,Banteay Meanchey,640,248,14,5,5,640_248_14_5,""
286,2013-12-15T00:00:00,Soybeans - Wholesale,KG,pulses and nuts,3550,KHR,Cambodia,Banteay Meanchey,791,Banteay Meanchey,640,248,14,5,5,640_248_14_5,""
287,2014-01-15T00:00:00,Soybeans - Wholesale,KG,pulses and nuts,3200,KHR,Cambodia,Banteay Meanchey,791,Banteay Meanchey,640,248,14,5,5,640_248_14_5,""
288,2014-02-15T00:00:00,Soybeans - Wholesale,KG,pulses and nuts,3600,KHR,Cambodia,Banteay Meanchey,791,Banteay Meanchey,640,248,14,5,5,640_248_14_5,""
289,2014-03-15T00:00:00,Soybeans - Wholesale,KG,pulses and nuts,3700,KHR,Cambodia,Banteay Meanchey,791,Banteay Meanchey,640,248,14,5,5,640_248_14_5,""
290,2014-04-15T00:00:00,Soybeans - Wholesale,KG,pulses and nuts,3711,KHR,Cambodia,Banteay Meanchey,791,Banteay Meanchey,640,248,14,5,5,640_248_14_5,""
291,2014-05-15T00:00:00,Soybeans - Wholesale,KG,pulses and nuts,3800,KHR,Cambodia,Banteay Meanchey,791,Banteay Meanchey,640,248,14,5,5,640_248_14_5,""
292,2014-06-15T00:00:00,Soybeans - Wholesale,KG,pulses and nuts,3800,KHR,Cambodia,Banteay Meanchey,791,Banteay Meanchey,640,248,14,5,5,640_248_14_5,""
293,2014-07-15T00:00:00,Soybeans - Wholesale,KG,pulses and nuts,3500,KHR,Cambodia,Banteay Meanchey,791,Banteay Meanchey,640,248,14,5,5,640_248_14_5,""
294,2014-08-15T00:00:00,Soybeans - Wholesale,KG,pulses and nuts,3500,KHR,Cambodia,Banteay Meanchey,791,Banteay Meanchey,640,248,14,5,5,640_248_14_5,""
295,2014-09-15T00:00:00,Soybeans - Wholesale,KG,pulses and nuts,3500,KHR,Cambodia,Banteay Meanchey,791,Banteay Meanchey,640,248,14,5,5,640_248_14_5,""
296,2014-10-15T00:00:00,Soybeans - Wholesale,KG,pulses and nuts,3300,KHR,Cambodia,Banteay Meanchey,791,Banteay Meanchey,640,248,14,5,5,640_248_14_5,""
297,2014-11-15T00:00:00,Soybeans - Wholesale,KG,pulses and nuts,3300,KHR,Cambodia,Banteay Meanchey,791,Banteay Meanchey,640,248,14,5,5,640_248_14_5,""
298,2014-12-15T00:00:00,Soybeans - Wholesale,KG,pulses and nuts,2800,KHR,Cambodia,Banteay Meanchey,791,Banteay Meanchey,640,248,14,5,5,640_248_14_5,""
299,2015-01-15T00:00:00,Soybeans - Wholesale,KG,pulses and nuts,2700,KHR,Cambodia,Banteay Meanchey,791,Banteay Meanchey,640,248,14,5,5,640_248_14_5,""
300,2015-02-15T00:00:00,Soybeans - Wholesale,KG,pulses and nuts,2700,KHR,Cambodia,Banteay Meanchey,791,Banteay Meanchey,640,248,14,5,5,640_248_14_5,""
301,2015-03-15T00:00:00,Soybeans - Wholesale,KG,pulses and nuts,2700,KHR,Cambodia,Banteay Meanchey,791,Banteay Meanchey,640,248,14,5,5,640_248_14_5,""
302,2015-04-15T00:00:00,Soybeans - Wholesale,KG,pulses and nuts,2700,KHR,Cambodia,Banteay Meanchey,791,Banteay Meanchey,640,248,14,5,5,640_248_14_5,""
303,2015-05-15T00:00:00,Soybeans - Wholesale,KG,pulses and nuts,2700,KHR,Cambodia,Banteay Meanchey,791,Banteay Meanchey,640,248,14,5,5,640_248_14_5,""
304,2015-06-15T00:00:00,Soybeans - Wholesale,KG,pulses and nuts,2800,KHR,Cambodia,Banteay Meanchey,791,Banteay Meanchey,640,248,14,5,5,640_248_14_5,""
305,2015-07-15T00:00:00,Soybeans - Wholesale,KG,pulses and nuts,2800,KHR,Cambodia,Banteay Meanchey,791,Banteay Meanchey,640,248,14,5,5,640_248_14_5,""
306,2015-08-15T00:00:00,Soybeans - Wholesale,KG,pulses and nuts,2950,KHR,Cambodia,Banteay Meanchey,791,Banteay Meanchey,640,248,14,5,5,640_248_14_5,""
307,2015-09-15T00:00:00,Soybeans - Wholesale,KG,pulses and nuts,2950,KHR,Cambodia,Banteay Meanchey,791,Banteay Meanchey,640,248,14,5,5,640_248_14_5,""
308,2015-10-15T00:00:00,Soybeans - Wholesale,KG,pulses and nuts,3050,KHR,Cambodia,Banteay Meanchey,791,Banteay Meanchey,640,248,14,5,5,640_248_14_5,""
309,2015-11-15T00:00:00,Soybeans - Wholesale,KG,pulses and nuts,2900,KHR,Cambodia,Banteay Meanchey,791,Banteay Meanchey,640,248,14,5,5,640_248_14_5,""
310,2015-12-15T00:00:00,Soybeans - Wholesale,KG,pulses and nuts,2900,KHR,Cambodia,Banteay Meanchey,791,Banteay Meanchey,640,248,14,5,5,640_248_14_5,""
311,2016-01-15T00:00:00,Soybeans - Wholesale,KG,pulses and nuts,3000,KHR,Cambodia,Banteay Meanchey,791,Banteay Meanchey,640,248,14,5,5,640_248_14_5,""
312,2016-02-15T00:00:00,Soybeans - Wholesale,KG,pulses and nuts,3000,KHR,Cambodia,Banteay Meanchey,791,Banteay Meanchey,640,248,14,5,5,640_248_14_5,""
313,2016-03-15T00:00:00,Soybeans - Wholesale,KG,pulses and nuts,2700,KHR,Cambodia,Banteay Meanchey,791,Banteay Meanchey,640,248,14,5,5,640_248_14_5,""
314,2016-04-15T00:00:00,Soybeans - Wholesale,KG,pulses and nuts,2850,KHR,Cambodia,Banteay Meanchey,791,Banteay Meanchey,640,248,14,5,5,640_248_14_5,""
315,2016-05-15T00:00:00,Soybeans - Wholesale,KG,pulses and nuts,3000,KHR,Cambodia,Banteay Meanchey,791,Banteay Meanchey,640,248,14,5,5,640_248_14_5,""
316,2016-06-15T00:00:00,Soybeans - Wholesale,KG,pulses and nuts,3300,KHR,Cambodia,Banteay Meanchey,791,Banteay Meanchey,640,248,14,5,5,640_248_14_5,""
317,2016-07-15T00:00:00,Soybeans - Wholesale,KG,pulses and nuts,3200,KHR,Cambodia,Banteay Meanchey,791,Banteay Meanchey,640,248,14,5,5,640_248_14_5,""
318,2016-08-15T00:00:00,Soybeans - Wholesale,KG,pulses and nuts,3233,KHR,Cambodia,Banteay Meanchey,791,Banteay Meanchey,640,248,14,5,5,640_248_14_5,""
319,2016-09-15T00:00:00,Soybeans - Wholesale,KG,pulses and nuts,2850,KHR,Cambodia,Banteay Meanchey,791,Banteay Meanchey,640,248,14,5,5,640_248_14_5,""
320,2016-10-15T00:00:00,Soybeans - Wholesale,KG,pulses and nuts,3000,KHR,Cambodia,Banteay Meanchey,791,Banteay Meanchey,640,248,14,5,5,640_248_14_5,""
321,2016-11-15T00:00:00,Soybeans - Wholesale,KG,pulses and nuts,3300,KHR,Cambodia,Banteay Meanchey,791,Banteay Meanchey,640,248,14,5,5,640_248_14_5,""
322,2016-12-15T00:00:00,Soybeans - Wholesale,KG,pulses and nuts,3267,KHR,Cambodia,Banteay Meanchey,791,Banteay Meanchey,640,248,14,5,5,640_248_14_5,""
323,2017-01-15T00:00:00,Soybeans - Wholesale,KG,pulses and nuts,3500,KHR,Cambodia,Banteay Meanchey,791,Banteay Meanchey,640,248,14,5,5,640_248_14_5,""
324,2017-02-15T00:00:00,Soybeans - Wholesale,KG,pulses and nuts,2850,KHR,Cambodia,Banteay Meanchey,791,Banteay Meanchey,640,248,14,5,5,640_248_14_5,""
325,2017-03-15T00:00:00,Soybeans - Wholesale,KG,pulses and nuts,2800,KHR,Cambodia,Banteay Meanchey,791,Banteay Meanchey,640,248,14,5,5,640_248_14_5,""
326,2017-04-15T00:00:00,Soybeans - Wholesale,KG,pulses and nuts,3200,KHR,Cambodia,Banteay Meanchey,791,Banteay Meanchey,640,248,14,5,5,640_248_14_5,""
327,2017-05-15T00:00:00,Soybeans - Wholesale,KG,pulses and nuts,2800,KHR,Cambodia,Banteay Meanchey,791,Banteay Meanchey,640,248,14,5,5,640_248_14_5,""
328,2017-06-15T00:00:00,Soybeans - Wholesale,KG,pulses and nuts,2500,KHR,Cambodia,Banteay Meanchey,791,Banteay Meanchey,640,248,14,5,5,640_248_14_5,""
329,2017-07-15T00:00:00,Soybeans - Wholesale,KG,pulses and nuts,2500,KHR,Cambodia,Banteay Meanchey,791,Banteay Meanchey,640,248,14,5,5,640_248_14_5,""
330,2017-08-15T00:00:00,Soybeans - Wholesale,KG,pulses and nuts,2300,KHR,Cambodia,Banteay Meanchey,791,Banteay Meanchey,640,248,14,5,5,640_248_14_5,""
331,2017-09-15T00:00:00,Soybeans - Wholesale,KG,pulses and nuts,2300,KHR,Cambodia,Banteay Meanchey,791,Banteay Meanchey,640,248,14,5,5,640_248_14_5,""
332,2017-10-15T00:00:00,Soybeans - Wholesale,KG,pulses and nuts,2500,KHR,Cambodia,Banteay Meanchey,791,Banteay Meanchey,640,248,14,5,5,640_248_14_5,""
333,2017-11-15T00:00:00,Soybeans - Wholesale,KG,pulses and nuts,2400,KHR,Cambodia,Banteay Meanchey,791,Banteay Meanchey,640,248,14,5,5,640_248_14_5,""
334,2017-12-15T00:00:00,Soybeans - Wholesale,KG,pulses and nuts,2400,KHR,Cambodia,Banteay Meanchey,791,Banteay Meanchey,640,248,14,5,5,640_248_14_5,""
335,2018-01-15T00:00:00,Soybeans - Wholesale,KG,pulses and nuts,2333,KHR,Cambodia,Banteay Meanchey,791,Banteay Meanchey,640,248,14,5,5,640_248_14_5,""
336,2018-02-15T00:00:00,Soybeans - Wholesale,KG,pulses and nuts,2333,KHR,Cambodia,Banteay Meanchey,791,Banteay Meanchey,640,248,14,5,5,640_248_14_5,""
337,2018-03-15T00:00:00,Soybeans - Wholesale,KG,pulses and nuts,2400,KHR,Cambodia,Banteay Meanchey,791,Banteay Meanchey,640,248,14,5,5,640_248_14_5,""
338,2018-04-15T00:00:00,Soybeans - Wholesale,KG,pulses and nuts,2400,KHR,Cambodia,Banteay Meanchey,791,Banteay Meanchey,640,248,14,5,5,640_248_14_5,""
339,2018-05-15T00:00:00,Soybeans - Wholesale,KG,pulses and nuts,2700,KHR,Cambodia,Banteay Meanchey,791,Banteay Meanchey,640,248,14,5,5,640_248_14_5,""
340,2018-06-15T00:00:00,Soybeans - Wholesale,KG,pulses and nuts,2500,KHR,Cambodia,Banteay Meanchey,791,Banteay Meanchey,640,248,14,5,5,640_248_14_5,""
341,2018-07-15T00:00:00,Soybeans - Wholesale,KG,pulses and nuts,2500,KHR,Cambodia,Banteay Meanchey,791,Banteay Meanchey,640,248,14,5,5,640_248_14_5,""
342,2018-08-15T00:00:00,Soybeans - Wholesale,KG,pulses and nuts,2500,KHR,Cambodia,Banteay Meanchey,791,Banteay Meanchey,640,248,14,5,5,640_248_14_5,""
343,2018-09-15T00:00:00,Soybeans - Wholesale,KG,pulses and nuts,2700,KHR,Cambodia,Banteay Meanchey,791,Banteay Meanchey,640,248,14,5,5,640_248_14_5,""
344,2018-10-15T00:00:00,Soybeans - Wholesale,KG,pulses and nuts,2700,KHR,Cambodia,Banteay Meanchey,791,Banteay Meanchey,640,248,14,5,5,640_248_14_5,""
345,2018-11-15T00:00:00,Soybeans - Wholesale,KG,pulses and nuts,2700,KHR,Cambodia,Banteay Meanchey,791,Banteay Meanchey,640,248,14,5,5,640_248_14_5,""
346,2018-12-15T00:00:00,Soybeans - Wholesale,KG,pulses and nuts,2500,KHR,Cambodia,Banteay Meanchey,791,Banteay Meanchey,640,248,14,5,5,640_248_14_5,""
347,2019-01-15T00:00:00,Soybeans - Wholesale,KG,pulses and nuts,2500,KHR,Cambodia,Banteay Meanchey,791,Banteay Meanchey,640,248,14,5,5,640_248_14_5,""
348,2019-02-15T00:00:00,Soybeans - Wholesale,KG,pulses and nuts,2000,KHR,Cambodia,Banteay Meanchey,791,Banteay Meanchey,640,248,14,5,5,640_248_14_5,""
349,2019-03-15T00:00:00,Soybeans - Wholesale,KG,pulses and nuts,2240,KHR,Cambodia,Banteay Meanchey,791,Banteay Meanchey,640,248,14,5,5,640_248_14_5,""
350,2019-04-15T00:00:00,Soybeans - Wholesale,KG,pulses and nuts,2300,KHR,Cambodia,Banteay Meanchey,791,Banteay Meanchey,640,248,14,5,5,640_248_14_5,""
351,2019-05-15T00:00:00,Soybeans - Wholesale,KG,pulses and nuts,2300,KHR,Cambodia,Banteay Meanchey,791,Banteay Meanchey,640,248,14,5,5,640_248_14_5,""
352,2019-06-15T00:00:00,Soybeans - Wholesale,KG,pulses and nuts,2325,KHR,Cambodia,Banteay Meanchey,791,Banteay Meanchey,640,248,14,5,5,640_248_14_5,""
353,2019-07-15T00:00:00,Soybeans - Wholesale,KG,pulses and nuts,2300,KHR,Cambodia,Banteay Meanchey,791,Banteay Meanchey,640,248,14,5,5,640_248_14_5,""
354,2019-08-15T00:00:00,Soybeans - Wholesale,KG,pulses and nuts,2300,KHR,Cambodia,Banteay Meanchey,791,Banteay Meanchey,640,248,14,5,5,640_248_14_5,""
355,2019-09-15T00:00:00,Soybeans - Wholesale,KG,pulses and nuts,2300,KHR,Cambodia,Banteay Meanchey,791,Banteay Meanchey,640,248,14,5,5,640_248_14_5,""
356,2019-10-15T00:00:00,Soybeans - Wholesale,KG,pulses and nuts,2300,KHR,Cambodia,Banteay Meanchey,791,Banteay Meanchey,640,248,14,5,5,640_248_14_5,""
357,2019-11-15T00:00:00,Soybeans - Wholesale,KG,pulses and nuts,2300,KHR,Cambodia,Banteay Meanchey,791,Banteay Meanchey,640,248,14,5,5,640_248_14_5,""
358,2019-12-15T00:00:00,Soybeans - Wholesale,KG,pulses and nuts,2300,KHR,Cambodia,Banteay Meanchey,791,Banteay Meanchey,640,248,14,5,5,640_248_14_5,""
359,2020-01-15T00:00:00,Soybeans - Wholesale,KG,pulses and nuts,2000,KHR,Cambodia,Banteay Meanchey,791,Banteay Meanchey,640,248,14,5,5,640_248_14_5,""
360,2020-02-15T00:00:00,Soybeans - Wholesale,KG,pulses and nuts,2000,KHR,Cambodia,Banteay Meanchey,791,Banteay Meanchey,640,248,14,5,5,640_248_14_5,""
361,2020-04-15T00:00:00,Soybeans - Wholesale,KG,pulses and nuts,2300,KHR,Cambodia,Banteay Meanchey,791,Banteay Meanchey,640,248,14,5,5,640_248_14_5,""
362,2020-05-15T00:00:00,Soybeans - Wholesale,KG,pulses and nuts,2300,KHR,Cambodia,Banteay Meanchey,791,Banteay Meanchey,640,248,14,5,5,640_248_14_5,""
363,2020-06-15T00:00:00,Soybeans - Wholesale,KG,pulses and nuts,2300,KHR,Cambodia,Banteay Meanchey,791,Banteay Meanchey,640,248,14,5,5,640_248_14_5,""
364,2018-01-15T00:00:00,Wage (non-qualified labour) - Retail,Day,non-food,28750,KHR,Cambodia,Banteay Meanchey,791,Banteay Meanchey,640,277,15,51,8,640_277_15_51,""
365,2018-02-15T00:00:00,Wage (non-qualified labour) - Retail,Day,non-food,27500,KHR,Cambodia,Banteay Meanchey,791,Banteay Meanchey,640,277,15,51,8,640_277_15_51,""
366,2018-03-15T00:00:00,Wage (non-qualified labour) - Retail,Day,non-food,29500,KHR,Cambodia,Banteay Meanchey,791,Banteay Meanchey,640,277,15,51,8,640_277_15_51,""
367,2018-04-15T00:00:00,Wage (non-qualified labour) - Retail,Day,non-food,27500,KHR,Cambodia,Banteay Meanchey,791,Banteay Meanchey,640,277,15,51,8,640_277_15_51,""
368,2018-05-15T00:00:00,Wage (non-qualified labour) - Retail,Day,non-food,28750,KHR,Cambodia,Banteay Meanchey,791,Banteay Meanchey,640,277,15,51,8,640_277_15_51,""
369,2018-06-15T00:00:00,Wage (non-qualified labour) - Retail,Day,non-food,30250,KHR,Cambodia,Banteay Meanchey,791,Banteay Meanchey,640,277,15,51,8,640_277_15_51,""
370,2018-07-15T00:00:00,Wage (non-qualified labour) - Retail,Day,non-food,27500,KHR,Cambodia,Banteay Meanchey,791,Banteay Meanchey,640,277,15,51,8,640_277_15_51,""
371,2018-08-15T00:00:00,Wage (non-qualified labour) - Retail,Day,non-food,28750,KHR,Cambodia,Banteay Meanchey,791,Banteay Meanchey,640,277,15,51,8,640_277_15_51,""
372,2018-09-15T00:00:00,Wage (non-qualified labour) - Retail,Day,non-food,32500,KHR,Cambodia,Banteay Meanchey,791,Banteay Meanchey,640,277,15,51,8,640_277_15_51,""
373,2018-10-15T00:00:00,Wage (non-qualified labour) - Retail,Day,non-food,31250,KHR,Cambodia,Banteay Meanchey,791,Banteay Meanchey,640,277,15,51,8,640_277_15_51,""
374,2018-11-15T00:00:00,Wage (non-qualified labour) - Retail,Day,non-food,29500,KHR,Cambodia,Banteay Meanchey,791,Banteay Meanchey,640,277,15,51,8,640_277_15_51,""
375,2018-12-15T00:00:00,Wage (non-qualified labour) - Retail,Day,non-food,29500,KHR,Cambodia,Banteay Meanchey,791,Banteay Meanchey,640,277,15,51,8,640_277_15_51,""
376,2019-01-15T00:00:00,Wage (non-qualified labour) - Retail,Day,non-food,28750,KHR,Cambodia,Banteay Meanchey,791,Banteay Meanchey,640,277,15,51,8,640_277_15_51,""
377,2019-02-15T00:00:00,Wage (non-qualified labour) - Retail,Day,non-food,28250,KHR,Cambodia,Banteay Meanchey,791,Banteay Meanchey,640,277,15,51,8,640_277_15_51,""
378,2019-03-15T00:00:00,Wage (non-qualified labour) - Retail,Day,non-food,28250,KHR,Cambodia,Banteay Meanchey,791,Banteay Meanchey,640,277,15,51,8,640_277_15_51,""
379,2019-04-15T00:00:00,Wage (non-qualified labour) - Retail,Day,non-food,28250,KHR,Cambodia,Banteay Meanchey,791,Banteay Meanchey,640,277,15,51,8,640_277_15_51,""
380,2019-05-15T00:00:00,Wage (non-qualified labour) - Retail,Day,non-food,28250,KHR,Cambodia,Banteay Meanchey,791,Banteay Meanchey,640,277,15,51,8,640_277_15_51,""
381,2019-06-15T00:00:00,Wage (non-qualified labour) - Retail,Day,non-food,28250,KHR,Cambodia,Banteay Meanchey,791,Banteay Meanchey,640,277,15,51,8,640_277_15_51,""
382,2019-07-15T00:00:00,Wage (non-qualified labour) - Retail,Day,non-food,28250,KHR,Cambodia,Banteay Meanchey,791,Banteay Meanchey,640,277,15,51,8,640_277_15_51,""
383,2019-08-15T00:00:00,Wage (non-qualified labour) - Retail,Day,non-food,28750,KHR,Cambodia,Banteay Meanchey,791,Banteay Meanchey,640,277,15,51,8,640_277_15_51,""
384,2019-09-15T00:00:00,Wage (non-qualified labour) - Retail,Day,non-food,30000,KHR,Cambodia,Banteay Meanchey,791,Banteay Meanchey,640,277,15,51,8,640_277_15_51,""
385,2019-10-15T00:00:00,Wage (non-qualified labour) - Retail,Day,non-food,30000,KHR,Cambodia,Banteay Meanchey,791,Banteay Meanchey,640,277,15,51,8,640_277_15_51,""
386,2019-11-15T00:00:00,Wage (non-qualified labour) - Retail,Day,non-food,30000,KHR,Cambodia,Banteay Meanchey,791,Banteay Meanchey,640,277,15,51,8,640_277_15_51,""
387,2019-12-15T00:00:00,Wage (non-qualified labour) - Retail,Day,non-food,30000,KHR,Cambodia,Banteay Meanchey,791,Banteay Meanchey,640,277,15,51,8,640_277_15_51,""
388,2020-02-15T00:00:00,Wage (non-qualified labour) - Retail,Day,non-food,30000,KHR,Cambodia,Banteay Meanchey,791,Banteay Meanchey,640,277,15,51,8,640_277_15_51,""
389,2020-03-15T00:00:00,Oil (vegetable) - Wholesale,5 L,oil and fats,19667,KHR,Cambodia,Banteay Meanchey,791,Serei Saophoan,1524,96,14,67,6,1524_96_14_67,""
390,2014-12-15T00:00:00,Oil (vegetable) - Retail,KG,oil and fats,5500,KHR,Cambodia,Banteay Meanchey,791,Serei Saophoan,1524,96,15,5,6,1524_96_15_5,""
391,2015-01-15T00:00:00,Oil (vegetable) - Retail,KG,oil and fats,5800,KHR,Cambodia,Banteay Meanchey,791,Serei Saophoan,1524,96,15,5,6,1524_96_15_5,""
392,2015-02-15T00:00:00,Oil (vegetable) - Retail,KG,oil and fats,5800,KHR,Cambodia,Banteay Meanchey,791,Serei Saophoan,1524,96,15,5,6,1524_96_15_5,""
393,2015-03-15T00:00:00,Oil (vegetable) - Retail,KG,oil and fats,5800,KHR,Cambodia,Banteay Meanchey,791,Serei Saophoan,1524,96,15,5,6,1524_96_15_5,""
394,2015-04-15T00:00:00,Oil (vegetable) - Retail,KG,oil and fats,5800,KHR,Cambodia,Banteay Meanchey,791,Serei Saophoan,1524,96,15,5,6,1524_96_15_5,""
395,2015-05-15T00:00:00,Oil (vegetable) - Retail,KG,oil and fats,5800,KHR,Cambodia,Banteay Meanchey,791,Serei Saophoan,1524,96,15,5,6,1524_96_15_5,""
396,2015-06-15T00:00:00,Oil (vegetable) - Retail,KG,oil and fats,5800,KHR,Cambodia,Banteay Meanchey,791,Serei Saophoan,1524,96,15,5,6,1524_96_15_5,""
397,2015-07-15T00:00:00,Oil (vegetable) - Retail,KG,oil and fats,5800,KHR,Cambodia,Banteay Meanchey,791,Serei Saophoan,1524,96,15,5,6,1524_96_15_5,""
398,2015-08-15T00:00:00,Oil (vegetable) - Retail,KG,oil and fats,5800,KHR,Cambodia,Banteay Meanchey,791,Serei Saophoan,1524,96,15,5,6,1524_96_15_5,""
399,2015-09-15T00:00:00,Oil (vegetable) - Retail,KG,oil and fats,5800,KHR,Cambodia,Banteay Meanchey,791,Serei Saophoan,1524,96,15,5,6,1524_96_15_5,""
400,2015-10-15T00:00:00,Oil (vegetable) - Retail,KG,oil and fats,5800,KHR,Cambodia,Banteay Meanchey,791,Serei Saophoan,1524,96,15,5,6,1524_96_15_5,""
401,2015-11-15T00:00:00,Oil (vegetable) - Retail,KG,oil and fats,5800,KHR,Cambodia,Banteay Meanchey,791,Serei Saophoan,1524,96,15,5,6,1524_96_15_5,""
402,2015-12-15T00:00:00,Oil (vegetable) - Retail,KG,oil and fats,5800,KHR,Cambodia,Banteay Meanchey,791,Serei Saophoan,1524,96,15,5,6,1524_96_15_5,""
403,2016-01-15T00:00:00,Oil (vegetable) - Retail,KG,oil and fats,5800,KHR,Cambodia,Banteay Meanchey,791,Serei Saophoan,1524,96,15,5,6,1524_96_15_5,""
404,2016-02-15T00:00:00,Oil (vegetable) - Retail,KG,oil and fats,4500,KHR,Cambodia,Banteay Meanchey,791,Serei Saophoan,1524,96,15,5,6,1524_96_15_5,""
405,2016-03-15T00:00:00,Oil (vegetable) - Retail,KG,oil and fats,4500,KHR,Cambodia,Banteay Meanchey,791,Serei Saophoan,1524,96,15,5,6,1524_96_15_5,""
406,2016-04-15T00:00:00,Oil (vegetable) - Retail,KG,oil and fats,4500,KHR,Cambodia,Banteay Meanchey,791,Serei Saophoan,1524,96,15,5,6,1524_96_15_5,""
407,2016-05-15T00:00:00,Oil (vegetable) - Retail,KG,oil and fats,5500,KHR,Cambodia,Banteay Meanchey,791,Serei Saophoan,1524,96,15,5,6,1524_96_15_5,""
408,2016-06-15T00:00:00,Oil (vegetable) - Retail,KG,oil and fats,5494.5,KHR,Cambodia,Banteay Meanchey,791,Serei Saophoan,1524,96,15,5,6,1524_96_15_5,""
409,2016-07-15T00:00:00,Oil (vegetable) - Retail,KG,oil and fats,6227,KHR,Cambodia,Banteay Meanchey,791,Serei Saophoan,1524,96,15,5,6,1524_96_15_5,""
410,2016-08-15T00:00:00,Oil (vegetable) - Retail,KG,oil and fats,6127,KHR,Cambodia,Banteay Meanchey,791,Serei Saophoan,1524,96,15,5,6,1524_96_15_5,""
411,2016-09-15T00:00:00,Oil (vegetable) - Retail,KG,oil and fats,6593,KHR,Cambodia,Banteay Meanchey,791,Serei Saophoan,1524,96,15,5,6,1524_96_15_5,""
412,2016-11-15T00:00:00,Oil (vegetable) - Retail,KG,oil and fats,6227.1062,KHR,Cambodia,Banteay Meanchey,791,Serei Saophoan,1524,96,15,5,6,1524_96_15_5,""
413,2016-12-15T00:00:00,Oil (vegetable) - Retail,KG,oil and fats,5860.8059,KHR,Cambodia,Banteay Meanchey,791,Serei Saophoan,1524,96,15,5,6,1524_96_15_5,""
414,2017-01-15T00:00:00,Oil (vegetable) - Retail,KG,oil and fats,5156.6667,KHR,Cambodia,Banteay Meanchey,791,Serei Saophoan,1524,96,15,5,6,1524_96_15_5,""
415,2017-02-15T00:00:00,Oil (vegetable) - Retail,KG,oil and fats,5862.6374,KHR,Cambodia,Banteay Meanchey,791,Serei Saophoan,1524,96,15,5,6,1524_96_15_5,""
416,2017-03-15T00:00:00,Oil (vegetable) - Retail,KG,oil and fats,6043.956,KHR,Cambodia,Banteay Meanchey,791,Serei Saophoan,1524,96,15,5,6,1524_96_15_5,""
417,2017-05-15T00:00:00,Oil (vegetable) - Retail,KG,oil and fats,6043.956,KHR,Cambodia,Banteay Meanchey,791,Serei Saophoan,1524,96,15,5,6,1524_96_15_5,""
418,2017-06-15T00:00:00,Oil (vegetable) - Retail,KG,oil and fats,5250,KHR,Cambodia,Banteay Meanchey,791,Serei Saophoan,1524,96,15,5,6,1524_96_15_5,""
419,2017-07-15T00:00:00,Oil (vegetable) - Retail,KG,oil and fats,5496,KHR,Cambodia,Banteay Meanchey,791,Serei Saophoan,1524,96,15,5,6,1524_96_15_5,""
420,2017-12-15T00:00:00,Oil (vegetable) - Retail,KG,oil and fats,5331.5018,KHR,Cambodia,Banteay Meanchey,791,Serei Saophoan,1524,96,15,5,6,1524_96_15_5,""
421,2020-03-15T00:00:00,Oil (vegetable) - Retail,5 L,oil and fats,21333,KHR,Cambodia,Banteay Meanchey,791,Serei Saophoan,1524,96,15,67,6,1524_96_15_67,""
422,2020-03-15T00:00:00,"Rice (mixed, low quality) - Wholesale",KG,cereals and tubers,1733,KHR,Cambodia,Banteay Meanchey,791,Serei Saophoan,1524,165,14,5,1,1524_165_14_5,""
423,2020-04-15T00:00:00,"Rice (mixed, low quality) - Wholesale",KG,cereals and tubers,2200,KHR,Cambodia,Banteay Meanchey,791,Serei Saophoan,1524,165,14,5,1,1524_165_14_5,""
424,2020-05-15T00:00:00,"Rice (mixed, low quality) - Wholesale",KG,cereals and tubers,2237.5,KHR,Cambodia,Banteay Meanchey,791,Serei Saophoan,1524,165,14,5,1,1524_165_14_5,""
425,2020-06-15T00:00:00,"Rice (mixed, low quality) - Wholesale",KG,cereals and tubers,2500,KHR,Cambodia,Banteay Meanchey,791,Serei Saophoan,1524,165,14,5,1,1524_165_14_5,""
426,2020-07-15T00:00:00,"Rice (mixed, low quality) - Wholesale",KG,cereals and tubers,2500,KHR,Cambodia,Banteay Meanchey,791,Serei Saophoan,1524,165,14,5,1,1524_165_14_5,""
427,2013-04-15T00:00:00,"Rice (mixed, low quality) - Retail",KG,cereals and tubers,1950,KHR,Cambodia,Banteay Meanchey,791,Serei Saophoan,1524,165,15,5,1,1524_165_15_5,""
428,2013-05-15T00:00:00,"Rice (mixed, low quality) - Retail",KG,cereals and tubers,2000,KHR,Cambodia,Banteay Meanchey,791,Serei Saophoan,1524,165,15,5,1,1524_165_15_5,""
429,2013-06-15T00:00:00,"Rice (mixed, low quality) - Retail",KG,cereals and tubers,2000,KHR,Cambodia,Banteay Meanchey,791,Serei Saophoan,1524,165,15,5,1,1524_165_15_5,""
430,2013-07-15T00:00:00,"Rice (mixed, low quality) - Retail",KG,cereals and tubers,2000,KHR,Cambodia,Banteay Meanchey,791,Serei Saophoan,1524,165,15,5,1,1524_165_15_5,""
431,2013-08-15T00:00:00,"Rice (mixed, low quality) - Retail",KG,cereals and tubers,2000,KHR,Cambodia,Banteay Meanchey,791,Serei Saophoan,1524,165,15,5,1,1524_165_15_5,""
432,2013-09-15T00:00:00,"Rice (mixed, low quality) - Retail",KG,cereals and tubers,2000,KHR,Cambodia,Banteay Meanchey,791,Serei Saophoan,1524,165,15,5,1,1524_165_15_5,""
433,2013-10-15T00:00:00,"Rice (mixed, low quality) - Retail",KG,cereals and tubers,1966.6667,KHR,Cambodia,Banteay Meanchey,791,Serei Saophoan,1524,165,15,5,1,1524_165_15_5,""
434,2013-11-15T00:00:00,"Rice (mixed, low quality) - Retail",KG,cereals and tubers,2000,KHR,Cambodia,Banteay Meanchey,791,Serei Saophoan,1524,165,15,5,1,1524_165_15_5,""
435,2013-12-15T00:00:00,"Rice (mixed, low quality) - Retail",KG,cereals and tubers,1900,KHR,Cambodia,Banteay Meanchey,791,Serei Saophoan,1524,165,15,5,1,1524_165_15_5,""
436,2014-01-15T00:00:00,"Rice (mixed, low quality) - Retail",KG,cereals and tubers,2000,KHR,Cambodia,Banteay Meanchey,791,Serei Saophoan,1524,165,15,5,1,1524_165_15_5,""
437,2014-02-15T00:00:00,"Rice (mixed, low quality) - Retail",KG,cereals and tubers,2000,KHR,Cambodia,Banteay Meanchey,791,Serei Saophoan,1524,165,15,5,1,1524_165_15_5,""
438,2014-03-15T00:00:00,"Rice (mixed, low quality) - Retail",KG,cereals and tubers,2000,KHR,Cambodia,Banteay Meanchey,791,Serei Saophoan,1524,165,15,5,1,1524_165_15_5,""
439,2014-04-15T00:00:00,"Rice (mixed, low quality) - Retail",KG,cereals and tubers,2000,KHR,Cambodia,Banteay Meanchey,791,Serei Saophoan,1524,165,15,5,1,1524_165_15_5,""
440,2014-05-15T00:00:00,"Rice (mixed, low quality) - Retail",KG,cereals and tubers,1900,KHR,Cambodia,Banteay Meanchey,791,Serei Saophoan,1524,165,15,5,1,1524_165_15_5,""
441,2014-06-15T00:00:00,"Rice (mixed, low quality) - Retail",KG,cereals and tubers,2000,KHR,Cambodia,Banteay Meanchey,791,Serei Saophoan,1524,165,15,5,1,1524_165_15_5,""
442,2014-07-15T00:00:00,"Rice (mixed, low quality) - Retail",KG,cereals and tubers,2000,KHR,Cambodia,Banteay Meanchey,791,Serei Saophoan,1524,165,15,5,1,1524_165_15_5,""
443,2014-08-15T00:00:00,"Rice (mixed, low quality) - Retail",KG,cereals and tubers,2000,KHR,Cambodia,Banteay Meanchey,791,Serei Saophoan,1524,165,15,5,1,1524_165_15_5,""
444,2014-09-15T00:00:00,"Rice (mixed, low quality) - Retail",KG,cereals and tubers,2000,KHR,Cambodia,Banteay Meanchey,791,Serei Saophoan,1524,165,15,5,1,1524_165_15_5,""
445,2014-10-15T00:00:00,"Rice (mixed, low quality) - Retail",KG,cereals and tubers,2000,KHR,Cambodia,Banteay Meanchey,791,Serei Saophoan,1524,165,15,5,1,1524_165_15_5,""
446,2014-11-15T00:00:00,"Rice (mixed, low quality) - Retail",KG,cereals and tubers,2000,KHR,Cambodia,Banteay Meanchey,791,Serei Saophoan,1524,165,15,5,1,1524_165_15_5,""
447,2014-12-15T00:00:00,"Rice (mixed, low quality) - Retail",KG,cereals and tubers,2000,KHR,Cambodia,Banteay Meanchey,791,Serei Saophoan,1524,165,15,5,1,1524_165_15_5,""
448,2015-01-15T00:00:00,"Rice (mixed, low quality) - Retail",KG,cereals and tubers,2000,KHR,Cambodia,Banteay Meanchey,791,Serei Saophoan,1524,165,15,5,1,1524_165_15_5,""
449,2015-02-15T00:00:00,"Rice (mixed, low quality) - Retail",KG,cereals and tubers,2000,KHR,Cambodia,Banteay Meanchey,791,Serei Saophoan,1524,165,15,5,1,1524_165_15_5,""
450,2015-03-15T00:00:00,"Rice (mixed, low quality) - Retail",KG,cereals and tubers,2000,KHR,Cambodia,Banteay Meanchey,791,Serei Saophoan,1524,165,15,5,1,1524_165_15_5,""
451,2015-04-15T00:00:00,"Rice (mixed, low quality) - Retail",KG,cereals and tubers,1900,KHR,Cambodia,Banteay Meanchey,791,Serei Saophoan,1524,165,15,5,1,1524_165_15_5,""
452,2015-05-15T00:00:00,"Rice (mixed, low quality) - Retail",KG,cereals and tubers,1900,KHR,Cambodia,Banteay Meanchey,791,Serei Saophoan,1524,165,15,5,1,1524_165_15_5,""
453,2015-06-15T00:00:00,"Rice (mixed, low quality) - Retail",KG,cereals and tubers,1916.6667,KHR,Cambodia,Banteay Meanchey,791,Serei Saophoan,1524,165,15,5,1,1524_165_15_5,""
454,2015-07-15T00:00:00,"Rice (mixed, low quality) - Retail",KG,cereals and tubers,1750,KHR,Cambodia,Banteay Meanchey,791,Serei Saophoan,1524,165,15,5,1,1524_165_15_5,""
455,2015-08-15T00:00:00,"Rice (mixed, low quality) - Retail",KG,cereals and tubers,1750,KHR,Cambodia,Banteay Meanchey,791,Serei Saophoan,1524,165,15,5,1,1524_165_15_5,""
456,2015-09-15T00:00:00,"Rice (mixed, low quality) - Retail",KG,cereals and tubers,1750,KHR,Cambodia,Banteay Meanchey,791,Serei Saophoan,1524,165,15,5,1,1524_165_15_5,""
457,2015-10-15T00:00:00,"Rice (mixed, low quality) - Retail",KG,cereals and tubers,1750,KHR,Cambodia,Banteay Meanchey,791,Serei Saophoan,1524,165,15,5,1,1524_165_15_5,""
458,2015-11-15T00:00:00,"Rice (mixed, low quality) - Retail",KG,cereals and tubers,1750,KHR,Cambodia,Banteay Meanchey,791,Serei Saophoan,1524,165,15,5,1,1524_165_15_5,""
459,2015-12-15T00:00:00,"Rice (mixed, low quality) - Retail",KG,cereals and tubers,1750,KHR,Cambodia,Banteay Meanchey,791,Serei Saophoan,1524,165,15,5,1,1524_165_15_5,""
460,2016-01-15T00:00:00,"Rice (mixed, low quality) - Retail",KG,cereals and tubers,1750,KHR,Cambodia,Banteay Meanchey,791,Serei Saophoan,1524,165,15,5,1,1524_165_15_5,""
461,2016-02-15T00:00:00,"Rice (mixed, low quality) - Retail",KG,cereals and tubers,1750,KHR,Cambodia,Banteay Meanchey,791,Serei Saophoan,1524,165,15,5,1,1524_165_15_5,""
462,2016-03-15T00:00:00,"Rice (mixed, low quality) - Retail",KG,cereals and tubers,1766.6667,KHR,Cambodia,Banteay Meanchey,791,Serei Saophoan,1524,165,15,5,1,1524_165_15_5,""
463,2016-04-15T00:00:00,"Rice (mixed, low quality) - Retail",KG,cereals and tubers,1933.3333,KHR,Cambodia,Banteay Meanchey,791,Serei Saophoan,1524,165,15,5,1,1524_165_15_5,""
464,2016-05-15T00:00:00,"Rice (mixed, low quality) - Retail",KG,cereals and tubers,2066.6667,KHR,Cambodia,Banteay Meanchey,791,Serei Saophoan,1524,165,15,5,1,1524_165_15_5,""
465,2016-06-15T00:00:00,"Rice (mixed, low quality) - Retail",KG,cereals and tubers,2133.3333,KHR,Cambodia,Banteay Meanchey,791,Serei Saophoan,1524,165,15,5,1,1524_165_15_5,""
466,2016-07-15T00:00:00,"Rice (mixed, low quality) - Retail",KG,cereals and tubers,2000,KHR,Cambodia,Banteay Meanchey,791,Serei Saophoan,1524,165,15,5,1,1524_165_15_5,""
467,2016-08-15T00:00:00,"Rice (mixed, low quality) - Retail",KG,cereals and tubers,2000,KHR,Cambodia,Banteay Meanchey,791,Serei Saophoan,1524,165,15,5,1,1524_165_15_5,""
468,2016-09-15T00:00:00,"Rice (mixed, low quality) - Retail",KG,cereals and tubers,2000,KHR,Cambodia,Banteay Meanchey,791,Serei Saophoan,1524,165,15,5,1,1524_165_15_5,""
469,2016-11-15T00:00:00,"Rice (mixed, low quality) - Retail",KG,cereals and tubers,1766.6667,KHR,Cambodia,Banteay Meanchey,791,Serei Saophoan,1524,165,15,5,1,1524_165_15_5,""
470,2016-12-15T00:00:00,"Rice (mixed, low quality) - Retail",KG,cereals and tubers,1733.3333,KHR,Cambodia,Banteay Meanchey,791,Serei Saophoan,1524,165,15,5,1,1524_165_15_5,""
471,2017-01-15T00:00:00,"Rice (mixed, low quality) - Retail",KG,cereals and tubers,1700,KHR,Cambodia,Banteay Meanchey,791,Serei Saophoan,1524,165,15,5,1,1524_165_15_5,""
472,2017-02-15T00:00:00,"Rice (mixed, low quality) - Retail",KG,cereals and tubers,1766.6667,KHR,Cambodia,Banteay Meanchey,791,Serei Saophoan,1524,165,15,5,1,1524_165_15_5,""
473,2017-03-15T00:00:00,"Rice (mixed, low quality) - Retail",KG,cereals and tubers,1766.6667,KHR,Cambodia,Banteay Meanchey,791,Serei Saophoan,1524,165,15,5,1,1524_165_15_5,""
474,2017-05-15T00:00:00,"Rice (mixed, low quality) - Retail",KG,cereals and tubers,1933.3333,KHR,Cambodia,Banteay Meanchey,791,Serei Saophoan,1524,165,15,5,1,1524_165_15_5,""
475,2017-06-15T00:00:00,"Rice (mixed, low quality) - Retail",KG,cereals and tubers,1900,KHR,Cambodia,Banteay Meanchey,791,Serei Saophoan,1524,165,15,5,1,1524_165_15_5,""
476,2017-07-15T00:00:00,"Rice (mixed, low quality) - Retail",KG,cereals and tubers,1933.3333,KHR,Cambodia,Banteay Meanchey,791,Serei Saophoan,1524,165,15,5,1,1524_165_15_5,""
477,2017-12-15T00:00:00,"Rice (mixed, low quality) - Retail",KG,cereals and tubers,1900,KHR,Cambodia,Banteay Meanchey,791,Serei Saophoan,1524,165,15,5,1,1524_165_15_5,""
478,2020-03-15T00:00:00,"Rice (mixed, low quality) - Retail",KG,cereals and tubers,2000,KHR,Cambodia,Banteay Meanchey,791,Serei Saophoan,1524,165,15,5,1,1524_165_15_5,""
479,2020-04-15T00:00:00,"Rice (mixed, low quality) - Retail",KG,cereals and tubers,2450,KHR,Cambodia,Banteay Meanchey,791,Serei Saophoan,1524,165,15,5,1,1524_165_15_5,""
480,2020-05-15T00:00:00,"Rice (mixed, low quality) - Retail",KG,cereals and tubers,2350,KHR,Cambodia,Banteay Meanchey,791,Serei Saophoan,1524,165,15,5,1,1524_165_15_5,""
481,2020-06-15T00:00:00,"Rice (mixed, low quality) - Retail",KG,cereals and tubers,2700,KHR,Cambodia,Banteay Meanchey,791,Serei Saophoan,1524,165,15,5,1,1524_165_15_5,""
482,2020-07-15T00:00:00,"Rice (mixed, low quality) - Retail",KG,cereals and tubers,2700,KHR,Cambodia,Banteay Meanchey,791,Serei Saophoan,1524,165,15,5,1,1524_165_15_5,""
483,2013-04-15T00:00:00,Wage (non-qualified labour) - Retail,Day,non-food,17500,KHR,Cambodia,Banteay Meanchey,791,Serei Saophoan,1524,277,15,51,8,1524_277_15_51,""
484,2013-05-15T00:00:00,Wage (non-qualified labour) - Retail,Day,non-food,21000,KHR,Cambodia,Banteay Meanchey,791,Serei Saophoan,1524,277,15,51,8,1524_277_15_51,""
485,2013-06-15T00:00:00,Wage (non-qualified labour) - Retail,Day,non-food,20000,KHR,Cambodia,Banteay Meanchey,791,Serei Saophoan,1524,277,15,51,8,1524_277_15_51,""
486,2013-07-15T00:00:00,Wage (non-qualified labour) - Retail,Day,non-food,16000,KHR,Cambodia,Banteay Meanchey,791,Serei Saophoan,1524,277,15,51,8,1524_277_15_51,""
487,2013-08-15T00:00:00,Wage (non-qualified labour) - Retail,Day,non-food,16000,KHR,Cambodia,Banteay Meanchey,791,Serei Saophoan,1524,277,15,51,8,1524_277_15_51,""
488,2013-09-15T00:00:00,Wage (non-qualified labour) - Retail,Day,non-food,17500,KHR,Cambodia,Banteay Meanchey,791,Serei Saophoan,1524,277,15,51,8,1524_277_15_51,""
489,2013-10-15T00:00:00,Wage (non-qualified labour) - Retail,Day,non-food,16500,KHR,Cambodia,Banteay Meanchey,791,Serei Saophoan,1524,277,15,51,8,1524_277_15_51,""
490,2013-11-15T00:00:00,Wage (non-qualified labour) - Retail,Day,non-food,16000,KHR,Cambodia,Banteay Meanchey,791,Serei Saophoan,1524,277,15,51,8,1524_277_15_51,""
491,2013-12-15T00:00:00,Wage (non-qualified labour) - Retail,Day,non-food,16500,KHR,Cambodia,Banteay Meanchey,791,Serei Saophoan,1524,277,15,51,8,1524_277_15_51,""
492,2014-01-15T00:00:00,Wage (non-qualified labour) - Retail,Day,non-food,16500,KHR,Cambodia,Banteay Meanchey,791,Serei Saophoan,1524,277,15,51,8,1524_277_15_51,""
493,2014-02-15T00:00:00,Wage (non-qualified labour) - Retail,Day,non-food,21000,KHR,Cambodia,Banteay Meanchey,791,Serei Saophoan,1524,277,15,51,8,1524_277_15_51,""
494,2014-03-15T00:00:00,Wage (non-qualified labour) - Retail,Day,non-food,21500,KHR,Cambodia,Banteay Meanchey,791,Serei Saophoan,1524,277,15,51,8,1524_277_15_51,""
495,2014-04-15T00:00:00,Wage (non-qualified labour) - Retail,Day,non-food,21500,KHR,Cambodia,Banteay Meanchey,791,Serei Saophoan,1524,277,15,51,8,1524_277_15_51,""
496,2014-05-15T00:00:00,Wage (non-qualified labour) - Retail,Day,non-food,23000,KHR,Cambodia,Banteay Meanchey,791,Serei Saophoan,1524,277,15,51,8,1524_277_15_51,""
497,2014-06-15T00:00:00,Wage (non-qualified labour) - Retail,Day,non-food,20750,KHR,Cambodia,Banteay Meanchey,791,Serei Saophoan,1524,277,15,51,8,1524_277_15_51,""
498,2014-07-15T00:00:00,Wage (non-qualified labour) - Retail,Day,non-food,20750,KHR,Cambodia,Banteay Meanchey,791,Serei Saophoan,1524,277,15,51,8,1524_277_15_51,""
499,2014-08-15T00:00:00,Wage (non-qualified labour) - Retail,Day,non-food,21500,KHR,Cambodia,Banteay Meanchey,791,Serei Saophoan,1524,277,15,51,8,1524_277_15_51,""
500,2014-09-15T00:00:00,Wage (non-qualified labour) - Retail,Day,non-food,21500,KHR,Cambodia,Banteay Meanchey,791,Serei Saophoan,1524,277,15,51,8,1524_277_15_51,""
501,2014-10-15T00:00:00,Wage (non-qualified labour) - Retail,Day,non-food,24000,KHR,Cambodia,Banteay Meanchey,791,Serei Saophoan,1524,277,15,51,8,1524_277_15_51,""
502,2014-11-15T00:00:00,Wage (non-qualified labour) - Retail,Day,non-food,24000,KHR,Cambodia,Banteay Meanchey,791,Serei Saophoan,1524,277,15,51,8,1524_277_15_51,""
503,2014-12-15T00:00:00,Wage (non-qualified labour) - Retail,Day,non-food,22500,KHR,Cambodia,Banteay Meanchey,791,Serei Saophoan,1524,277,15,51,8,1524_277_15_51,""
504,2015-01-15T00:00:00,Wage (non-qualified labour) - Retail,Day,non-food,25500,KHR,Cambodia,Banteay Meanchey,791,Serei Saophoan,1524,277,15,51,8,1524_277_15_51,""
505,2015-02-15T00:00:00,Wage (non-qualified labour) - Retail,Day,non-food,27000,KHR,Cambodia,Banteay Meanchey,791,Serei Saophoan,1524,277,15,51,8,1524_277_15_51,""
506,2015-03-15T00:00:00,Wage (non-qualified labour) - Retail,Day,non-food,22500,KHR,Cambodia,Banteay Meanchey,791,Serei Saophoan,1524,277,15,51,8,1524_277_15_51,""
507,2015-04-15T00:00:00,Wage (non-qualified labour) - Retail,Day,non-food,22500,KHR,Cambodia,Banteay Meanchey,791,Serei Saophoan,1524,277,15,51,8,1524_277_15_51,""
508,2015-05-15T00:00:00,Wage (non-qualified labour) - Retail,Day,non-food,22500,KHR,Cambodia,Banteay Meanchey,791,Serei Saophoan,1524,277,15,51,8,1524_277_15_51,""
509,2015-06-15T00:00:00,Wage (non-qualified labour) - Retail,Day,non-food,22500,KHR,Cambodia,Banteay Meanchey,791,Serei Saophoan,1524,277,15,51,8,1524_277_15_51,""
510,2015-07-15T00:00:00,Wage (non-qualified labour) - Retail,Day,non-food,22500,KHR,Cambodia,Banteay Meanchey,791,Serei Saophoan,1524,277,15,51,8,1524_277_15_51,""
511,2015-08-15T00:00:00,Wage (non-qualified labour) - Retail,Day,non-food,22500,KHR,Cambodia,Banteay Meanchey,791,Serei Saophoan,1524,277,15,51,8,1524_277_15_51,""
512,2015-09-15T00:00:00,Wage (non-qualified labour) - Retail,Day,non-food,22500,KHR,Cambodia,Banteay Meanchey,791,Serei Saophoan,1524,277,15,51,8,1524_277_15_51,""
513,2015-10-15T00:00:00,Wage (non-qualified labour) - Retail,Day,non-food,22500,KHR,Cambodia,Banteay Meanchey,791,Serei Saophoan,1524,277,15,51,8,1524_277_15_51,""
514,2015-11-15T00:00:00,Wage (non-qualified labour) - Retail,Day,non-food,22500,KHR,Cambodia,Banteay Meanchey,791,Serei Saophoan,1524,277,15,51,8,1524_277_15_51,""
515,2015-12-15T00:00:00,Wage (non-qualified labour) - Retail,Day,non-food,22500,KHR,Cambodia,Banteay Meanchey,791,Serei Saophoan,1524,277,15,51,8,1524_277_15_51,""
516,2016-01-15T00:00:00,Wage (non-qualified labour) - Retail,Day,non-food,20333.3333,KHR,Cambodia,Banteay Meanchey,791,Serei Saophoan,1524,277,15,51,8,1524_277_15_51,""
517,2016-02-15T00:00:00,Wage (non-qualified labour) - Retail,Day,non-food,21000,KHR,Cambodia,Banteay Meanchey,791,Serei Saophoan,1524,277,15,51,8,1524_277_15_51,""
518,2016-03-15T00:00:00,Wage (non-qualified labour) - Retail,Day,non-food,21000,KHR,Cambodia,Banteay Meanchey,791,Serei Saophoan,1524,277,15,51,8,1524_277_15_51,""
519,2016-04-15T00:00:00,Wage (non-qualified labour) - Retail,Day,non-food,21000,KHR,Cambodia,Banteay Meanchey,791,Serei Saophoan,1524,277,15,51,8,1524_277_15_51,""
520,2016-05-15T00:00:00,Wage (non-qualified labour) - Retail,Day,non-food,21000,KHR,Cambodia,Banteay Meanchey,791,Serei Saophoan,1524,277,15,51,8,1524_277_15_51,""
521,2016-06-15T00:00:00,Wage (non-qualified labour) - Retail,Day,non-food,21000,KHR,Cambodia,Banteay Meanchey,791,Serei Saophoan,1524,277,15,51,8,1524_277_15_51,""
522,2016-07-15T00:00:00,Wage (non-qualified labour) - Retail,Day,non-food,21000,KHR,Cambodia,Banteay Meanchey,791,Serei Saophoan,1524,277,15,51,8,1524_277_15_51,""
523,2016-08-15T00:00:00,Wage (non-qualified labour) - Retail,Day,non-food,21000,KHR,Cambodia,Banteay Meanchey,791,Serei Saophoan,1524,277,15,51,8,1524_277_15_51,""
524,2016-09-15T00:00:00,Wage (non-qualified labour) - Retail,Day,non-food,21000,KHR,Cambodia,Banteay Meanchey,791,Serei Saophoan,1524,277,15,51,8,1524_277_15_51,""
525,2016-11-15T00:00:00,Wage (non-qualified labour) - Retail,Day,non-food,21000,KHR,Cambodia,Banteay Meanchey,791,Serei Saophoan,1524,277,15,51,8,1524_277_15_51,""
526,2016-12-15T00:00:00,Wage (non-qualified labour) - Retail,Day,non-food,21000,KHR,Cambodia,Banteay Meanchey,791,Serei Saophoan,1524,277,15,51,8,1524_277_15_51,""
527,2017-01-15T00:00:00,Wage (non-qualified labour) - Retail,Day,non-food,21000,KHR,Cambodia,Banteay Meanchey,791,Serei Saophoan,1524,277,15,51,8,1524_277_15_51,""
528,2017-02-15T00:00:00,Wage (non-qualified labour) - Retail,Day,non-food,21000,KHR,Cambodia,Banteay Meanchey,791,Serei Saophoan,1524,277,15,51,8,1524_277_15_51,""
529,2017-03-15T00:00:00,Wage (non-qualified labour) - Retail,Day,non-food,21500,KHR,Cambodia,Banteay Meanchey,791,Serei Saophoan,1524,277,15,51,8,1524_277_15_51,""
530,2017-05-15T00:00:00,Wage (non-qualified labour) - Retail,Day,non-food,21500,KHR,Cambodia,Banteay Meanchey,791,Serei Saophoan,1524,277,15,51,8,1524_277_15_51,""
531,2017-06-15T00:00:00,Wage (non-qualified labour) - Retail,Day,non-food,21500,KHR,Cambodia,Banteay Meanchey,791,Serei Saophoan,1524,277,15,51,8,1524_277_15_51,""
532,2017-07-15T00:00:00,Wage (non-qualified labour) - Retail,Day,non-food,21500,KHR,Cambodia,Banteay Meanchey,791,Serei Saophoan,1524,277,15,51,8,1524_277_15_51,""
533,2017-12-15T00:00:00,Wage (non-qualified labour) - Retail,Day,non-food,22500,KHR,Cambodia,Banteay Meanchey,791,Serei Saophoan,1524,277,15,51,8,1524_277_15_51,""
534,2020-03-15T00:00:00,Fish (snake head) - Wholesale,KG,"meat, fish and eggs",8667,KHR,Cambodia,Banteay Meanchey,791,Serei Saophoan,1524,309,14,5,2,1524_309_14_5,""
535,2020-04-15T00:00:00,Fish (snake head) - Wholesale,KG,"meat, fish and eggs",8500,KHR,Cambodia,Banteay Meanchey,791,Serei Saophoan,1524,309,14,5,2,1524_309_14_5,""
536,2020-05-15T00:00:00,Fish (snake head) - Wholesale,KG,"meat, fish and eggs",9500,KHR,Cambodia,Banteay Meanchey,791,Serei Saophoan,1524,309,14,5,2,1524_309_14_5,""
537,2020-06-15T00:00:00,Fish (snake head) - Wholesale,KG,"meat, fish and eggs",8500,KHR,Cambodia,Banteay Meanchey,791,Serei Saophoan,1524,309,14,5,2,1524_309_14_5,""
538,2020-03-15T00:00:00,Fish (snake head) - Retail,KG,"meat, fish and eggs",11667,KHR,Cambodia,Banteay Meanchey,791,Serei Saophoan,1524,309,15,5,2,1524_309_15_5,""
539,2020-04-15T00:00:00,Fish (snake head) - Retail,KG,"meat, fish and eggs",9000,KHR,Cambodia,Banteay Meanchey,791,Serei Saophoan,1524,309,15,5,2,1524_309_15_5,""
540,2020-05-15T00:00:00,Fish (snake head) - Retail,KG,"meat, fish and eggs",10000,KHR,Cambodia,Banteay Meanchey,791,Serei Saophoan,1524,309,15,5,2,1524_309_15_5,""
541,2020-06-15T00:00:00,Fish (snake head) - Retail,KG,"meat, fish and eggs",9000,KHR,Cambodia,Banteay Meanchey,791,Serei Saophoan,1524,309,15,5,2,1524_309_15_5,""
542,2020-03-15T00:00:00,Fish (catfish) - Wholesale,KG,"meat, fish and eggs",8333,KHR,Cambodia,Banteay Meanchey,791,Serei Saophoan,1524,310,14,5,2,1524_310_14_5,""
543,2020-04-15T00:00:00,Fish (catfish) - Wholesale,KG,"meat, fish and eggs",6000,KHR,Cambodia,Banteay Meanchey,791,Serei Saophoan,1524,310,14,5,2,1524_310_14_5,""
544,2020-06-15T00:00:00,Fish (catfish) - Wholesale,KG,"meat, fish and eggs",7000,KHR,Cambodia,Banteay Meanchey,791,Serei Saophoan,1524,310,14,5,2,1524_310_14_5,""
545,2020-03-15T00:00:00,Fish (catfish) - Retail,KG,"meat, fish and eggs",9833,KHR,Cambodia,Banteay Meanchey,791,Serei Saophoan,1524,310,15,5,2,1524_310_15_5,""
546,2020-04-15T00:00:00,Fish (catfish) - Retail,KG,"meat, fish and eggs",6500,KHR,Cambodia,Banteay Meanchey,791,Serei Saophoan,1524,310,15,5,2,1524_310_15_5,""
547,2020-06-15T00:00:00,Fish (catfish) - Retail,KG,"meat, fish and eggs",7000,KHR,Cambodia,Banteay Meanchey,791,Serei Saophoan,1524,310,15,5,2,1524_310_15_5,""
548,2020-03-15T00:00:00,"Meat (pork, with fat) - Wholesale",KG,"meat, fish and eggs",17833,KHR,Cambodia,Banteay Meanchey,791,Serei Saophoan,1524,329,14,5,2,1524_329_14_5,""
549,2014-12-15T00:00:00,"Meat (pork, with fat) - Retail",KG,"meat, fish and eggs",18000,KHR,Cambodia,Banteay Meanchey,791,Serei Saophoan,1524,329,15,5,2,1524_329_15_5,""
550,2015-01-15T00:00:00,"Meat (pork, with fat) - Retail",KG,"meat, fish and eggs",17000,KHR,Cambodia,Banteay Meanchey,791,Serei Saophoan,1524,329,15,5,2,1524_329_15_5,""
551,2015-02-15T00:00:00,"Meat (pork, with fat) - Retail",KG,"meat, fish and eggs",16000,KHR,Cambodia,Banteay Meanchey,791,Serei Saophoan,1524,329,15,5,2,1524_329_15_5,""
552,2015-03-15T00:00:00,"Meat (pork, with fat) - Retail",KG,"meat, fish and eggs",16000,KHR,Cambodia,Banteay Meanchey,791,Serei Saophoan,1524,329,15,5,2,1524_329_15_5,""
553,2015-04-15T00:00:00,"Meat (pork, with fat) - Retail",KG,"meat, fish and eggs",16000,KHR,Cambodia,Banteay Meanchey,791,Serei Saophoan,1524,329,15,5,2,1524_329_15_5,""
554,2015-05-15T00:00:00,"Meat (pork, with fat) - Retail",KG,"meat, fish and eggs",16000,KHR,Cambodia,Banteay Meanchey,791,Serei Saophoan,1524,329,15,5,2,1524_329_15_5,""
555,2015-06-15T00:00:00,"Meat (pork, with fat) - Retail",KG,"meat, fish and eggs",16000,KHR,Cambodia,Banteay Meanchey,791,Serei Saophoan,1524,329,15,5,2,1524_329_15_5,""
556,2015-07-15T00:00:00,"Meat (pork, with fat) - Retail",KG,"meat, fish and eggs",16000,KHR,Cambodia,Banteay Meanchey,791,Serei Saophoan,1524,329,15,5,2,1524_329_15_5,""
557,2015-08-15T00:00:00,"Meat (pork, with fat) - Retail",KG,"meat, fish and eggs",16000,KHR,Cambodia,Banteay Meanchey,791,Serei Saophoan,1524,329,15,5,2,1524_329_15_5,""
558,2015-09-15T00:00:00,"Meat (pork, with fat) - Retail",KG,"meat, fish and eggs",16000,KHR,Cambodia,Banteay Meanchey,791,Serei Saophoan,1524,329,15,5,2,1524_329_15_5,""
559,2015-10-15T00:00:00,"Meat (pork, with fat) - Retail",KG,"meat, fish and eggs",16000,KHR,Cambodia,Banteay Meanchey,791,Serei Saophoan,1524,329,15,5,2,1524_329_15_5,""
560,2015-11-15T00:00:00,"Meat (pork, with fat) - Retail",KG,"meat, fish and eggs",16000,KHR,Cambodia,Banteay Meanchey,791,Serei Saophoan,1524,329,15,5,2,1524_329_15_5,""
561,2015-12-15T00:00:00,"Meat (pork, with fat) - Retail",KG,"meat, fish and eggs",16000,KHR,Cambodia,Banteay Meanchey,791,Serei Saophoan,1524,329,15,5,2,1524_329_15_5,""
562,2016-01-15T00:00:00,"Meat (pork, with fat) - Retail",KG,"meat, fish and eggs",14000,KHR,Cambodia,Banteay Meanchey,791,Serei Saophoan,1524,329,15,5,2,1524_329_15_5,""
563,2016-02-15T00:00:00,"Meat (pork, with fat) - Retail",KG,"meat, fish and eggs",15000,KHR,Cambodia,Banteay Meanchey,791,Serei Saophoan,1524,329,15,5,2,1524_329_15_5,""
564,2016-03-15T00:00:00,"Meat (pork, with fat) - Retail",KG,"meat, fish and eggs",13666.6667,KHR,Cambodia,Banteay Meanchey,791,Serei Saophoan,1524,329,15,5,2,1524_329_15_5,""
565,2016-04-15T00:00:00,"Meat (pork, with fat) - Retail",KG,"meat, fish and eggs",15000,KHR,Cambodia,Banteay Meanchey,791,Serei Saophoan,1524,329,15,5,2,1524_329_15_5,""
566,2016-05-15T00:00:00,"Meat (pork, with fat) - Retail",KG,"meat, fish and eggs",16333.3333,KHR,Cambodia,Banteay Meanchey,791,Serei Saophoan,1524,329,15,5,2,1524_329_15_5,""
567,2016-06-15T00:00:00,"Meat (pork, with fat) - Retail",KG,"meat, fish and eggs",16000,KHR,Cambodia,Banteay Meanchey,791,Serei Saophoan,1524,329,15,5,2,1524_329_15_5,""
568,2016-07-15T00:00:00,"Meat (pork, with fat) - Retail",KG,"meat, fish and eggs",15000,KHR,Cambodia,Banteay Meanchey,791,Serei Saophoan,1524,329,15,5,2,1524_329_15_5,""
569,2016-08-15T00:00:00,"Meat (pork, with fat) - Retail",KG,"meat, fish and eggs",15000,KHR,Cambodia,Banteay Meanchey,791,Serei Saophoan,1524,329,15,5,2,1524_329_15_5,""
570,2016-09-15T00:00:00,"Meat (pork, with fat) - Retail",KG,"meat, fish and eggs",14666.6667,KHR,Cambodia,Banteay Meanchey,791,Serei Saophoan,1524,329,15,5,2,1524_329_15_5,""
571,2016-11-15T00:00:00,"Meat (pork, with fat) - Retail",KG,"meat, fish and eggs",14333.3333,KHR,Cambodia,Banteay Meanchey,791,Serei Saophoan,1524,329,15,5,2,1524_329_15_5,""
572,2016-12-15T00:00:00,"Meat (pork, with fat) - Retail",KG,"meat, fish and eggs",14000,KHR,Cambodia,Banteay Meanchey,791,Serei Saophoan,1524,329,15,5,2,1524_329_15_5,""
573,2017-01-15T00:00:00,"Meat (pork, with fat) - Retail",KG,"meat, fish and eggs",13000,KHR,Cambodia,Banteay Meanchey,791,Serei Saophoan,1524,329,15,5,2,1524_329_15_5,""
574,2017-02-15T00:00:00,"Meat (pork, with fat) - Retail",KG,"meat, fish and eggs",13000,KHR,Cambodia,Banteay Meanchey,791,Serei Saophoan,1524,329,15,5,2,1524_329_15_5,""
575,2017-03-15T00:00:00,"Meat (pork, with fat) - Retail",KG,"meat, fish and eggs",13333.3333,KHR,Cambodia,Banteay Meanchey,791,Serei Saophoan,1524,329,15,5,2,1524_329_15_5,""
576,2017-05-15T00:00:00,"Meat (pork, with fat) - Retail",KG,"meat, fish and eggs",13666.6667,KHR,Cambodia,Banteay Meanchey,791,Serei Saophoan,1524,329,15,5,2,1524_329_15_5,""
577,2017-06-15T00:00:00,"Meat (pork, with fat) - Retail",KG,"meat, fish and eggs",13500,KHR,Cambodia,Banteay Meanchey,791,Serei Saophoan,1524,329,15,5,2,1524_329_15_5,""
578,2017-07-15T00:00:00,"Meat (pork, with fat) - Retail",KG,"meat, fish and eggs",13333.3333,KHR,Cambodia,Banteay Meanchey,791,Serei Saophoan,1524,329,15,5,2,1524_329_15_5,""
579,2017-12-15T00:00:00,"Meat (pork, with fat) - Retail",KG,"meat, fish and eggs",11666.6667,KHR,Cambodia,Banteay Meanchey,791,Serei Saophoan,1524,329,15,5,2,1524_329_15_5,""
580,2020-03-15T00:00:00,"Meat (pork, with fat) - Retail",KG,"meat, fish and eggs",20000,KHR,Cambodia,Banteay Meanchey,791,Serei Saophoan,1524,329,15,5,2,1524_329_15_5,""
581,2020-03-15T00:00:00,Salt (iodised) - Wholesale,KG,miscellaneous food,2000,KHR,Cambodia,Banteay Meanchey,791,Serei Saophoan,1524,334,14,5,7,1524_334_14_5,""
582,2020-03-15T00:00:00,Salt (iodised) - Retail,KG,miscellaneous food,2500,KHR,Cambodia,Banteay Meanchey,791,Serei Saophoan,1524,334,15,5,7,1524_334_15_5,""
583,2020-03-15T00:00:00,Eggplants - Wholesale,KG,vegetables and fruits,1433,KHR,Cambodia,Banteay Meanchey,791,Serei Saophoan,1524,434,14,5,4,1524_434_14_5,""
584,2020-04-15T00:00:00,Eggplants - Wholesale,KG,vegetables and fruits,1650,KHR,Cambodia,Banteay Meanchey,791,Serei Saophoan,1524,434,14,5,4,1524_434_14_5,""
585,2020-05-15T00:00:00,Eggplants - Wholesale,KG,vegetables and fruits,1700,KHR,Cambodia,Banteay Meanchey,791,Serei Saophoan,1524,434,14,5,4,1524_434_14_5,""
586,2020-06-15T00:00:00,Eggplants - Wholesale,KG,vegetables and fruits,1966.5,KHR,Cambodia,Banteay Meanchey,791,Serei Saophoan,1524,434,14,5,4,1524_434_14_5,""
587,2020-07-15T00:00:00,Eggplants - Wholesale,KG,vegetables and fruits,1500,KHR,Cambodia,Banteay Meanchey,791,Serei Saophoan,1524,434,14,5,4,1524_434_14_5,""
588,2020-03-15T00:00:00,Eggplants - Retail,KG,vegetables and fruits,1867,KHR,Cambodia,Banteay Meanchey,791,Serei Saophoan,1524,434,15,5,4,1524_434_15_5,""
589,2020-04-15T00:00:00,Eggplants - Retail,KG,vegetables and fruits,2000,KHR,Cambodia,Banteay Meanchey,791,Serei Saophoan,1524,434,15,5,4,1524_434_15_5,""
590,2020-05-15T00:00:00,Eggplants - Retail,KG,vegetables and fruits,1950,KHR,Cambodia,Banteay Meanchey,791,Serei Saophoan,1524,434,15,5,4,1524_434_15_5,""
591,2020-06-15T00:00:00,Eggplants - Retail,KG,vegetables and fruits,2166.5,KHR,Cambodia,Banteay Meanchey,791,Serei Saophoan,1524,434,15,5,4,1524_434_15_5,""
592,2020-07-15T00:00:00,Eggplants - Retail,KG,vegetables and fruits,1800,KHR,Cambodia,Banteay Meanchey,791,Serei Saophoan,1524,434,15,5,4,1524_434_15_5,""
593,2020-03-15T00:00:00,Snake gourd - Wholesale,KG,vegetables and fruits,1667,KHR,Cambodia,Banteay Meanchey,791,Serei Saophoan,1524,675,14,5,4,1524_675_14_5,""
594,2020-05-15T00:00:00,Snake gourd - Wholesale,KG,vegetables and fruits,1750,KHR,Cambodia,Banteay Meanchey,791,Serei Saophoan,1524,675,14,5,4,1524_675_14_5,""
595,2020-06-15T00:00:00,Snake gourd - Wholesale,KG,vegetables and fruits,1525,KHR,Cambodia,Banteay Meanchey,791,Serei Saophoan,1524,675,14,5,4,1524_675_14_5,""
596,2020-03-15T00:00:00,Snake gourd - Retail,KG,vegetables and fruits,2000,KHR,Cambodia,Banteay Meanchey,791,Serei Saophoan,1524,675,15,5,4,1524_675_15_5,""
597,2020-05-15T00:00:00,Snake gourd - Retail,KG,vegetables and fruits,2450,KHR,Cambodia,Banteay Meanchey,791,Serei Saophoan,1524,675,15,5,4,1524_675_15_5,""
598,2020-06-15T00:00:00,Snake gourd - Retail,KG,vegetables and fruits,1875,KHR,Cambodia,Banteay Meanchey,791,Serei Saophoan,1524,675,15,5,4,1524_675_15_5,""
599,2020-03-15T00:00:00,"Cabbage (chinese, flowering) - Wholesale",KG,vegetables and fruits,3600,KHR,Cambodia,Banteay Meanchey,791,Serei Saophoan,1524,784,14,5,4,1524_784_14_5,""
600,2020-04-15T00:00:00,"Cabbage (chinese, flowering) - Wholesale",KG,vegetables and fruits,2500,KHR,Cambodia,Banteay Meanchey,791,Serei Saophoan,1524,784,14,5,4,1524_784_14_5,""
601,2020-05-15T00:00:00,"Cabbage (chinese, flowering) - Wholesale",KG,vegetables and fruits,1358.5,KHR,Cambodia,Banteay Meanchey,791,Serei Saophoan,1524,784,14,5,4,1524_784_14_5,""
602,2020-06-15T00:00:00,"Cabbage (chinese, flowering) - Wholesale",KG,vegetables and fruits,2272.3333,KHR,Cambodia,Banteay Meanchey,791,Serei Saophoan,1524,784,14,5,4,1524_784_14_5,""
603,2020-07-15T00:00:00,"Cabbage (chinese, flowering) - Wholesale",KG,vegetables and fruits,1800,KHR,Cambodia,Banteay Meanchey,791,Serei Saophoan,1524,784,14,5,4,1524_784_14_5,""
604,2020-03-15T00:00:00,"Cabbage (chinese, flowering) - Retail",KG,vegetables and fruits,4000,KHR,Cambodia,Banteay Meanchey,791,Serei Saophoan,1524,784,15,5,4,1524_784_15_5,""
605,2020-04-15T00:00:00,"Cabbage (chinese, flowering) - Retail",KG,vegetables and fruits,3000,KHR,Cambodia,Banteay Meanchey,791,Serei Saophoan,1524,784,15,5,4,1524_784_15_5,""
606,2020-05-15T00:00:00,"Cabbage (chinese, flowering) - Retail",KG,vegetables and fruits,1616.5,KHR,Cambodia,Banteay Meanchey,791,Serei Saophoan,1524,784,15,5,4,1524_784_15_5,""
607,2020-06-15T00:00:00,"Cabbage (chinese, flowering) - Retail",KG,vegetables and fruits,2750,KHR,Cambodia,Banteay Meanchey,791,Serei Saophoan,1524,784,15,5,4,1524_784_15_5,""
608,2020-07-15T00:00:00,"Cabbage (chinese, flowering) - Retail",KG,vegetables and fruits,2000,KHR,Cambodia,Banteay Meanchey,791,Serei Saophoan,1524,784,15,5,4,1524_784_15_5,""
609,2020-03-15T00:00:00,"Fish (snake head, dry) - Wholesale",KG,"meat, fish and eggs",29667,KHR,Cambodia,Banteay Meanchey,791,Serei Saophoan,1524,785,14,5,2,1524_785_14_5,""
610,2020-04-15T00:00:00,"Fish (snake head, dry) - Wholesale",KG,"meat, fish and eggs",23000,KHR,Cambodia,Banteay Meanchey,791,Serei Saophoan,1524,785,14,5,2,1524_785_14_5,""
611,2020-05-15T00:00:00,"Fish (snake head, dry) - Wholesale",KG,"meat, fish and eggs",25000,KHR,Cambodia,Banteay Meanchey,791,Serei Saophoan,1524,785,14,5,2,1524_785_14_5,""
612,2020-06-15T00:00:00,"Fish (snake head, dry) - Wholesale",KG,"meat, fish and eggs",23000,KHR,Cambodia,Banteay Meanchey,791,Serei Saophoan,1524,785,14,5,2,1524_785_14_5,""
613,2020-03-15T00:00:00,"Fish (snake head, dry) - Retail",KG,"meat, fish and eggs",33333,KHR,Cambodia,Banteay Meanchey,791,Serei Saophoan,1524,785,15,5,2,1524_785_15_5,""
614,2020-04-15T00:00:00,"Fish (snake head, dry) - Retail",KG,"meat, fish and eggs",25000,KHR,Cambodia,Banteay Meanchey,791,Serei Saophoan,1524,785,15,5,2,1524_785_15_5,""
615,2020-05-15T00:00:00,"Fish (snake head, dry) - Retail",KG,"meat, fish and eggs",25000,KHR,Cambodia,Banteay Meanchey,791,Serei Saophoan,1524,785,15,5,2,1524_785_15_5,""
616,2020-06-15T00:00:00,"Fish (snake head, dry) - Retail",KG,"meat, fish and eggs",25000,KHR,Cambodia,Banteay Meanchey,791,Serei Saophoan,1524,785,15,5,2,1524_785_15_5,""
617,2020-03-15T00:00:00,Eggs (duck) - Wholesale,10 pcs,"meat, fish and eggs",5333,KHR,Cambodia,Banteay Meanchey,791,Serei Saophoan,1524,786,14,81,2,1524_786_14_81,""
618,2020-04-15T00:00:00,Eggs (duck) - Wholesale,10 pcs,"meat, fish and eggs",5000,KHR,Cambodia,Banteay Meanchey,791,Serei Saophoan,1524,786,14,81,2,1524_786_14_81,""
619,2020-03-15T00:00:00,Eggs (duck) - Retail,10 pcs,"meat, fish and eggs",6167,KHR,Cambodia,Banteay Meanchey,791,Serei Saophoan,1524,786,15,81,2,1524_786_15_81,""
620,2020-04-15T00:00:00,Eggs (duck) - Retail,10 pcs,"meat, fish and eggs",5000,KHR,Cambodia,Banteay Meanchey,791,Serei Saophoan,1524,786,15,81,2,1524_786_15_81,""
621,2020-03-15T00:00:00,"Beans (yardlong, green) - Wholesale",KG,vegetables and fruits,4833,KHR,Cambodia,Banteay Meanchey,791,Serei Saophoan,1524,787,14,5,4,1524_787_14_5,""
622,2020-04-15T00:00:00,"Beans (yardlong, green) - Wholesale",KG,vegetables and fruits,2500,KHR,Cambodia,Banteay Meanchey,791,Serei Saophoan,1524,787,14,5,4,1524_787_14_5,""
623,2020-05-15T00:00:00,"Beans (yardlong, green) - Wholesale",KG,vegetables and fruits,6741.5,KHR,Cambodia,Banteay Meanchey,791,Serei Saophoan,1524,787,14,5,4,1524_787_14_5,""
624,2020-06-15T00:00:00,"Beans (yardlong, green) - Wholesale",KG,vegetables and fruits,3666.6667,KHR,Cambodia,Banteay Meanchey,791,Serei Saophoan,1524,787,14,5,4,1524_787_14_5,""
625,2020-07-15T00:00:00,"Beans (yardlong, green) - Wholesale",KG,vegetables and fruits,2000,KHR,Cambodia,Banteay Meanchey,791,Serei Saophoan,1524,787,14,5,4,1524_787_14_5,""
626,2020-03-15T00:00:00,"Beans (yardlong, green) - Retail",KG,vegetables and fruits,5333,KHR,Cambodia,Banteay Meanchey,791,Serei Saophoan,1524,787,15,5,4,1524_787_15_5,""
627,2020-04-15T00:00:00,"Beans (yardlong, green) - Retail",KG,vegetables and fruits,2500,KHR,Cambodia,Banteay Meanchey,791,Serei Saophoan,1524,787,15,5,4,1524_787_15_5,""
628,2020-05-15T00:00:00,"Beans (yardlong, green) - Retail",KG,vegetables and fruits,7375,KHR,Cambodia,Banteay Meanchey,791,Serei Saophoan,1524,787,15,5,4,1524_787_15_5,""
629,2020-06-15T00:00:00,"Beans (yardlong, green) - Retail",KG,vegetables and fruits,4222.3333,KHR,Cambodia,Banteay Meanchey,791,Serei Saophoan,1524,787,15,5,4,1524_787_15_5,""
630,2020-07-15T00:00:00,"Beans (yardlong, green) - Retail",KG,vegetables and fruits,2500,KHR,Cambodia,Banteay Meanchey,791,Serei Saophoan,1524,787,15,5,4,1524_787_15_5,""
631,2020-03-15T00:00:00,Water spinach - Wholesale,KG,vegetables and fruits,1933,KHR,Cambodia,Banteay Meanchey,791,Serei Saophoan,1524,788,14,5,4,1524_788_14_5,""
632,2020-04-15T00:00:00,Water spinach - Wholesale,KG,vegetables and fruits,1100,KHR,Cambodia,Banteay Meanchey,791,Serei Saophoan,1524,788,14,5,4,1524_788_14_5,""
633,2020-05-15T00:00:00,Water spinach - Wholesale,KG,vegetables and fruits,1000,KHR,Cambodia,Banteay Meanchey,791,Serei Saophoan,1524,788,14,5,4,1524_788_14_5,""
634,2020-06-15T00:00:00,Water spinach - Wholesale,KG,vegetables and fruits,977.6667,KHR,Cambodia,Banteay Meanchey,791,Serei Saophoan,1524,788,14,5,4,1524_788_14_5,""
635,2020-07-15T00:00:00,Water spinach - Wholesale,KG,vegetables and fruits,1500,KHR,Cambodia,Banteay Meanchey,791,Serei Saophoan,1524,788,14,5,4,1524_788_14_5,""
636,2020-03-15T00:00:00,Water spinach - Retail,KG,vegetables and fruits,2500,KHR,Cambodia,Banteay Meanchey,791,Serei Saophoan,1524,788,15,5,4,1524_788_15_5,""
637,2020-04-15T00:00:00,Water spinach - Retail,KG,vegetables and fruits,1267,KHR,Cambodia,Banteay Meanchey,791,Serei Saophoan,1524,788,15,5,4,1524_788_15_5,""
638,2020-05-15T00:00:00,Water spinach - Retail,KG,vegetables and fruits,1166.5,KHR,Cambodia,Banteay Meanchey,791,Serei Saophoan,1524,788,15,5,4,1524_788_15_5,""
639,2020-06-15T00:00:00,Water spinach - Retail,KG,vegetables and fruits,1361,KHR,Cambodia,Banteay Meanchey,791,Serei Saophoan,1524,788,15,5,4,1524_788_15_5,""
640,2020-07-15T00:00:00,Water spinach - Retail,KG,vegetables and fruits,1800,KHR,Cambodia,Banteay Meanchey,791,Serei Saophoan,1524,788,15,5,4,1524_788_15_5,""
641,2020-03-15T00:00:00,"Eggs (duck, fermented) - Wholesale",10 pcs,"meat, fish and eggs",6000,KHR,Cambodia,Banteay Meanchey,791,Serei Saophoan,1524,789,14,81,2,1524_789_14_81,""
642,2020-03-15T00:00:00,"Eggs (duck, fermented) - Retail",10 pcs,"meat, fish and eggs",7000,KHR,Cambodia,Banteay Meanchey,791,Serei Saophoan,1524,789,15,81,2,1524_789_15_81,""
643,2020-03-15T00:00:00,Fish (striped catfish) - Wholesale,KG,"meat, fish and eggs",5000,KHR,Cambodia,Banteay Meanchey,791,Serei Saophoan,1524,790,14,5,2,1524_790_14_5,""
644,2020-04-15T00:00:00,Fish (striped catfish) - Wholesale,KG,"meat, fish and eggs",6000,KHR,Cambodia,Banteay Meanchey,791,Serei Saophoan,1524,790,14,5,2,1524_790_14_5,""
645,2020-06-15T00:00:00,Fish (striped catfish) - Wholesale,KG,"meat, fish and eggs",6250,KHR,Cambodia,Banteay Meanchey,791,Serei Saophoan,1524,790,14,5,2,1524_790_14_5,""
646,2020-03-15T00:00:00,Fish (striped catfish) - Retail,KG,"meat, fish and eggs",7000,KHR,Cambodia,Banteay Meanchey,791,Serei Saophoan,1524,790,15,5,2,1524_790_15_5,""
647,2020-04-15T00:00:00,Fish (striped catfish) - Retail,KG,"meat, fish and eggs",6500,KHR,Cambodia,Banteay Meanchey,791,Serei Saophoan,1524,790,15,5,2,1524_790_15_5,""
648,2020-06-15T00:00:00,Fish (striped catfish) - Retail,KG,"meat, fish and eggs",6500,KHR,Cambodia,Banteay Meanchey,791,Serei Saophoan,1524,790,15,5,2,1524_790_15_5,""
649,2020-03-15T00:00:00,Wax gourd - Wholesale,KG,vegetables and fruits,3500,KHR,Cambodia,Banteay Meanchey,791,Serei Saophoan,1524,791,14,5,4,1524_791_14_5,""
650,2020-04-15T00:00:00,Wax gourd - Wholesale,KG,vegetables and fruits,1800,KHR,Cambodia,Banteay Meanchey,791,Serei Saophoan,1524,791,14,5,4,1524_791_14_5,""
651,2020-05-15T00:00:00,Wax gourd - Wholesale,KG,vegetables and fruits,1875,KHR,Cambodia,Banteay Meanchey,791,Serei Saophoan,1524,791,14,5,4,1524_791_14_5,""
652,2020-06-15T00:00:00,Wax gourd - Wholesale,KG,vegetables and fruits,2039,KHR,Cambodia,Banteay Meanchey,791,Serei Saophoan,1524,791,14,5,4,1524_791_14_5,""
653,2020-07-15T00:00:00,Wax gourd - Wholesale,KG,vegetables and fruits,1500,KHR,Cambodia,Banteay Meanchey,791,Serei Saophoan,1524,791,14,5,4,1524_791_14_5,""
654,2020-03-15T00:00:00,Wax gourd - Retail,KG,vegetables and fruits,3933,KHR,Cambodia,Banteay Meanchey,791,Serei Saophoan,1524,791,15,5,4,1524_791_15_5,""
655,2020-04-15T00:00:00,Wax gourd - Retail,KG,vegetables and fruits,2000,KHR,Cambodia,Banteay Meanchey,791,Serei Saophoan,1524,791,15,5,4,1524_791_15_5,""
656,2020-05-15T00:00:00,Wax gourd - Retail,KG,vegetables and fruits,2175,KHR,Cambodia,Banteay Meanchey,791,Serei Saophoan,1524,791,15,5,4,1524_791_15_5,""
657,2020-06-15T00:00:00,Wax gourd - Retail,KG,vegetables and fruits,2500,KHR,Cambodia,Banteay Meanchey,791,Serei Saophoan,1524,791,15,5,4,1524_791_15_5,""
658,2020-07-15T00:00:00,Wax gourd - Retail,KG,vegetables and fruits,1800,KHR,Cambodia,Banteay Meanchey,791,Serei Saophoan,1524,791,15,5,4,1524_791_15_5,""
659,2014-12-15T00:00:00,Oil (vegetable) - Retail,KG,oil and fats,5500,KHR,Cambodia,Banteay Meanchey,791,Thma Puok,1525,96,15,5,6,1525_96_15_5,""
660,2015-01-15T00:00:00,Oil (vegetable) - Retail,KG,oil and fats,6000,KHR,Cambodia,Banteay Meanchey,791,Thma Puok,1525,96,15,5,6,1525_96_15_5,""
661,2015-02-15T00:00:00,Oil (vegetable) - Retail,KG,oil and fats,6000,KHR,Cambodia,Banteay Meanchey,791,Thma Puok,1525,96,15,5,6,1525_96_15_5,""
662,2015-03-15T00:00:00,Oil (vegetable) - Retail,KG,oil and fats,6000,KHR,Cambodia,Banteay Meanchey,791,Thma Puok,1525,96,15,5,6,1525_96_15_5,""
663,2015-04-15T00:00:00,Oil (vegetable) - Retail,KG,oil and fats,6000,KHR,Cambodia,Banteay Meanchey,791,Thma Puok,1525,96,15,5,6,1525_96_15_5,""
664,2015-05-15T00:00:00,Oil (vegetable) - Retail,KG,oil and fats,6000,KHR,Cambodia,Banteay Meanchey,791,Thma Puok,1525,96,15,5,6,1525_96_15_5,""
665,2015-06-15T00:00:00,Oil (vegetable) - Retail,KG,oil and fats,6000,KHR,Cambodia,Banteay Meanchey,791,Thma Puok,1525,96,15,5,6,1525_96_15_5,""
666,2015-07-15T00:00:00,Oil (vegetable) - Retail,KG,oil and fats,6000,KHR,Cambodia,Banteay Meanchey,791,Thma Puok,1525,96,15,5,6,1525_96_15_5,""
667,2015-08-15T00:00:00,Oil (vegetable) - Retail,KG,oil and fats,6000,KHR,Cambodia,Banteay Meanchey,791,Thma Puok,1525,96,15,5,6,1525_96_15_5,""
668,2015-09-15T00:00:00,Oil (vegetable) - Retail,KG,oil and fats,6000,KHR,Cambodia,Banteay Meanchey,791,Thma Puok,1525,96,15,5,6,1525_96_15_5,""
669,2015-10-15T00:00:00,Oil (vegetable) - Retail,KG,oil and fats,6000,KHR,Cambodia,Banteay Meanchey,791,Thma Puok,1525,96,15,5,6,1525_96_15_5,""
670,2015-11-15T00:00:00,Oil (vegetable) - Retail,KG,oil and fats,6000,KHR,Cambodia,Banteay Meanchey,791,Thma Puok,1525,96,15,5,6,1525_96_15_5,""
671,2015-12-15T00:00:00,Oil (vegetable) - Retail,KG,oil and fats,6000,KHR,Cambodia,Banteay Meanchey,791,Thma Puok,1525,96,15,5,6,1525_96_15_5,""
672,2016-01-15T00:00:00,Oil (vegetable) - Retail,KG,oil and fats,6000,KHR,Cambodia,Banteay Meanchey,791,Thma Puok,1525,96,15,5,6,1525_96_15_5,""
673,2016-02-15T00:00:00,Oil (vegetable) - Retail,KG,oil and fats,6666.6667,KHR,Cambodia,Banteay Meanchey,791,Thma Puok,1525,96,15,5,6,1525_96_15_5,""
674,2016-03-15T00:00:00,Oil (vegetable) - Retail,KG,oil and fats,5500,KHR,Cambodia,Banteay Meanchey,791,Thma Puok,1525,96,15,5,6,1525_96_15_5,""
675,2016-04-15T00:00:00,Oil (vegetable) - Retail,KG,oil and fats,5166.6667,KHR,Cambodia,Banteay Meanchey,791,Thma Puok,1525,96,15,5,6,1525_96_15_5,""
676,2016-05-15T00:00:00,Oil (vegetable) - Retail,KG,oil and fats,5500,KHR,Cambodia,Banteay Meanchey,791,Thma Puok,1525,96,15,5,6,1525_96_15_5,""
677,2016-06-15T00:00:00,Oil (vegetable) - Retail,KG,oil and fats,5500,KHR,Cambodia,Banteay Meanchey,791,Thma Puok,1525,96,15,5,6,1525_96_15_5,""
678,2016-07-15T00:00:00,Oil (vegetable) - Retail,KG,oil and fats,6044,KHR,Cambodia,Banteay Meanchey,791,Thma Puok,1525,96,15,5,6,1525_96_15_5,""
679,2016-09-15T00:00:00,Oil (vegetable) - Retail,KG,oil and fats,6593,KHR,Cambodia,Banteay Meanchey,791,Thma Puok,1525,96,15,5,6,1525_96_15_5,""
680,2016-11-15T00:00:00,Oil (vegetable) - Retail,KG,oil and fats,6227.1062,KHR,Cambodia,Banteay Meanchey,791,Thma Puok,1525,96,15,5,6,1525_96_15_5,""
681,2016-12-15T00:00:00,Oil (vegetable) - Retail,KG,oil and fats,6227.1062,KHR,Cambodia,Banteay Meanchey,791,Thma Puok,1525,96,15,5,6,1525_96_15_5,""
682,2017-01-15T00:00:00,Oil (vegetable) - Retail,KG,oil and fats,5460,KHR,Cambodia,Banteay Meanchey,791,Thma Puok,1525,96,15,5,6,1525_96_15_5,""
683,2017-03-15T00:00:00,Oil (vegetable) - Retail,KG,oil and fats,5849.304,KHR,Cambodia,Banteay Meanchey,791,Thma Puok,1525,96,15,5,6,1525_96_15_5,""
684,2017-05-15T00:00:00,Oil (vegetable) - Retail,KG,oil and fats,6043.9707,KHR,Cambodia,Banteay Meanchey,791,Thma Puok,1525,96,15,5,6,1525_96_15_5,""
685,2017-11-15T00:00:00,Oil (vegetable) - Retail,KG,oil and fats,5329.9737,KHR,Cambodia,Banteay Meanchey,791,Thma Puok,1525,96,15,5,6,1525_96_15_5,""
686,2017-12-15T00:00:00,Oil (vegetable) - Retail,KG,oil and fats,5000.91,KHR,Cambodia,Banteay Meanchey,791,Thma Puok,1525,96,15,5,6,1525_96_15_5,""
687,2013-04-15T00:00:00,"Rice (mixed, low quality) - Retail",KG,cereals and tubers,2033.3333,KHR,Cambodia,Banteay Meanchey,791,Thma Puok,1525,165,15,5,1,1525_165_15_5,""
688,2013-05-15T00:00:00,"Rice (mixed, low quality) - Retail",KG,cereals and tubers,2000,KHR,Cambodia,Banteay Meanchey,791,Thma Puok,1525,165,15,5,1,1525_165_15_5,""
689,2013-06-15T00:00:00,"Rice (mixed, low quality) - Retail",KG,cereals and tubers,2000,KHR,Cambodia,Banteay Meanchey,791,Thma Puok,1525,165,15,5,1,1525_165_15_5,""
690,2013-07-15T00:00:00,"Rice (mixed, low quality) - Retail",KG,cereals and tubers,2000,KHR,Cambodia,Banteay Meanchey,791,Thma Puok,1525,165,15,5,1,1525_165_15_5,""
691,2013-08-15T00:00:00,"Rice (mixed, low quality) - Retail",KG,cereals and tubers,2050,KHR,Cambodia,Banteay Meanchey,791,Thma Puok,1525,165,15,5,1,1525_165_15_5,""
692,2013-09-15T00:00:00,"Rice (mixed, low quality) - Retail",KG,cereals and tubers,2000,KHR,Cambodia,Banteay Meanchey,791,Thma Puok,1525,165,15,5,1,1525_165_15_5,""
693,2013-10-15T00:00:00,"Rice (mixed, low quality) - Retail",KG,cereals and tubers,2050,KHR,Cambodia,Banteay Meanchey,791,Thma Puok,1525,165,15,5,1,1525_165_15_5,""
694,2013-11-15T00:00:00,"Rice (mixed, low quality) - Retail",KG,cereals and tubers,2000,KHR,Cambodia,Banteay Meanchey,791,Thma Puok,1525,165,15,5,1,1525_165_15_5,""
695,2013-12-15T00:00:00,"Rice (mixed, low quality) - Retail",KG,cereals and tubers,2000,KHR,Cambodia,Banteay Meanchey,791,Thma Puok,1525,165,15,5,1,1525_165_15_5,""
696,2014-01-15T00:00:00,"Rice (mixed, low quality) - Retail",KG,cereals and tubers,2000,KHR,Cambodia,Banteay Meanchey,791,Thma Puok,1525,165,15,5,1,1525_165_15_5,""
697,2014-02-15T00:00:00,"Rice (mixed, low quality) - Retail",KG,cereals and tubers,1900,KHR,Cambodia,Banteay Meanchey,791,Thma Puok,1525,165,15,5,1,1525_165_15_5,""
698,2014-03-15T00:00:00,"Rice (mixed, low quality) - Retail",KG,cereals and tubers,1800,KHR,Cambodia,Banteay Meanchey,791,Thma Puok,1525,165,15,5,1,1525_165_15_5,""
699,2014-04-15T00:00:00,"Rice (mixed, low quality) - Retail",KG,cereals and tubers,2000,KHR,Cambodia,Banteay Meanchey,791,Thma Puok,1525,165,15,5,1,1525_165_15_5,""
700,2014-05-15T00:00:00,"Rice (mixed, low quality) - Retail",KG,cereals and tubers,2000,KHR,Cambodia,Banteay Meanchey,791,Thma Puok,1525,165,15,5,1,1525_165_15_5,""
701,2014-06-15T00:00:00,"Rice (mixed, low quality) - Retail",KG,cereals and tubers,2000,KHR,Cambodia,Banteay Meanchey,791,Thma Puok,1525,165,15,5,1,1525_165_15_5,""
702,2014-07-15T00:00:00,"Rice (mixed, low quality) - Retail",KG,cereals and tubers,2000,KHR,Cambodia,Banteay Meanchey,791,Thma Puok,1525,165,15,5,1,1525_165_15_5,""
703,2014-08-15T00:00:00,"Rice (mixed, low quality) - Retail",KG,cereals and tubers,2000,KHR,Cambodia,Banteay Meanchey,791,Thma Puok,1525,165,15,5,1,1525_165_15_5,""
704,2014-09-15T00:00:00,"Rice (mixed, low quality) - Retail",KG,cereals and tubers,2300,KHR,Cambodia,Banteay Meanchey,791,Thma Puok,1525,165,15,5,1,1525_165_15_5,""
705,2014-10-15T00:00:00,"Rice (mixed, low quality) - Retail",KG,cereals and tubers,2000,KHR,Cambodia,Banteay Meanchey,791,Thma Puok,1525,165,15,5,1,1525_165_15_5,""
706,2014-11-15T00:00:00,"Rice (mixed, low quality) - Retail",KG,cereals and tubers,2000,KHR,Cambodia,Banteay Meanchey,791,Thma Puok,1525,165,15,5,1,1525_165_15_5,""
707,2014-12-15T00:00:00,"Rice (mixed, low quality) - Retail",KG,cereals and tubers,2000,KHR,Cambodia,Banteay Meanchey,791,Thma Puok,1525,165,15,5,1,1525_165_15_5,""
708,2015-01-15T00:00:00,"Rice (mixed, low quality) - Retail",KG,cereals and tubers,2000,KHR,Cambodia,Banteay Meanchey,791,Thma Puok,1525,165,15,5,1,1525_165_15_5,""
709,2015-02-15T00:00:00,"Rice (mixed, low quality) - Retail",KG,cereals and tubers,2000,KHR,Cambodia,Banteay Meanchey,791,Thma Puok,1525,165,15,5,1,1525_165_15_5,""
710,2015-03-15T00:00:00,"Rice (mixed, low quality) - Retail",KG,cereals and tubers,2000,KHR,Cambodia,Banteay Meanchey,791,Thma Puok,1525,165,15,5,1,1525_165_15_5,""
711,2015-04-15T00:00:00,"Rice (mixed, low quality) - Retail",KG,cereals and tubers,2000,KHR,Cambodia,Banteay Meanchey,791,Thma Puok,1525,165,15,5,1,1525_165_15_5,""
712,2015-05-15T00:00:00,"Rice (mixed, low quality) - Retail",KG,cereals and tubers,2000,KHR,Cambodia,Banteay Meanchey,791,Thma Puok,1525,165,15,5,1,1525_165_15_5,""
713,2015-06-15T00:00:00,"Rice (mixed, low quality) - Retail",KG,cereals and tubers,2000,KHR,Cambodia,Banteay Meanchey,791,Thma Puok,1525,165,15,5,1,1525_165_15_5,""
714,2015-07-15T00:00:00,"Rice (mixed, low quality) - Retail",KG,cereals and tubers,1800,KHR,Cambodia,Banteay Meanchey,791,Thma Puok,1525,165,15,5,1,1525_165_15_5,""
715,2015-08-15T00:00:00,"Rice (mixed, low quality) - Retail",KG,cereals and tubers,1800,KHR,Cambodia,Banteay Meanchey,791,Thma Puok,1525,165,15,5,1,1525_165_15_5,""
716,2015-09-15T00:00:00,"Rice (mixed, low quality) - Retail",KG,cereals and tubers,1800,KHR,Cambodia,Banteay Meanchey,791,Thma Puok,1525,165,15,5,1,1525_165_15_5,""
717,2015-10-15T00:00:00,"Rice (mixed, low quality) - Retail",KG,cereals and tubers,1800,KHR,Cambodia,Banteay Meanchey,791,Thma Puok,1525,165,15,5,1,1525_165_15_5,""
718,2015-11-15T00:00:00,"Rice (mixed, low quality) - Retail",KG,cereals and tubers,1800,KHR,Cambodia,Banteay Meanchey,791,Thma Puok,1525,165,15,5,1,1525_165_15_5,""
719,2015-12-15T00:00:00,"Rice (mixed, low quality) - Retail",KG,cereals and tubers,1800,KHR,Cambodia,Banteay Meanchey,791,Thma Puok,1525,165,15,5,1,1525_165_15_5,""
720,2016-01-15T00:00:00,"Rice (mixed, low quality) - Retail",KG,cereals and tubers,1800,KHR,Cambodia,Banteay Meanchey,791,Thma Puok,1525,165,15,5,1,1525_165_15_5,""
721,2016-02-15T00:00:00,"Rice (mixed, low quality) - Retail",KG,cereals and tubers,2000,KHR,Cambodia,Banteay Meanchey,791,Thma Puok,1525,165,15,5,1,1525_165_15_5,""
722,2016-03-15T00:00:00,"Rice (mixed, low quality) - Retail",KG,cereals and tubers,2000,KHR,Cambodia,Banteay Meanchey,791,Thma Puok,1525,165,15,5,1,1525_165_15_5,""
723,2016-04-15T00:00:00,"Rice (mixed, low quality) - Retail",KG,cereals and tubers,2000,KHR,Cambodia,Banteay Meanchey,791,Thma Puok,1525,165,15,5,1,1525_165_15_5,""
724,2016-05-15T00:00:00,"Rice (mixed, low quality) - Retail",KG,cereals and tubers,2000,KHR,Cambodia,Banteay Meanchey,791,Thma Puok,1525,165,15,5,1,1525_165_15_5,""
725,2016-06-15T00:00:00,"Rice (mixed, low quality) - Retail",KG,cereals and tubers,2000,KHR,Cambodia,Banteay Meanchey,791,Thma Puok,1525,165,15,5,1,1525_165_15_5,""
726,2016-07-15T00:00:00,"Rice (mixed, low quality) - Retail",KG,cereals and tubers,2000,KHR,Cambodia,Banteay Meanchey,791,Thma Puok,1525,165,15,5,1,1525_165_15_5,""
727,2016-08-15T00:00:00,"Rice (mixed, low quality) - Retail",KG,cereals and tubers,2000,KHR,Cambodia,Banteay Meanchey,791,Thma Puok,1525,165,15,5,1,1525_165_15_5,""
728,2016-09-15T00:00:00,"Rice (mixed, low quality) - Retail",KG,cereals and tubers,2000,KHR,Cambodia,Banteay Meanchey,791,Thma Puok,1525,165,15,5,1,1525_165_15_5,""
729,2016-11-15T00:00:00,"Rice (mixed, low quality) - Retail",KG,cereals and tubers,1933.3333,KHR,Cambodia,Banteay Meanchey,791,Thma Puok,1525,165,15,5,1,1525_165_15_5,""
730,2016-12-15T00:00:00,"Rice (mixed, low quality) - Retail",KG,cereals and tubers,1833.3333,KHR,Cambodia,Banteay Meanchey,791,Thma Puok,1525,165,15,5,1,1525_165_15_5,""
731,2017-01-15T00:00:00,"Rice (mixed, low quality) - Retail",KG,cereals and tubers,2000,KHR,Cambodia,Banteay Meanchey,791,Thma Puok,1525,165,15,5,1,1525_165_15_5,""
732,2017-03-15T00:00:00,"Rice (mixed, low quality) - Retail",KG,cereals and tubers,2000,KHR,Cambodia,Banteay Meanchey,791,Thma Puok,1525,165,15,5,1,1525_165_15_5,""
733,2017-05-15T00:00:00,"Rice (mixed, low quality) - Retail",KG,cereals and tubers,2000,KHR,Cambodia,Banteay Meanchey,791,Thma Puok,1525,165,15,5,1,1525_165_15_5,""
734,2017-12-15T00:00:00,"Rice (mixed, low quality) - Retail",KG,cereals and tubers,2000,KHR,Cambodia,Banteay Meanchey,791,Thma Puok,1525,165,15,5,1,1525_165_15_5,""
735,2013-04-15T00:00:00,Wage (non-qualified labour) - Retail,Day,non-food,17800,KHR,Cambodia,Banteay Meanchey,791,Thma Puok,1525,277,15,51,8,1525_277_15_51,""
736,2013-05-15T00:00:00,Wage (non-qualified labour) - Retail,Day,non-food,20000,KHR,Cambodia,Banteay Meanchey,791,Thma Puok,1525,277,15,51,8,1525_277_15_51,""
737,2013-06-15T00:00:00,Wage (non-qualified labour) - Retail,Day,non-food,17500,KHR,Cambodia,Banteay Meanchey,791,Thma Puok,1525,277,15,51,8,1525_277_15_51,""
738,2013-07-15T00:00:00,Wage (non-qualified labour) - Retail,Day,non-food,18500,KHR,Cambodia,Banteay Meanchey,791,Thma Puok,1525,277,15,51,8,1525_277_15_51,""
739,2013-08-15T00:00:00,Wage (non-qualified labour) - Retail,Day,non-food,16000,KHR,Cambodia,Banteay Meanchey,791,Thma Puok,1525,277,15,51,8,1525_277_15_51,""
740,2013-09-15T00:00:00,Wage (non-qualified labour) - Retail,Day,non-food,17000,KHR,Cambodia,Banteay Meanchey,791,Thma Puok,1525,277,15,51,8,1525_277_15_51,""
741,2013-10-15T00:00:00,Wage (non-qualified labour) - Retail,Day,non-food,16500,KHR,Cambodia,Banteay Meanchey,791,Thma Puok,1525,277,15,51,8,1525_277_15_51,""
742,2013-11-15T00:00:00,Wage (non-qualified labour) - Retail,Day,non-food,15500,KHR,Cambodia,Banteay Meanchey,791,Thma Puok,1525,277,15,51,8,1525_277_15_51,""
743,2013-12-15T00:00:00,Wage (non-qualified labour) - Retail,Day,non-food,18250,KHR,Cambodia,Banteay Meanchey,791,Thma Puok,1525,277,15,51,8,1525_277_15_51,""
744,2014-01-15T00:00:00,Wage (non-qualified labour) - Retail,Day,non-food,19000,KHR,Cambodia,Banteay Meanchey,791,Thma Puok,1525,277,15,51,8,1525_277_15_51,""
745,2014-02-15T00:00:00,Wage (non-qualified labour) - Retail,Day,non-food,25000,KHR,Cambodia,Banteay Meanchey,791,Thma Puok,1525,277,15,51,8,1525_277_15_51,""
746,2014-03-15T00:00:00,Wage (non-qualified labour) - Retail,Day,non-food,22500,KHR,Cambodia,Banteay Meanchey,791,Thma Puok,1525,277,15,51,8,1525_277_15_51,""
747,2014-04-15T00:00:00,Wage (non-qualified labour) - Retail,Day,non-food,21000,KHR,Cambodia,Banteay Meanchey,791,Thma Puok,1525,277,15,51,8,1525_277_15_51,""
748,2014-05-15T00:00:00,Wage (non-qualified labour) - Retail,Day,non-food,21500,KHR,Cambodia,Banteay Meanchey,791,Thma Puok,1525,277,15,51,8,1525_277_15_51,""
749,2014-06-15T00:00:00,Wage (non-qualified labour) - Retail,Day,non-food,20750,KHR,Cambodia,Banteay Meanchey,791,Thma Puok,1525,277,15,51,8,1525_277_15_51,""
750,2014-07-15T00:00:00,Wage (non-qualified labour) - Retail,Day,non-food,20750,KHR,Cambodia,Banteay Meanchey,791,Thma Puok,1525,277,15,51,8,1525_277_15_51,""
751,2014-08-15T00:00:00,Wage (non-qualified labour) - Retail,Day,non-food,20750,KHR,Cambodia,Banteay Meanchey,791,Thma Puok,1525,277,15,51,8,1525_277_15_51,""
752,2014-09-15T00:00:00,Wage (non-qualified labour) - Retail,Day,non-food,20750,KHR,Cambodia,Banteay Meanchey,791,Thma Puok,1525,277,15,51,8,1525_277_15_51,""
753,2014-10-15T00:00:00,Wage (non-qualified labour) - Retail,Day,non-food,21250,KHR,Cambodia,Banteay Meanchey,791,Thma Puok,1525,277,15,51,8,1525_277_15_51,""
754,2014-11-15T00:00:00,Wage (non-qualified labour) - Retail,Day,non-food,21250,KHR,Cambodia,Banteay Meanchey,791,Thma Puok,1525,277,15,51,8,1525_277_15_51,""
755,2015-01-15T00:00:00,Wage (non-qualified labour) - Retail,Day,non-food,21250,KHR,Cambodia,Banteay Meanchey,791,Thma Puok,1525,277,15,51,8,1525_277_15_51,""
756,2015-02-15T00:00:00,Wage (non-qualified labour) - Retail,Day,non-food,23000,KHR,Cambodia,Banteay Meanchey,791,Thma Puok,1525,277,15,51,8,1525_277_15_51,""
757,2015-03-15T00:00:00,Wage (non-qualified labour) - Retail,Day,non-food,21333.3333,KHR,Cambodia,Banteay Meanchey,791,Thma Puok,1525,277,15,51,8,1525_277_15_51,""
758,2015-04-15T00:00:00,Wage (non-qualified labour) - Retail,Day,non-food,21333.3333,KHR,Cambodia,Banteay Meanchey,791,Thma Puok,1525,277,15,51,8,1525_277_15_51,""
759,2015-05-15T00:00:00,Wage (non-qualified labour) - Retail,Day,non-food,21333.3333,KHR,Cambodia,Banteay Meanchey,791,Thma Puok,1525,277,15,51,8,1525_277_15_51,""
760,2015-06-15T00:00:00,Wage (non-qualified labour) - Retail,Day,non-food,21333.3333,KHR,Cambodia,Banteay Meanchey,791,Thma Puok,1525,277,15,51,8,1525_277_15_51,""
761,2015-07-15T00:00:00,Wage (non-qualified labour) - Retail,Day,non-food,20208.3333,KHR,Cambodia,Banteay Meanchey,791,Thma Puok,1525,277,15,51,8,1525_277_15_51,""
762,2015-08-15T00:00:00,Wage (non-qualified labour) - Retail,Day,non-food,20083.3333,KHR,Cambodia,Banteay Meanchey,791,Thma Puok,1525,277,15,51,8,1525_277_15_51,""
763,2015-09-15T00:00:00,Wage (non-qualified labour) - Retail,Day,non-food,20083.3333,KHR,Cambodia,Banteay Meanchey,791,Thma Puok,1525,277,15,51,8,1525_277_15_51,""
764,2015-10-15T00:00:00,Wage (non-qualified labour) - Retail,Day,non-food,20083.3333,KHR,Cambodia,Banteay Meanchey,791,Thma Puok,1525,277,15,51,8,1525_277_15_51,""
765,2015-11-15T00:00:00,Wage (non-qualified labour) - Retail,Day,non-food,19000,KHR,Cambodia,Banteay Meanchey,791,Thma Puok,1525,277,15,51,8,1525_277_15_51,""
766,2015-12-15T00:00:00,Wage (non-qualified labour) - Retail,Day,non-food,19000,KHR,Cambodia,Banteay Meanchey,791,Thma Puok,1525,277,15,51,8,1525_277_15_51,""
767,2016-01-15T00:00:00,Wage (non-qualified labour) - Retail,Day,non-food,19666.6667,KHR,Cambodia,Banteay Meanchey,791,Thma Puok,1525,277,15,51,8,1525_277_15_51,""
768,2016-02-15T00:00:00,Wage (non-qualified labour) - Retail,Day,non-food,21500,KHR,Cambodia,Banteay Meanchey,791,Thma Puok,1525,277,15,51,8,1525_277_15_51,""
769,2016-03-15T00:00:00,Wage (non-qualified labour) - Retail,Day,non-food,20500,KHR,Cambodia,Banteay Meanchey,791,Thma Puok,1525,277,15,51,8,1525_277_15_51,""
770,2016-04-15T00:00:00,Wage (non-qualified labour) - Retail,Day,non-food,21000,KHR,Cambodia,Banteay Meanchey,791,Thma Puok,1525,277,15,51,8,1525_277_15_51,""
771,2016-05-15T00:00:00,Wage (non-qualified labour) - Retail,Day,non-food,20500,KHR,Cambodia,Banteay Meanchey,791,Thma Puok,1525,277,15,51,8,1525_277_15_51,""
772,2016-06-15T00:00:00,Wage (non-qualified labour) - Retail,Day,non-food,20500,KHR,Cambodia,Banteay Meanchey,791,Thma Puok,1525,277,15,51,8,1525_277_15_51,""
773,2016-07-15T00:00:00,Wage (non-qualified labour) - Retail,Day,non-food,21000,KHR,Cambodia,Banteay Meanchey,791,Thma Puok,1525,277,15,51,8,1525_277_15_51,""
774,2016-08-15T00:00:00,Wage (non-qualified labour) - Retail,Day,non-food,21000,KHR,Cambodia,Banteay Meanchey,791,Thma Puok,1525,277,15,51,8,1525_277_15_51,""
775,2016-09-15T00:00:00,Wage (non-qualified labour) - Retail,Day,non-food,25000,KHR,Cambodia,Banteay Meanchey,791,Thma Puok,1525,277,15,51,8,1525_277_15_51,""
776,2016-11-15T00:00:00,Wage (non-qualified labour) - Retail,Day,non-food,20000,KHR,Cambodia,Banteay Meanchey,791,Thma Puok,1525,277,15,51,8,1525_277_15_51,""
777,2016-12-15T00:00:00,Wage (non-qualified labour) - Retail,Day,non-food,20000,KHR,Cambodia,Banteay Meanchey,791,Thma Puok,1525,277,15,51,8,1525_277_15_51,""
778,2017-01-15T00:00:00,Wage (non-qualified labour) - Retail,Day,non-food,20000,KHR,Cambodia,Banteay Meanchey,791,Thma Puok,1525,277,15,51,8,1525_277_15_51,""
779,2017-03-15T00:00:00,Wage (non-qualified labour) - Retail,Day,non-food,20000,KHR,Cambodia,Banteay Meanchey,791,Thma Puok,1525,277,15,51,8,1525_277_15_51,""
780,2017-11-15T00:00:00,Wage (non-qualified labour) - Retail,Day,non-food,25000,KHR,Cambodia,Banteay Meanchey,791,Thma Puok,1525,277,15,51,8,1525_277_15_51,""
781,2014-12-15T00:00:00,"Meat (pork, with fat) - Retail",KG,"meat, fish and eggs",17000,KHR,Cambodia,Banteay Meanchey,791,Thma Puok,1525,329,15,5,2,1525_329_15_5,""
782,2015-01-15T00:00:00,"Meat (pork, with fat) - Retail",KG,"meat, fish and eggs",16000,KHR,Cambodia,Banteay Meanchey,791,Thma Puok,1525,329,15,5,2,1525_329_15_5,""
783,2015-02-15T00:00:00,"Meat (pork, with fat) - Retail",KG,"meat, fish and eggs",16000,KHR,Cambodia,Banteay Meanchey,791,Thma Puok,1525,329,15,5,2,1525_329_15_5,""
784,2015-03-15T00:00:00,"Meat (pork, with fat) - Retail",KG,"meat, fish and eggs",15000,KHR,Cambodia,Banteay Meanchey,791,Thma Puok,1525,329,15,5,2,1525_329_15_5,""
785,2015-04-15T00:00:00,"Meat (pork, with fat) - Retail",KG,"meat, fish and eggs",15000,KHR,Cambodia,Banteay Meanchey,791,Thma Puok,1525,329,15,5,2,1525_329_15_5,""
786,2015-05-15T00:00:00,"Meat (pork, with fat) - Retail",KG,"meat, fish and eggs",15000,KHR,Cambodia,Banteay Meanchey,791,Thma Puok,1525,329,15,5,2,1525_329_15_5,""
787,2015-06-15T00:00:00,"Meat (pork, with fat) - Retail",KG,"meat, fish and eggs",15000,KHR,Cambodia,Banteay Meanchey,791,Thma Puok,1525,329,15,5,2,1525_329_15_5,""
788,2015-07-15T00:00:00,"Meat (pork, with fat) - Retail",KG,"meat, fish and eggs",15000,KHR,Cambodia,Banteay Meanchey,791,Thma Puok,1525,329,15,5,2,1525_329_15_5,""
789,2015-08-15T00:00:00,"Meat (pork, with fat) - Retail",KG,"meat, fish and eggs",15000,KHR,Cambodia,Banteay Meanchey,791,Thma Puok,1525,329,15,5,2,1525_329_15_5,""
790,2015-09-15T00:00:00,"Meat (pork, with fat) - Retail",KG,"meat, fish and eggs",15000,KHR,Cambodia,Banteay Meanchey,791,Thma Puok,1525,329,15,5,2,1525_329_15_5,""
791,2015-10-15T00:00:00,"Meat (pork, with fat) - Retail",KG,"meat, fish and eggs",15000,KHR,Cambodia,Banteay Meanchey,791,Thma Puok,1525,329,15,5,2,1525_329_15_5,""
792,2015-11-15T00:00:00,"Meat (pork, with fat) - Retail",KG,"meat, fish and eggs",15000,KHR,Cambodia,Banteay Meanchey,791,Thma Puok,1525,329,15,5,2,1525_329_15_5,""
793,2015-12-15T00:00:00,"Meat (pork, with fat) - Retail",KG,"meat, fish and eggs",15000,KHR,Cambodia,Banteay Meanchey,791,Thma Puok,1525,329,15,5,2,1525_329_15_5,""
794,2016-01-15T00:00:00,"Meat (pork, with fat) - Retail",KG,"meat, fish and eggs",14000,KHR,Cambodia,Banteay Meanchey,791,Thma Puok,1525,329,15,5,2,1525_329_15_5,""
795,2016-02-15T00:00:00,"Meat (pork, with fat) - Retail",KG,"meat, fish and eggs",12666.6667,KHR,Cambodia,Banteay Meanchey,791,Thma Puok,1525,329,15,5,2,1525_329_15_5,""
796,2016-04-15T00:00:00,"Meat (pork, with fat) - Retail",KG,"meat, fish and eggs",15000,KHR,Cambodia,Banteay Meanchey,791,Thma Puok,1525,329,15,5,2,1525_329_15_5,""
797,2016-05-15T00:00:00,"Meat (pork, with fat) - Retail",KG,"meat, fish and eggs",15000,KHR,Cambodia,Banteay Meanchey,791,Thma Puok,1525,329,15,5,2,1525_329_15_5,""
798,2016-06-15T00:00:00,"Meat (pork, with fat) - Retail",KG,"meat, fish and eggs",15000,KHR,Cambodia,Banteay Meanchey,791,Thma Puok,1525,329,15,5,2,1525_329_15_5,""
799,2016-07-15T00:00:00,"Meat (pork, with fat) - Retail",KG,"meat, fish and eggs",15000,KHR,Cambodia,Banteay Meanchey,791,Thma Puok,1525,329,15,5,2,1525_329_15_5,""
800,2016-08-15T00:00:00,"Meat (pork, with fat) - Retail",KG,"meat, fish and eggs",15000,KHR,Cambodia,Banteay Meanchey,791,Thma Puok,1525,329,15,5,2,1525_329_15_5,""
801,2016-09-15T00:00:00,"Meat (pork, with fat) - Retail",KG,"meat, fish and eggs",14000,KHR,Cambodia,Banteay Meanchey,791,Thma Puok,1525,329,15,5,2,1525_329_15_5,""
802,2016-11-15T00:00:00,"Meat (pork, with fat) - Retail",KG,"meat, fish and eggs",14000,KHR,Cambodia,Banteay Meanchey,791,Thma Puok,1525,329,15,5,2,1525_329_15_5,""
803,2016-12-15T00:00:00,"Meat (pork, with fat) - Retail",KG,"meat, fish and eggs",14000,KHR,Cambodia,Banteay Meanchey,791,Thma Puok,1525,329,15,5,2,1525_329_15_5,""
804,2017-01-15T00:00:00,"Meat (pork, with fat) - Retail",KG,"meat, fish and eggs",14000,KHR,Cambodia,Banteay Meanchey,791,Thma Puok,1525,329,15,5,2,1525_329_15_5,""
805,2017-05-15T00:00:00,"Meat (pork, with fat) - Retail",KG,"meat, fish and eggs",14000,KHR,Cambodia,Banteay Meanchey,791,Thma Puok,1525,329,15,5,2,1525_329_15_5,""
806,2017-11-15T00:00:00,"Meat (pork, with fat) - Retail",KG,"meat, fish and eggs",12000,KHR,Cambodia,Banteay Meanchey,791,Thma Puok,1525,329,15,5,2,1525_329_15_5,""
807,2017-12-15T00:00:00,"Meat (pork, with fat) - Retail",KG,"meat, fish and eggs",12000,KHR,Cambodia,Banteay Meanchey,791,Thma Puok,1525,329,15,5,2,1525_329_15_5,""
808,2020-03-15T00:00:00,Oil (vegetable) - Wholesale,5 L,oil and fats,20000,KHR,Cambodia,Banteay Meanchey,791,Phnom Srok,3110,96,14,67,6,3110_96_14_67,""
809,2020-04-15T00:00:00,Oil (vegetable) - Wholesale,5 L,oil and fats,21000,KHR,Cambodia,Banteay Meanchey,791,Phnom Srok,3110,96,14,67,6,3110_96_14_67,""
810,2020-05-15T00:00:00,Oil (vegetable) - Wholesale,5 L,oil and fats,20000,KHR,Cambodia,Banteay Meanchey,791,Phnom Srok,3110,96,14,67,6,3110_96_14_67,""
811,2020-06-15T00:00:00,Oil (vegetable) - Wholesale,5 L,oil and fats,20000,KHR,Cambodia,Banteay Meanchey,791,Phnom Srok,3110,96,14,67,6,3110_96_14_67,""
812,2020-07-15T00:00:00,Oil (vegetable) - Wholesale,5 L,oil and fats,18000,KHR,Cambodia,Banteay Meanchey,791,Phnom Srok,3110,96,14,67,6,3110_96_14_67,""
813,2020-03-15T00:00:00,Oil (vegetable) - Retail,5 L,oil and fats,22000,KHR,Cambodia,Banteay Meanchey,791,Phnom Srok,3110,96,15,67,6,3110_96_15_67,""
814,2020-04-15T00:00:00,Oil (vegetable) - Retail,5 L,oil and fats,21000,KHR,Cambodia,Banteay Meanchey,791,Phnom Srok,3110,96,15,67,6,3110_96_15_67,""
815,2020-05-15T00:00:00,Oil (vegetable) - Retail,5 L,oil and fats,23000,KHR,Cambodia,Banteay Meanchey,791,Phnom Srok,3110,96,15,67,6,3110_96_15_67,""
816,2020-06-15T00:00:00,Oil (vegetable) - Retail,5 L,oil and fats,20500,KHR,Cambodia,Banteay Meanchey,791,Phnom Srok,3110,96,15,67,6,3110_96_15_67,""
817,2020-07-15T00:00:00,Oil (vegetable) - Retail,5 L,oil and fats,20500,KHR,Cambodia,Banteay Meanchey,791,Phnom Srok,3110,96,15,67,6,3110_96_15_67,""
818,2020-03-15T00:00:00,"Rice (mixed, low quality) - Wholesale",KG,cereals and tubers,2000,KHR,Cambodia,Banteay Meanchey,791,Phnom Srok,3110,165,14,5,1,3110_165_14_5,""
819,2020-05-15T00:00:00,"Rice (mixed, low quality) - Wholesale",KG,cereals and tubers,1800,KHR,Cambodia,Banteay Meanchey,791,Phnom Srok,3110,165,14,5,1,3110_165_14_5,""
820,2020-06-15T00:00:00,"Rice (mixed, low quality) - Wholesale",KG,cereals and tubers,1883.3333,KHR,Cambodia,Banteay Meanchey,791,Phnom Srok,3110,165,14,5,1,3110_165_14_5,""
821,2020-07-15T00:00:00,"Rice (mixed, low quality) - Wholesale",KG,cereals and tubers,1950,KHR,Cambodia,Banteay Meanchey,791,Phnom Srok,3110,165,14,5,1,3110_165_14_5,""
822,2020-03-15T00:00:00,"Rice (mixed, low quality) - Retail",KG,cereals and tubers,2233,KHR,Cambodia,Banteay Meanchey,791,Phnom Srok,3110,165,15,5,1,3110_165_15_5,""
823,2020-05-15T00:00:00,"Rice (mixed, low quality) - Retail",KG,cereals and tubers,2000,KHR,Cambodia,Banteay Meanchey,791,Phnom Srok,3110,165,15,5,1,3110_165_15_5,""
824,2020-06-15T00:00:00,"Rice (mixed, low quality) - Retail",KG,cereals and tubers,2000,KHR,Cambodia,Banteay Meanchey,791,Phnom Srok,3110,165,15,5,1,3110_165_15_5,""
825,2020-07-15T00:00:00,"Rice (mixed, low quality) - Retail",KG,cereals and tubers,2100,KHR,Cambodia,Banteay Meanchey,791,Phnom Srok,3110,165,15,5,1,3110_165_15_5,""
826,2020-03-15T00:00:00,Fish (snake head) - Wholesale,KG,"meat, fish and eggs",12167,KHR,Cambodia,Banteay Meanchey,791,Phnom Srok,3110,309,14,5,2,3110_309_14_5,""
827,2020-06-15T00:00:00,Fish (snake head) - Wholesale,KG,"meat, fish and eggs",8500,KHR,Cambodia,Banteay Meanchey,791,Phnom Srok,3110,309,14,5,2,3110_309_14_5,""
828,2020-07-15T00:00:00,Fish (snake head) - Wholesale,KG,"meat, fish and eggs",8500,KHR,Cambodia,Banteay Meanchey,791,Phnom Srok,3110,309,14,5,2,3110_309_14_5,""
829,2020-03-15T00:00:00,Fish (snake head) - Retail,KG,"meat, fish and eggs",13500,KHR,Cambodia,Banteay Meanchey,791,Phnom Srok,3110,309,15,5,2,3110_309_15_5,""
830,2020-06-15T00:00:00,Fish (snake head) - Retail,KG,"meat, fish and eggs",9000,KHR,Cambodia,Banteay Meanchey,791,Phnom Srok,3110,309,15,5,2,3110_309_15_5,""
831,2020-07-15T00:00:00,Fish (snake head) - Retail,KG,"meat, fish and eggs",9000,KHR,Cambodia,Banteay Meanchey,791,Phnom Srok,3110,309,15,5,2,3110_309_15_5,""
832,2020-03-15T00:00:00,Fish (catfish) - Wholesale,KG,"meat, fish and eggs",10000,KHR,Cambodia,Banteay Meanchey,791,Phnom Srok,3110,310,14,5,2,3110_310_14_5,""
833,2020-06-15T00:00:00,Fish (catfish) - Wholesale,KG,"meat, fish and eggs",6500,KHR,Cambodia,Banteay Meanchey,791,Phnom Srok,3110,310,14,5,2,3110_310_14_5,""
834,2020-07-15T00:00:00,Fish (catfish) - Wholesale,KG,"meat, fish and eggs",6500,KHR,Cambodia,Banteay Meanchey,791,Phnom Srok,3110,310,14,5,2,3110_310_14_5,""
835,2020-03-15T00:00:00,Fish (catfish) - Retail,KG,"meat, fish and eggs",10833,KHR,Cambodia,Banteay Meanchey,791,Phnom Srok,3110,310,15,5,2,3110_310_15_5,""
836,2020-06-15T00:00:00,Fish (catfish) - Retail,KG,"meat, fish and eggs",7000,KHR,Cambodia,Banteay Meanchey,791,Phnom Srok,3110,310,15,5,2,3110_310_15_5,""
837,2020-07-15T00:00:00,Fish (catfish) - Retail,KG,"meat, fish and eggs",7000,KHR,Cambodia,Banteay Meanchey,791,Phnom Srok,3110,310,15,5,2,3110_310_15_5,""
838,2020-03-15T00:00:00,"Meat (pork, with fat) - Wholesale",KG,"meat, fish and eggs",18500,KHR,Cambodia,Banteay Meanchey,791,Phnom Srok,3110,329,14,5,2,3110_329_14_5,""
839,2020-04-15T00:00:00,"Meat (pork, with fat) - Wholesale",KG,"meat, fish and eggs",17000,KHR,Cambodia,Banteay Meanchey,791,Phnom Srok,3110,329,14,5,2,3110_329_14_5,""
840,2020-05-15T00:00:00,"Meat (pork, with fat) - Wholesale",KG,"meat, fish and eggs",17000,KHR,Cambodia,Banteay Meanchey,791,Phnom Srok,3110,329,14,5,2,3110_329_14_5,""
841,2020-06-15T00:00:00,"Meat (pork, with fat) - Wholesale",KG,"meat, fish and eggs",19000,KHR,Cambodia,Banteay Meanchey,791,Phnom Srok,3110,329,14,5,2,3110_329_14_5,""
842,2020-07-15T00:00:00,"Meat (pork, with fat) - Wholesale",KG,"meat, fish and eggs",23000,KHR,Cambodia,Banteay Meanchey,791,Phnom Srok,3110,329,14,5,2,3110_329_14_5,""
843,2020-03-15T00:00:00,"Meat (pork, with fat) - Retail",KG,"meat, fish and eggs",20000,KHR,Cambodia,Banteay Meanchey,791,Phnom Srok,3110,329,15,5,2,3110_329_15_5,""
844,2020-04-15T00:00:00,"Meat (pork, with fat) - Retail",KG,"meat, fish and eggs",20000,KHR,Cambodia,Banteay Meanchey,791,Phnom Srok,3110,329,15,5,2,3110_329_15_5,""
845,2020-05-15T00:00:00,"Meat (pork, with fat) - Retail",KG,"meat, fish and eggs",20000,KHR,Cambodia,Banteay Meanchey,791,Phnom Srok,3110,329,15,5,2,3110_329_15_5,""
846,2020-06-15T00:00:00,"Meat (pork, with fat) - Retail",KG,"meat, fish and eggs",22500,KHR,Cambodia,Banteay Meanchey,791,Phnom Srok,3110,329,15,5,2,3110_329_15_5,""
847,2020-07-15T00:00:00,"Meat (pork, with fat) - Retail",KG,"meat, fish and eggs",25000,KHR,Cambodia,Banteay Meanchey,791,Phnom Srok,3110,329,15,5,2,3110_329_15_5,""
848,2020-03-15T00:00:00,Salt (iodised) - Wholesale,KG,miscellaneous food,2200,KHR,Cambodia,Banteay Meanchey,791,Phnom Srok,3110,334,14,5,7,3110_334_14_5,""
849,2020-04-15T00:00:00,Salt (iodised) - Wholesale,KG,miscellaneous food,900,KHR,Cambodia,Banteay Meanchey,791,Phnom Srok,3110,334,14,5,7,3110_334_14_5,""
850,2020-05-15T00:00:00,Salt (iodised) - Wholesale,KG,miscellaneous food,1000,KHR,Cambodia,Banteay Meanchey,791,Phnom Srok,3110,334,14,5,7,3110_334_14_5,""
851,2020-06-15T00:00:00,Salt (iodised) - Wholesale,KG,miscellaneous food,800,KHR,Cambodia,Banteay Meanchey,791,Phnom Srok,3110,334,14,5,7,3110_334_14_5,""
852,2020-07-15T00:00:00,Salt (iodised) - Wholesale,KG,miscellaneous food,800,KHR,Cambodia,Banteay Meanchey,791,Phnom Srok,3110,334,14,5,7,3110_334_14_5,""
853,2020-03-15T00:00:00,Salt (iodised) - Retail,KG,miscellaneous food,2500,KHR,Cambodia,Banteay Meanchey,791,Phnom Srok,3110,334,15,5,7,3110_334_15_5,""
854,2020-04-15T00:00:00,Salt (iodised) - Retail,KG,miscellaneous food,1000,KHR,Cambodia,Banteay Meanchey,791,Phnom Srok,3110,334,15,5,7,3110_334_15_5,""
855,2020-05-15T00:00:00,Salt (iodised) - Retail,KG,miscellaneous food,1000,KHR,Cambodia,Banteay Meanchey,791,Phnom Srok,3110,334,15,5,7,3110_334_15_5,""
856,2020-06-15T00:00:00,Salt (iodised) - Retail,KG,miscellaneous food,1000,KHR,Cambodia,Banteay Meanchey,791,Phnom Srok,3110,334,15,5,7,3110_334_15_5,""
857,2020-07-15T00:00:00,Salt (iodised) - Retail,KG,miscellaneous food,1000,KHR,Cambodia,Banteay Meanchey,791,Phnom Srok,3110,334,15,5,7,3110_334_15_5,""
858,2020-03-15T00:00:00,Eggplants - Wholesale,KG,vegetables and fruits,1600,KHR,Cambodia,Banteay Meanchey,791,Phnom Srok,3110,434,14,5,4,3110_434_14_5,""
859,2020-04-15T00:00:00,Eggplants - Wholesale,KG,vegetables and fruits,2500,KHR,Cambodia,Banteay Meanchey,791,Phnom Srok,3110,434,14,5,4,3110_434_14_5,""
860,2020-05-15T00:00:00,Eggplants - Wholesale,KG,vegetables and fruits,1500,KHR,Cambodia,Banteay Meanchey,791,Phnom Srok,3110,434,14,5,4,3110_434_14_5,""
861,2020-06-15T00:00:00,Eggplants - Wholesale,KG,vegetables and fruits,1766.6667,KHR,Cambodia,Banteay Meanchey,791,Phnom Srok,3110,434,14,5,4,3110_434_14_5,""
862,2020-07-15T00:00:00,Eggplants - Wholesale,KG,vegetables and fruits,1800,KHR,Cambodia,Banteay Meanchey,791,Phnom Srok,3110,434,14,5,4,3110_434_14_5,""
863,2020-03-15T00:00:00,Eggplants - Retail,KG,vegetables and fruits,2000,KHR,Cambodia,Banteay Meanchey,791,Phnom Srok,3110,434,15,5,4,3110_434_15_5,""
864,2020-04-15T00:00:00,Eggplants - Retail,KG,vegetables and fruits,3000,KHR,Cambodia,Banteay Meanchey,791,Phnom Srok,3110,434,15,5,4,3110_434_15_5,""
865,2020-05-15T00:00:00,Eggplants - Retail,KG,vegetables and fruits,2000,KHR,Cambodia,Banteay Meanchey,791,Phnom Srok,3110,434,15,5,4,3110_434_15_5,""
866,2020-06-15T00:00:00,Eggplants - Retail,KG,vegetables and fruits,2166.6667,KHR,Cambodia,Banteay Meanchey,791,Phnom Srok,3110,434,15,5,4,3110_434_15_5,""
867,2020-07-15T00:00:00,Eggplants - Retail,KG,vegetables and fruits,2000,KHR,Cambodia,Banteay Meanchey,791,Phnom Srok,3110,434,15,5,4,3110_434_15_5,""
868,2020-03-15T00:00:00,Snake gourd - Wholesale,KG,vegetables and fruits,1433,KHR,Cambodia,Banteay Meanchey,791,Phnom Srok,3110,675,14,5,4,3110_675_14_5,""
869,2020-07-15T00:00:00,Snake gourd - Wholesale,KG,vegetables and fruits,1800,KHR,Cambodia,Banteay Meanchey,791,Phnom Srok,3110,675,14,5,4,3110_675_14_5,""
870,2020-03-15T00:00:00,Snake gourd - Retail,KG,vegetables and fruits,1833,KHR,Cambodia,Banteay Meanchey,791,Phnom Srok,3110,675,15,5,4,3110_675_15_5,""
871,2020-07-15T00:00:00,Snake gourd - Retail,KG,vegetables and fruits,2000,KHR,Cambodia,Banteay Meanchey,791,Phnom Srok,3110,675,15,5,4,3110_675_15_5,""
872,2020-03-15T00:00:00,"Cabbage (chinese, flowering) - Wholesale",KG,vegetables and fruits,3433,KHR,Cambodia,Banteay Meanchey,791,Phnom Srok,3110,784,14,5,4,3110_784_14_5,""
873,2020-04-15T00:00:00,"Cabbage (chinese, flowering) - Wholesale",KG,vegetables and fruits,3500,KHR,Cambodia,Banteay Meanchey,791,Phnom Srok,3110,784,14,5,4,3110_784_14_5,""
874,2020-05-15T00:00:00,"Cabbage (chinese, flowering) - Wholesale",KG,vegetables and fruits,1350,KHR,Cambodia,Banteay Meanchey,791,Phnom Srok,3110,784,14,5,4,3110_784_14_5,""
875,2020-03-15T00:00:00,"Cabbage (chinese, flowering) - Retail",KG,vegetables and fruits,3767,KHR,Cambodia,Banteay Meanchey,791,Phnom Srok,3110,784,15,5,4,3110_784_15_5,""
876,2020-04-15T00:00:00,"Cabbage (chinese, flowering) - Retail",KG,vegetables and fruits,4000,KHR,Cambodia,Banteay Meanchey,791,Phnom Srok,3110,784,15,5,4,3110_784_15_5,""
877,2020-05-15T00:00:00,"Cabbage (chinese, flowering) - Retail",KG,vegetables and fruits,1750,KHR,Cambodia,Banteay Meanchey,791,Phnom Srok,3110,784,15,5,4,3110_784_15_5,""
878,2020-03-15T00:00:00,"Fish (snake head, dry) - Wholesale",KG,"meat, fish and eggs",25333,KHR,Cambodia,Banteay Meanchey,791,Phnom Srok,3110,785,14,5,2,3110_785_14_5,""
879,2020-06-15T00:00:00,"Fish (snake head, dry) - Wholesale",KG,"meat, fish and eggs",23500,KHR,Cambodia,Banteay Meanchey,791,Phnom Srok,3110,785,14,5,2,3110_785_14_5,""
880,2020-07-15T00:00:00,"Fish (snake head, dry) - Wholesale",KG,"meat, fish and eggs",23000,KHR,Cambodia,Banteay Meanchey,791,Phnom Srok,3110,785,14,5,2,3110_785_14_5,""
881,2020-03-15T00:00:00,"Fish (snake head, dry) - Retail",KG,"meat, fish and eggs",29333,KHR,Cambodia,Banteay Meanchey,791,Phnom Srok,3110,785,15,5,2,3110_785_15_5,""
882,2020-06-15T00:00:00,"Fish (snake head, dry) - Retail",KG,"meat, fish and eggs",27500,KHR,Cambodia,Banteay Meanchey,791,Phnom Srok,3110,785,15,5,2,3110_785_15_5,""
883,2020-07-15T00:00:00,"Fish (snake head, dry) - Retail",KG,"meat, fish and eggs",25000,KHR,Cambodia,Banteay Meanchey,791,Phnom Srok,3110,785,15,5,2,3110_785_15_5,""
884,2020-03-15T00:00:00,Eggs (duck) - Wholesale,10 pcs,"meat, fish and eggs",4600,KHR,Cambodia,Banteay Meanchey,791,Phnom Srok,3110,786,14,81,2,3110_786_14_81,""
885,2020-04-15T00:00:00,Eggs (duck) - Wholesale,10 pcs,"meat, fish and eggs",4500,KHR,Cambodia,Banteay Meanchey,791,Phnom Srok,3110,786,14,81,2,3110_786_14_81,""
886,2020-05-15T00:00:00,Eggs (duck) - Wholesale,10 pcs,"meat, fish and eggs",4500,KHR,Cambodia,Banteay Meanchey,791,Phnom Srok,3110,786,14,81,2,3110_786_14_81,""
887,2020-06-15T00:00:00,Eggs (duck) - Wholesale,10 pcs,"meat, fish and eggs",4000,KHR,Cambodia,Banteay Meanchey,791,Phnom Srok,3110,786,14,81,2,3110_786_14_81,""
888,2020-03-15T00:00:00,Eggs (duck) - Retail,10 pcs,"meat, fish and eggs",5000,KHR,Cambodia,Banteay Meanchey,791,Phnom Srok,3110,786,15,81,2,3110_786_15_81,""
889,2020-04-15T00:00:00,Eggs (duck) - Retail,10 pcs,"meat, fish and eggs",4500,KHR,Cambodia,Banteay Meanchey,791,Phnom Srok,3110,786,15,81,2,3110_786_15_81,""
890,2020-05-15T00:00:00,Eggs (duck) - Retail,10 pcs,"meat, fish and eggs",5000,KHR,Cambodia,Banteay Meanchey,791,Phnom Srok,3110,786,15,81,2,3110_786_15_81,""
891,2020-06-15T00:00:00,Eggs (duck) - Retail,10 pcs,"meat, fish and eggs",4500,KHR,Cambodia,Banteay Meanchey,791,Phnom Srok,3110,786,15,81,2,3110_786_15_81,""
892,2020-03-15T00:00:00,"Beans (yardlong, green) - Wholesale",KG,vegetables and fruits,4867,KHR,Cambodia,Banteay Meanchey,791,Phnom Srok,3110,787,14,5,4,3110_787_14_5,""
893,2020-04-15T00:00:00,"Beans (yardlong, green) - Wholesale",KG,vegetables and fruits,3500,KHR,Cambodia,Banteay Meanchey,791,Phnom Srok,3110,787,14,5,4,3110_787_14_5,""
894,2020-06-15T00:00:00,"Beans (yardlong, green) - Wholesale",KG,vegetables and fruits,2333.3333,KHR,Cambodia,Banteay Meanchey,791,Phnom Srok,3110,787,14,5,4,3110_787_14_5,""
895,2020-07-15T00:00:00,"Beans (yardlong, green) - Wholesale",KG,vegetables and fruits,1800,KHR,Cambodia,Banteay Meanchey,791,Phnom Srok,3110,787,14,5,4,3110_787_14_5,""
896,2020-03-15T00:00:00,"Beans (yardlong, green) - Retail",KG,vegetables and fruits,5267,KHR,Cambodia,Banteay Meanchey,791,Phnom Srok,3110,787,15,5,4,3110_787_15_5,""
897,2020-04-15T00:00:00,"Beans (yardlong, green) - Retail",KG,vegetables and fruits,4000,KHR,Cambodia,Banteay Meanchey,791,Phnom Srok,3110,787,15,5,4,3110_787_15_5,""
898,2020-06-15T00:00:00,"Beans (yardlong, green) - Retail",KG,vegetables and fruits,2833.3333,KHR,Cambodia,Banteay Meanchey,791,Phnom Srok,3110,787,15,5,4,3110_787_15_5,""
899,2020-07-15T00:00:00,"Beans (yardlong, green) - Retail",KG,vegetables and fruits,2000,KHR,Cambodia,Banteay Meanchey,791,Phnom Srok,3110,787,15,5,4,3110_787_15_5,""
900,2020-03-15T00:00:00,Water spinach - Wholesale,KG,vegetables and fruits,1633,KHR,Cambodia,Banteay Meanchey,791,Phnom Srok,3110,788,14,5,4,3110_788_14_5,""
901,2020-05-15T00:00:00,Water spinach - Wholesale,KG,vegetables and fruits,2150,KHR,Cambodia,Banteay Meanchey,791,Phnom Srok,3110,788,14,5,4,3110_788_14_5,""
902,2020-06-15T00:00:00,Water spinach - Wholesale,KG,vegetables and fruits,1200,KHR,Cambodia,Banteay Meanchey,791,Phnom Srok,3110,788,14,5,4,3110_788_14_5,""
903,2020-07-15T00:00:00,Water spinach - Wholesale,KG,vegetables and fruits,800,KHR,Cambodia,Banteay Meanchey,791,Phnom Srok,3110,788,14,5,4,3110_788_14_5,""
904,2020-03-15T00:00:00,Water spinach - Retail,KG,vegetables and fruits,2000,KHR,Cambodia,Banteay Meanchey,791,Phnom Srok,3110,788,15,5,4,3110_788_15_5,""
905,2020-05-15T00:00:00,Water spinach - Retail,KG,vegetables and fruits,2750,KHR,Cambodia,Banteay Meanchey,791,Phnom Srok,3110,788,15,5,4,3110_788_15_5,""
906,2020-06-15T00:00:00,Water spinach - Retail,KG,vegetables and fruits,1666.6667,KHR,Cambodia,Banteay Meanchey,791,Phnom Srok,3110,788,15,5,4,3110_788_15_5,""
907,2020-07-15T00:00:00,Water spinach - Retail,KG,vegetables and fruits,1000,KHR,Cambodia,Banteay Meanchey,791,Phnom Srok,3110,788,15,5,4,3110_788_15_5,""
908,2020-03-15T00:00:00,"Eggs (duck, fermented) - Wholesale",10 pcs,"meat, fish and eggs",6000,KHR,Cambodia,Banteay Meanchey,791,Phnom Srok,3110,789,14,81,2,3110_789_14_81,""
909,2020-04-15T00:00:00,"Eggs (duck, fermented) - Wholesale",10 pcs,"meat, fish and eggs",5500,KHR,Cambodia,Banteay Meanchey,791,Phnom Srok,3110,789,14,81,2,3110_789_14_81,""
910,2020-05-15T00:00:00,"Eggs (duck, fermented) - Wholesale",10 pcs,"meat, fish and eggs",5500,KHR,Cambodia,Banteay Meanchey,791,Phnom Srok,3110,789,14,81,2,3110_789_14_81,""
911,2020-06-15T00:00:00,"Eggs (duck, fermented) - Wholesale",10 pcs,"meat, fish and eggs",5500,KHR,Cambodia,Banteay Meanchey,791,Phnom Srok,3110,789,14,81,2,3110_789_14_81,""
912,2020-03-15T00:00:00,"Eggs (duck, fermented) - Retail",10 pcs,"meat, fish and eggs",7000,KHR,Cambodia,Banteay Meanchey,791,Phnom Srok,3110,789,15,81,2,3110_789_15_81,""
913,2020-04-15T00:00:00,"Eggs (duck, fermented) - Retail",10 pcs,"meat, fish and eggs",6000,KHR,Cambodia,Banteay Meanchey,791,Phnom Srok,3110,789,15,81,2,3110_789_15_81,""
914,2020-05-15T00:00:00,"Eggs (duck, fermented) - Retail",10 pcs,"meat, fish and eggs",6000,KHR,Cambodia,Banteay Meanchey,791,Phnom Srok,3110,789,15,81,2,3110_789_15_81,""
915,2020-06-15T00:00:00,"Eggs (duck, fermented) - Retail",10 pcs,"meat, fish and eggs",6000,KHR,Cambodia,Banteay Meanchey,791,Phnom Srok,3110,789,15,81,2,3110_789_15_81,""
916,2020-03-15T00:00:00,Fish (striped catfish) - Wholesale,KG,"meat, fish and eggs",7533,KHR,Cambodia,Banteay Meanchey,791,Phnom Srok,3110,790,14,5,2,3110_790_14_5,""
917,2020-06-15T00:00:00,Fish (striped catfish) - Wholesale,KG,"meat, fish and eggs",5000,KHR,Cambodia,Banteay Meanchey,791,Phnom Srok,3110,790,14,5,2,3110_790_14_5,""
918,2020-07-15T00:00:00,Fish (striped catfish) - Wholesale,KG,"meat, fish and eggs",5500,KHR,Cambodia,Banteay Meanchey,791,Phnom Srok,3110,790,14,5,2,3110_790_14_5,""
919,2020-03-15T00:00:00,Fish (striped catfish) - Retail,KG,"meat, fish and eggs",8000,KHR,Cambodia,Banteay Meanchey,791,Phnom Srok,3110,790,15,5,2,3110_790_15_5,""
920,2020-06-15T00:00:00,Fish (striped catfish) - Retail,KG,"meat, fish and eggs",5500,KHR,Cambodia,Banteay Meanchey,791,Phnom Srok,3110,790,15,5,2,3110_790_15_5,""
921,2020-07-15T00:00:00,Fish (striped catfish) - Retail,KG,"meat, fish and eggs",6000,KHR,Cambodia,Banteay Meanchey,791,Phnom Srok,3110,790,15,5,2,3110_790_15_5,""
922,2020-03-15T00:00:00,Wax gourd - Wholesale,KG,vegetables and fruits,1800,KHR,Cambodia,Banteay Meanchey,791,Phnom Srok,3110,791,14,5,4,3110_791_14_5,""
923,2020-04-15T00:00:00,Wax gourd - Wholesale,KG,vegetables and fruits,2000,KHR,Cambodia,Banteay Meanchey,791,Phnom Srok,3110,791,14,5,4,3110_791_14_5,""
924,2020-05-15T00:00:00,Wax gourd - Wholesale,KG,vegetables and fruits,1500,KHR,Cambodia,Banteay Meanchey,791,Phnom Srok,3110,791,14,5,4,3110_791_14_5,""
925,2020-06-15T00:00:00,Wax gourd - Wholesale,KG,vegetables and fruits,2066.6667,KHR,Cambodia,Banteay Meanchey,791,Phnom Srok,3110,791,14,5,4,3110_791_14_5,""
926,2020-07-15T00:00:00,Wax gourd - Wholesale,KG,vegetables and fruits,1800,KHR,Cambodia,Banteay Meanchey,791,Phnom Srok,3110,791,14,5,4,3110_791_14_5,""
927,2020-03-15T00:00:00,Wax gourd - Retail,KG,vegetables and fruits,2000,KHR,Cambodia,Banteay Meanchey,791,Phnom Srok,3110,791,15,5,4,3110_791_15_5,""
928,2020-04-15T00:00:00,Wax gourd - Retail,KG,vegetables and fruits,2500,KHR,Cambodia,Banteay Meanchey,791,Phnom Srok,3110,791,15,5,4,3110_791_15_5,""
929,2020-05-15T00:00:00,Wax gourd - Retail,KG,vegetables and fruits,2000,KHR,Cambodia,Banteay Meanchey,791,Phnom Srok,3110,791,15,5,4,3110_791_15_5,""
930,2020-06-15T00:00:00,Wax gourd - Retail,KG,vegetables and fruits,2666.6667,KHR,Cambodia,Banteay Meanchey,791,Phnom Srok,3110,791,15,5,4,3110_791_15_5,""
931,2020-07-15T00:00:00,Wax gourd - Retail,KG,vegetables and fruits,2000,KHR,Cambodia,Banteay Meanchey,791,Phnom Srok,3110,791,15,5,4,3110_791_15_5,""
932,2019-04-15T00:00:00,Oil (vegetable) - Retail,L,oil and fats,6000,KHR,Cambodia,Battambang,792,Battambang,639,96,15,15,6,639_96_15_15,""
933,2019-05-15T00:00:00,Oil (vegetable) - Retail,L,oil and fats,6000,KHR,Cambodia,Battambang,792,Battambang,639,96,15,15,6,639_96_15_15,""
934,2019-06-15T00:00:00,Oil (vegetable) - Retail,L,oil and fats,5000,KHR,Cambodia,Battambang,792,Battambang,639,96,15,15,6,639_96_15_15,""
935,2019-07-15T00:00:00,Oil (vegetable) - Retail,L,oil and fats,5333.33,KHR,Cambodia,Battambang,792,Battambang,639,96,15,15,6,639_96_15_15,""
936,2019-08-15T00:00:00,Oil (vegetable) - Retail,L,oil and fats,5500,KHR,Cambodia,Battambang,792,Battambang,639,96,15,15,6,639_96_15_15,""
937,2019-09-15T00:00:00,Oil (vegetable) - Retail,L,oil and fats,5500,KHR,Cambodia,Battambang,792,Battambang,639,96,15,15,6,639_96_15_15,""
938,2019-10-15T00:00:00,Oil (vegetable) - Retail,L,oil and fats,6000,KHR,Cambodia,Battambang,792,Battambang,639,96,15,15,6,639_96_15_15,""
939,2019-11-15T00:00:00,Oil (vegetable) - Retail,L,oil and fats,6000,KHR,Cambodia,Battambang,792,Battambang,639,96,15,15,6,639_96_15_15,""
940,2019-12-15T00:00:00,Oil (vegetable) - Retail,L,oil and fats,5500,KHR,Cambodia,Battambang,792,Battambang,639,96,15,15,6,639_96_15_15,""
941,2020-01-15T00:00:00,Oil (vegetable) - Retail,L,oil and fats,5500,KHR,Cambodia,Battambang,792,Battambang,639,96,15,15,6,639_96_15_15,""
942,2020-02-15T00:00:00,Oil (vegetable) - Retail,L,oil and fats,5333.33,KHR,Cambodia,Battambang,792,Battambang,639,96,15,15,6,639_96_15_15,""
943,2003-01-15T00:00:00,"Rice (mixed, low quality) - Wholesale",KG,cereals and tubers,500,KHR,Cambodia,Battambang,792,Battambang,639,165,14,5,1,639_165_14_5,""
944,2003-02-15T00:00:00,"Rice (mixed, low quality) - Wholesale",KG,cereals and tubers,600,KHR,Cambodia,Battambang,792,Battambang,639,165,14,5,1,639_165_14_5,""
945,2003-03-15T00:00:00,"Rice (mixed, low quality) - Wholesale",KG,cereals and tubers,520,KHR,Cambodia,Battambang,792,Battambang,639,165,14,5,1,639_165_14_5,""
946,2003-04-15T00:00:00,"Rice (mixed, low quality) - Wholesale",KG,cereals and tubers,550,KHR,Cambodia,Battambang,792,Battambang,639,165,14,5,1,639_165_14_5,""
947,2003-05-15T00:00:00,"Rice (mixed, low quality) - Wholesale",KG,cereals and tubers,730,KHR,Cambodia,Battambang,792,Battambang,639,165,14,5,1,639_165_14_5,""
948,2003-06-15T00:00:00,"Rice (mixed, low quality) - Wholesale",KG,cereals and tubers,740,KHR,Cambodia,Battambang,792,Battambang,639,165,14,5,1,639_165_14_5,""
949,2003-07-15T00:00:00,"Rice (mixed, low quality) - Wholesale",KG,cereals and tubers,750,KHR,Cambodia,Battambang,792,Battambang,639,165,14,5,1,639_165_14_5,""
950,2003-08-15T00:00:00,"Rice (mixed, low quality) - Wholesale",KG,cereals and tubers,600,KHR,Cambodia,Battambang,792,Battambang,639,165,14,5,1,639_165_14_5,""
951,2003-09-15T00:00:00,"Rice (mixed, low quality) - Wholesale",KG,cereals and tubers,600,KHR,Cambodia,Battambang,792,Battambang,639,165,14,5,1,639_165_14_5,""
952,2003-10-15T00:00:00,"Rice (mixed, low quality) - Wholesale",KG,cereals and tubers,550,KHR,Cambodia,Battambang,792,Battambang,639,165,14,5,1,639_165_14_5,""
953,2003-11-15T00:00:00,"Rice (mixed, low quality) - Wholesale",KG,cereals and tubers,600,KHR,Cambodia,Battambang,792,Battambang,639,165,14,5,1,639_165_14_5,""
954,2003-12-15T00:00:00,"Rice (mixed, low quality) - Wholesale",KG,cereals and tubers,600,KHR,Cambodia,Battambang,792,Battambang,639,165,14,5,1,639_165_14_5,""
955,2004-01-15T00:00:00,"Rice (mixed, low quality) - Wholesale",KG,cereals and tubers,610,KHR,Cambodia,Battambang,792,Battambang,639,165,14,5,1,639_165_14_5,""
956,2004-02-15T00:00:00,"Rice (mixed, low quality) - Wholesale",KG,cereals and tubers,620,KHR,Cambodia,Battambang,792,Battambang,639,165,14,5,1,639_165_14_5,""
957,2004-03-15T00:00:00,"Rice (mixed, low quality) - Wholesale",KG,cereals and tubers,620,KHR,Cambodia,Battambang,792,Battambang,639,165,14,5,1,639_165_14_5,""
958,2004-04-15T00:00:00,"Rice (mixed, low quality) - Wholesale",KG,cereals and tubers,640,KHR,Cambodia,Battambang,792,Battambang,639,165,14,5,1,639_165_14_5,""
959,2004-05-15T00:00:00,"Rice (mixed, low quality) - Wholesale",KG,cereals and tubers,720,KHR,Cambodia,Battambang,792,Battambang,639,165,14,5,1,639_165_14_5,""
960,2004-06-15T00:00:00,"Rice (mixed, low quality) - Wholesale",KG,cereals and tubers,750,KHR,Cambodia,Battambang,792,Battambang,639,165,14,5,1,639_165_14_5,""
961,2004-07-15T00:00:00,"Rice (mixed, low quality) - Wholesale",KG,cereals and tubers,791.43,KHR,Cambodia,Battambang,792,Battambang,639,165,14,5,1,639_165_14_5,""
962,2004-08-15T00:00:00,"Rice (mixed, low quality) - Wholesale",KG,cereals and tubers,728.57,KHR,Cambodia,Battambang,792,Battambang,639,165,14,5,1,639_165_14_5,""
963,2004-09-15T00:00:00,"Rice (mixed, low quality) - Wholesale",KG,cereals and tubers,900,KHR,Cambodia,Battambang,792,Battambang,639,165,14,5,1,639_165_14_5,""
964,2004-10-15T00:00:00,"Rice (mixed, low quality) - Wholesale",KG,cereals and tubers,820,KHR,Cambodia,Battambang,792,Battambang,639,165,14,5,1,639_165_14_5,""
965,2004-11-15T00:00:00,"Rice (mixed, low quality) - Wholesale",KG,cereals and tubers,780,KHR,Cambodia,Battambang,792,Battambang,639,165,14,5,1,639_165_14_5,""
966,2004-12-15T00:00:00,"Rice (mixed, low quality) - Wholesale",KG,cereals and tubers,864.29,KHR,Cambodia,Battambang,792,Battambang,639,165,14,5,1,639_165_14_5,""
967,2005-01-15T00:00:00,"Rice (mixed, low quality) - Wholesale",KG,cereals and tubers,750,KHR,Cambodia,Battambang,792,Battambang,639,165,14,5,1,639_165_14_5,""
968,2005-02-15T00:00:00,"Rice (mixed, low quality) - Wholesale",KG,cereals and tubers,825,KHR,Cambodia,Battambang,792,Battambang,639,165,14,5,1,639_165_14_5,""
969,2005-03-15T00:00:00,"Rice (mixed, low quality) - Wholesale",KG,cereals and tubers,925,KHR,Cambodia,Battambang,792,Battambang,639,165,14,5,1,639_165_14_5,""
970,2005-04-15T00:00:00,"Rice (mixed, low quality) - Wholesale",KG,cereals and tubers,950,KHR,Cambodia,Battambang,792,Battambang,639,165,14,5,1,639_165_14_5,""
971,2005-05-15T00:00:00,"Rice (mixed, low quality) - Wholesale",KG,cereals and tubers,950,KHR,Cambodia,Battambang,792,Battambang,639,165,14,5,1,639_165_14_5,""
972,2005-06-15T00:00:00,"Rice (mixed, low quality) - Wholesale",KG,cereals and tubers,875,KHR,Cambodia,Battambang,792,Battambang,639,165,14,5,1,639_165_14_5,""
973,2005-07-15T00:00:00,"Rice (mixed, low quality) - Wholesale",KG,cereals and tubers,916.67,KHR,Cambodia,Battambang,792,Battambang,639,165,14,5,1,639_165_14_5,""
974,2005-08-15T00:00:00,"Rice (mixed, low quality) - Wholesale",KG,cereals and tubers,963.33,KHR,Cambodia,Battambang,792,Battambang,639,165,14,5,1,639_165_14_5,""
975,2005-09-15T00:00:00,"Rice (mixed, low quality) - Wholesale",KG,cereals and tubers,1025,KHR,Cambodia,Battambang,792,Battambang,639,165,14,5,1,639_165_14_5,""
976,2005-10-15T00:00:00,"Rice (mixed, low quality) - Wholesale",KG,cereals and tubers,1016.67,KHR,Cambodia,Battambang,792,Battambang,639,165,14,5,1,639_165_14_5,""
977,2005-11-15T00:00:00,"Rice (mixed, low quality) - Wholesale",KG,cereals and tubers,1100,KHR,Cambodia,Battambang,792,Battambang,639,165,14,5,1,639_165_14_5,""
978,2005-12-15T00:00:00,"Rice (mixed, low quality) - Wholesale",KG,cereals and tubers,950,KHR,Cambodia,Battambang,792,Battambang,639,165,14,5,1,639_165_14_5,""
979,2007-01-15T00:00:00,"Rice (mixed, low quality) - Wholesale",KG,cereals and tubers,956.67,KHR,Cambodia,Battambang,792,Battambang,639,165,14,5,1,639_165_14_5,""
980,2007-02-15T00:00:00,"Rice (mixed, low quality) - Wholesale",KG,cereals and tubers,970,KHR,Cambodia,Battambang,792,Battambang,639,165,14,5,1,639_165_14_5,""
981,2007-03-15T00:00:00,"Rice (mixed, low quality) - Wholesale",KG,cereals and tubers,967.5,KHR,Cambodia,Battambang,792,Battambang,639,165,14,5,1,639_165_14_5,""
982,2007-04-15T00:00:00,"Rice (mixed, low quality) - Wholesale",KG,cereals and tubers,965,KHR,Cambodia,Battambang,792,Battambang,639,165,14,5,1,639_165_14_5,""
983,2007-05-15T00:00:00,"Rice (mixed, low quality) - Wholesale",KG,cereals and tubers,950,KHR,Cambodia,Battambang,792,Battambang,639,165,14,5,1,639_165_14_5,""
984,2007-12-15T00:00:00,"Rice (mixed, low quality) - Wholesale",KG,cereals and tubers,1150,KHR,Cambodia,Battambang,792,Battambang,639,165,14,5,1,639_165_14_5,""
985,2008-01-15T00:00:00,"Rice (mixed, low quality) - Wholesale",KG,cereals and tubers,1162,KHR,Cambodia,Battambang,792,Battambang,639,165,14,5,1,639_165_14_5,""
986,2008-02-15T00:00:00,"Rice (mixed, low quality) - Wholesale",KG,cereals and tubers,1225,KHR,Cambodia,Battambang,792,Battambang,639,165,14,5,1,639_165_14_5,""
987,2008-03-15T00:00:00,"Rice (mixed, low quality) - Wholesale",KG,cereals and tubers,2210,KHR,Cambodia,Battambang,792,Battambang,639,165,14,5,1,639_165_14_5,""
988,2008-04-15T00:00:00,"Rice (mixed, low quality) - Wholesale",KG,cereals and tubers,2050,KHR,Cambodia,Battambang,792,Battambang,639,165,14,5,1,639_165_14_5,""
989,2008-05-15T00:00:00,"Rice (mixed, low quality) - Wholesale",KG,cereals and tubers,1940,KHR,Cambodia,Battambang,792,Battambang,639,165,14,5,1,639_165_14_5,""
990,2008-06-15T00:00:00,"Rice (mixed, low quality) - Wholesale",KG,cereals and tubers,2050,KHR,Cambodia,Battambang,792,Battambang,639,165,14,5,1,639_165_14_5,""
991,2008-07-15T00:00:00,"Rice (mixed, low quality) - Wholesale",KG,cereals and tubers,2050,KHR,Cambodia,Battambang,792,Battambang,639,165,14,5,1,639_165_14_5,""
992,2008-08-15T00:00:00,"Rice (mixed, low quality) - Wholesale",KG,cereals and tubers,1850,KHR,Cambodia,Battambang,792,Battambang,639,165,14,5,1,639_165_14_5,""
993,2008-09-15T00:00:00,"Rice (mixed, low quality) - Wholesale",KG,cereals and tubers,1700,KHR,Cambodia,Battambang,792,Battambang,639,165,14,5,1,639_165_14_5,""
994,2008-10-15T00:00:00,"Rice (mixed, low quality) - Wholesale",KG,cereals and tubers,1460,KHR,Cambodia,Battambang,792,Battambang,639,165,14,5,1,639_165_14_5,""
995,2008-11-15T00:00:00,"Rice (mixed, low quality) - Wholesale",KG,cereals and tubers,1550,KHR,Cambodia,Battambang,792,Battambang,639,165,14,5,1,639_165_14_5,""
996,2008-12-15T00:00:00,"Rice (mixed, low quality) - Wholesale",KG,cereals and tubers,1050,KHR,Cambodia,Battambang,792,Battambang,639,165,14,5,1,639_165_14_5,""
997,2009-01-15T00:00:00,"Rice (mixed, low quality) - Wholesale",KG,cereals and tubers,1100,KHR,Cambodia,Battambang,792,Battambang,639,165,14,5,1,639_165_14_5,""
998,2009-02-15T00:00:00,"Rice (mixed, low quality) - Wholesale",KG,cereals and tubers,1100,KHR,Cambodia,Battambang,792,Battambang,639,165,14,5,1,639_165_14_5,""
999,2009-03-15T00:00:00,"Rice (mixed, low quality) - Wholesale",KG,cereals and tubers,1197,KHR,Cambodia,Battambang,792,Battambang,639,165,14,5,1,639_165_14_5,""
1000,2009-04-15T00:00:00,"Rice (mixed, low quality) - Wholesale",KG,cereals and tubers,1150,KHR,Cambodia,Battambang,792,Battambang,639,165,14,5,1,639_165_14_5,""
1001,2009-05-15T00:00:00,"Rice (mixed, low quality) - Wholesale",KG,cereals and tubers,1233.3333,KHR,Cambodia,Battambang,792,Battambang,639,165,14,5,1,639_165_14_5,""
1002,2009-06-15T00:00:00,"Rice (mixed, low quality) - Wholesale",KG,cereals and tubers,1390,KHR,Cambodia,Battambang,792,Battambang,639,165,14,5,1,639_165_14_5,""
1003,2009-07-15T00:00:00,"Rice (mixed, low quality) - Wholesale",KG,cereals and tubers,1510,KHR,Cambodia,Battambang,792,Battambang,639,165,14,5,1,639_165_14_5,""
1004,2009-08-15T00:00:00,"Rice (mixed, low quality) - Wholesale",KG,cereals and tubers,1500,KHR,Cambodia,Battambang,792,Battambang,639,165,14,5,1,639_165_14_5,""
1005,2009-09-15T00:00:00,"Rice (mixed, low quality) - Wholesale",KG,cereals and tubers,1398,KHR,Cambodia,Battambang,792,Battambang,639,165,14,5,1,639_165_14_5,""
1006,2009-10-15T00:00:00,"Rice (mixed, low quality) - Wholesale",KG,cereals and tubers,1685,KHR,Cambodia,Battambang,792,Battambang,639,165,14,5,1,639_165_14_5,""
1007,2009-11-15T00:00:00,"Rice (mixed, low quality) - Wholesale",KG,cereals and tubers,1650,KHR,Cambodia,Battambang,792,Battambang,639,165,14,5,1,639_165_14_5,""
1008,2009-12-15T00:00:00,"Rice (mixed, low quality) - Wholesale",KG,cereals and tubers,1570,KHR,Cambodia,Battambang,792,Battambang,639,165,14,5,1,639_165_14_5,""
1009,2010-01-15T00:00:00,"Rice (mixed, low quality) - Wholesale",KG,cereals and tubers,1425,KHR,Cambodia,Battambang,792,Battambang,639,165,14,5,1,639_165_14_5,""
1010,2010-02-15T00:00:00,"Rice (mixed, low quality) - Wholesale",KG,cereals and tubers,1375,KHR,Cambodia,Battambang,792,Battambang,639,165,14,5,1,639_165_14_5,""
1011,2010-03-15T00:00:00,"Rice (mixed, low quality) - Wholesale",KG,cereals and tubers,1410,KHR,Cambodia,Battambang,792,Battambang,639,165,14,5,1,639_165_14_5,""
1012,2010-04-15T00:00:00,"Rice (mixed, low quality) - Wholesale",KG,cereals and tubers,1450,KHR,Cambodia,Battambang,792,Battambang,639,165,14,5,1,639_165_14_5,""
1013,2010-05-15T00:00:00,"Rice (mixed, low quality) - Wholesale",KG,cereals and tubers,1483.33,KHR,Cambodia,Battambang,792,Battambang,639,165,14,5,1,639_165_14_5,""
1014,2010-06-15T00:00:00,"Rice (mixed, low quality) - Wholesale",KG,cereals and tubers,1475,KHR,Cambodia,Battambang,792,Battambang,639,165,14,5,1,639_165_14_5,""
1015,2010-07-15T00:00:00,"Rice (mixed, low quality) - Wholesale",KG,cereals and tubers,1400,KHR,Cambodia,Battambang,792,Battambang,639,165,14,5,1,639_165_14_5,""
1016,2010-08-15T00:00:00,"Rice (mixed, low quality) - Wholesale",KG,cereals and tubers,1400,KHR,Cambodia,Battambang,792,Battambang,639,165,14,5,1,639_165_14_5,""
1017,2010-09-15T00:00:00,"Rice (mixed, low quality) - Wholesale",KG,cereals and tubers,1650,KHR,Cambodia,Battambang,792,Battambang,639,165,14,5,1,639_165_14_5,""
1018,2010-10-15T00:00:00,"Rice (mixed, low quality) - Wholesale",KG,cereals and tubers,1650,KHR,Cambodia,Battambang,792,Battambang,639,165,14,5,1,639_165_14_5,""
1019,2010-11-15T00:00:00,"Rice (mixed, low quality) - Wholesale",KG,cereals and tubers,1651.67,KHR,Cambodia,Battambang,792,Battambang,639,165,14,5,1,639_165_14_5,""
1020,2010-12-15T00:00:00,"Rice (mixed, low quality) - Wholesale",KG,cereals and tubers,1686.67,KHR,Cambodia,Battambang,792,Battambang,639,165,14,5,1,639_165_14_5,""
1021,2011-01-15T00:00:00,"Rice (mixed, low quality) - Wholesale",KG,cereals and tubers,1727.1,KHR,Cambodia,Battambang,792,Battambang,639,165,14,5,1,639_165_14_5,""
1022,2011-02-15T00:00:00,"Rice (mixed, low quality) - Wholesale",KG,cereals and tubers,1685,KHR,Cambodia,Battambang,792,Battambang,639,165,14,5,1,639_165_14_5,""
1023,2011-03-15T00:00:00,"Rice (mixed, low quality) - Wholesale",KG,cereals and tubers,1700,KHR,Cambodia,Battambang,792,Battambang,639,165,14,5,1,639_165_14_5,""
1024,2011-04-15T00:00:00,"Rice (mixed, low quality) - Wholesale",KG,cereals and tubers,1650,KHR,Cambodia,Battambang,792,Battambang,639,165,14,5,1,639_165_14_5,""
1025,2011-05-15T00:00:00,"Rice (mixed, low quality) - Wholesale",KG,cereals and tubers,1625,KHR,Cambodia,Battambang,792,Battambang,639,165,14,5,1,639_165_14_5,""
1026,2011-06-15T00:00:00,"Rice (mixed, low quality) - Wholesale",KG,cereals and tubers,1450,KHR,Cambodia,Battambang,792,Battambang,639,165,14,5,1,639_165_14_5,""
1027,2011-07-15T00:00:00,"Rice (mixed, low quality) - Wholesale",KG,cereals and tubers,1600,KHR,Cambodia,Battambang,792,Battambang,639,165,14,5,1,639_165_14_5,""
1028,2011-08-15T00:00:00,"Rice (mixed, low quality) - Wholesale",KG,cereals and tubers,1762.5,KHR,Cambodia,Battambang,792,Battambang,639,165,14,5,1,639_165_14_5,""
1029,2011-09-15T00:00:00,"Rice (mixed, low quality) - Wholesale",KG,cereals and tubers,1665,KHR,Cambodia,Battambang,792,Battambang,639,165,14,5,1,639_165_14_5,""
1030,2011-10-15T00:00:00,"Rice (mixed, low quality) - Wholesale",KG,cereals and tubers,1737.5,KHR,Cambodia,Battambang,792,Battambang,639,165,14,5,1,639_165_14_5,""
1031,2011-11-15T00:00:00,"Rice (mixed, low quality) - Wholesale",KG,cereals and tubers,1775,KHR,Cambodia,Battambang,792,Battambang,639,165,14,5,1,639_165_14_5,""
1032,2011-12-15T00:00:00,"Rice (mixed, low quality) - Wholesale",KG,cereals and tubers,1725,KHR,Cambodia,Battambang,792,Battambang,639,165,14,5,1,639_165_14_5,""
1033,2012-01-15T00:00:00,"Rice (mixed, low quality) - Wholesale",KG,cereals and tubers,1512.5,KHR,Cambodia,Battambang,792,Battambang,639,165,14,5,1,639_165_14_5,""
1034,2012-02-15T00:00:00,"Rice (mixed, low quality) - Wholesale",KG,cereals and tubers,1375.86,KHR,Cambodia,Battambang,792,Battambang,639,165,14,5,1,639_165_14_5,""
1035,2012-03-15T00:00:00,"Rice (mixed, low quality) - Wholesale",KG,cereals and tubers,1587.5,KHR,Cambodia,Battambang,792,Battambang,639,165,14,5,1,639_165_14_5,""
1036,2012-04-15T00:00:00,"Rice (mixed, low quality) - Wholesale",KG,cereals and tubers,1725,KHR,Cambodia,Battambang,792,Battambang,639,165,14,5,1,639_165_14_5,""
1037,2012-05-15T00:00:00,"Rice (mixed, low quality) - Wholesale",KG,cereals and tubers,1275,KHR,Cambodia,Battambang,792,Battambang,639,165,14,5,1,639_165_14_5,""
1038,2012-06-15T00:00:00,"Rice (mixed, low quality) - Wholesale",KG,cereals and tubers,1400,KHR,Cambodia,Battambang,792,Battambang,639,165,14,5,1,639_165_14_5,""
1039,2012-07-15T00:00:00,"Rice (mixed, low quality) - Wholesale",KG,cereals and tubers,1400,KHR,Cambodia,Battambang,792,Battambang,639,165,14,5,1,639_165_14_5,""
1040,2012-08-15T00:00:00,"Rice (mixed, low quality) - Wholesale",KG,cereals and tubers,1566.67,KHR,Cambodia,Battambang,792,Battambang,639,165,14,5,1,639_165_14_5,""
1041,2012-09-15T00:00:00,"Rice (mixed, low quality) - Wholesale",KG,cereals and tubers,1600,KHR,Cambodia,Battambang,792,Battambang,639,165,14,5,1,639_165_14_5,""
1042,2012-10-15T00:00:00,"Rice (mixed, low quality) - Wholesale",KG,cereals and tubers,1650,KHR,Cambodia,Battambang,792,Battambang,639,165,14,5,1,639_165_14_5,""
1043,2012-11-15T00:00:00,"Rice (mixed, low quality) - Wholesale",KG,cereals and tubers,1532.67,KHR,Cambodia,Battambang,792,Battambang,639,165,14,5,1,639_165_14_5,""
1044,2012-12-15T00:00:00,"Rice (mixed, low quality) - Wholesale",KG,cereals and tubers,1620,KHR,Cambodia,Battambang,792,Battambang,639,165,14,5,1,639_165_14_5,""
1045,2013-01-15T00:00:00,"Rice (mixed, low quality) - Wholesale",KG,cereals and tubers,1666,KHR,Cambodia,Battambang,792,Battambang,639,165,14,5,1,639_165_14_5,""
1046,2013-02-15T00:00:00,"Rice (mixed, low quality) - Wholesale",KG,cereals and tubers,1650,KHR,Cambodia,Battambang,792,Battambang,639,165,14,5,1,639_165_14_5,""
1047,2013-03-15T00:00:00,"Rice (mixed, low quality) - Wholesale",KG,cereals and tubers,1625,KHR,Cambodia,Battambang,792,Battambang,639,165,14,5,1,639_165_14_5,""
1048,2013-04-15T00:00:00,"Rice (mixed, low quality) - Wholesale",KG,cereals and tubers,1600,KHR,Cambodia,Battambang,792,Battambang,639,165,14,5,1,639_165_14_5,""
1049,2013-05-15T00:00:00,"Rice (mixed, low quality) - Wholesale",KG,cereals and tubers,1583.33,KHR,Cambodia,Battambang,792,Battambang,639,165,14,5,1,639_165_14_5,""
1050,2013-06-15T00:00:00,"Rice (mixed, low quality) - Wholesale",KG,cereals and tubers,1600,KHR,Cambodia,Battambang,792,Battambang,639,165,14,5,1,639_165_14_5,""
1051,2013-07-15T00:00:00,"Rice (mixed, low quality) - Wholesale",KG,cereals and tubers,1583,KHR,Cambodia,Battambang,792,Battambang,639,165,14,5,1,639_165_14_5,""
1052,2013-08-15T00:00:00,"Rice (mixed, low quality) - Wholesale",KG,cereals and tubers,2000,KHR,Cambodia,Battambang,792,Battambang,639,165,14,5,1,639_165_14_5,""
1053,2013-09-15T00:00:00,"Rice (mixed, low quality) - Wholesale",KG,cereals and tubers,1900,KHR,Cambodia,Battambang,792,Battambang,639,165,14,5,1,639_165_14_5,""
1054,2013-10-15T00:00:00,"Rice (mixed, low quality) - Wholesale",KG,cereals and tubers,1750,KHR,Cambodia,Battambang,792,Battambang,639,165,14,5,1,639_165_14_5,""
1055,2013-11-15T00:00:00,"Rice (mixed, low quality) - Wholesale",KG,cereals and tubers,1762.5,KHR,Cambodia,Battambang,792,Battambang,639,165,14,5,1,639_165_14_5,""
1056,2013-12-15T00:00:00,"Rice (mixed, low quality) - Wholesale",KG,cereals and tubers,1616.67,KHR,Cambodia,Battambang,792,Battambang,639,165,14,5,1,639_165_14_5,""
1057,2014-01-15T00:00:00,"Rice (mixed, low quality) - Wholesale",KG,cereals and tubers,1500,KHR,Cambodia,Battambang,792,Battambang,639,165,14,5,1,639_165_14_5,""
1058,2014-02-15T00:00:00,"Rice (mixed, low quality) - Wholesale",KG,cereals and tubers,1400,KHR,Cambodia,Battambang,792,Battambang,639,165,14,5,1,639_165_14_5,""
1059,2014-03-15T00:00:00,"Rice (mixed, low quality) - Wholesale",KG,cereals and tubers,1500,KHR,Cambodia,Battambang,792,Battambang,639,165,14,5,1,639_165_14_5,""
1060,2014-04-15T00:00:00,"Rice (mixed, low quality) - Wholesale",KG,cereals and tubers,1200,KHR,Cambodia,Battambang,792,Battambang,639,165,14,5,1,639_165_14_5,""
1061,2014-05-15T00:00:00,"Rice (mixed, low quality) - Wholesale",KG,cereals and tubers,1100,KHR,Cambodia,Battambang,792,Battambang,639,165,14,5,1,639_165_14_5,""
1062,2014-06-15T00:00:00,"Rice (mixed, low quality) - Wholesale",KG,cereals and tubers,1200,KHR,Cambodia,Battambang,792,Battambang,639,165,14,5,1,639_165_14_5,""
1063,2014-07-15T00:00:00,"Rice (mixed, low quality) - Wholesale",KG,cereals and tubers,1350,KHR,Cambodia,Battambang,792,Battambang,639,165,14,5,1,639_165_14_5,""
1064,2014-08-15T00:00:00,"Rice (mixed, low quality) - Wholesale",KG,cereals and tubers,1516.67,KHR,Cambodia,Battambang,792,Battambang,639,165,14,5,1,639_165_14_5,""
1065,2014-09-15T00:00:00,"Rice (mixed, low quality) - Wholesale",KG,cereals and tubers,1500,KHR,Cambodia,Battambang,792,Battambang,639,165,14,5,1,639_165_14_5,""
1066,2014-10-15T00:00:00,"Rice (mixed, low quality) - Wholesale",KG,cereals and tubers,1550,KHR,Cambodia,Battambang,792,Battambang,639,165,14,5,1,639_165_14_5,""
1067,2014-11-15T00:00:00,"Rice (mixed, low quality) - Wholesale",KG,cereals and tubers,1450,KHR,Cambodia,Battambang,792,Battambang,639,165,14,5,1,639_165_14_5,""
1068,2014-12-15T00:00:00,"Rice (mixed, low quality) - Wholesale",KG,cereals and tubers,1300,KHR,Cambodia,Battambang,792,Battambang,639,165,14,5,1,639_165_14_5,""
1069,2015-01-15T00:00:00,"Rice (mixed, low quality) - Wholesale",KG,cereals and tubers,1400,KHR,Cambodia,Battambang,792,Battambang,639,165,14,5,1,639_165_14_5,""
1070,2015-02-15T00:00:00,"Rice (mixed, low quality) - Wholesale",KG,cereals and tubers,1200,KHR,Cambodia,Battambang,792,Battambang,639,165,14,5,1,639_165_14_5,""
1071,2015-03-15T00:00:00,"Rice (mixed, low quality) - Wholesale",KG,cereals and tubers,1183.33,KHR,Cambodia,Battambang,792,Battambang,639,165,14,5,1,639_165_14_5,""
1072,2015-04-15T00:00:00,"Rice (mixed, low quality) - Wholesale",KG,cereals and tubers,1150,KHR,Cambodia,Battambang,792,Battambang,639,165,14,5,1,639_165_14_5,""
1073,2015-05-15T00:00:00,"Rice (mixed, low quality) - Wholesale",KG,cereals and tubers,1250,KHR,Cambodia,Battambang,792,Battambang,639,165,14,5,1,639_165_14_5,""
1074,2015-06-15T00:00:00,"Rice (mixed, low quality) - Wholesale",KG,cereals and tubers,1300,KHR,Cambodia,Battambang,792,Battambang,639,165,14,5,1,639_165_14_5,""
1075,2015-07-15T00:00:00,"Rice (mixed, low quality) - Wholesale",KG,cereals and tubers,1300,KHR,Cambodia,Battambang,792,Battambang,639,165,14,5,1,639_165_14_5,""
1076,2015-08-15T00:00:00,"Rice (mixed, low quality) - Wholesale",KG,cereals and tubers,1250,KHR,Cambodia,Battambang,792,Battambang,639,165,14,5,1,639_165_14_5,""
1077,2015-09-15T00:00:00,"Rice (mixed, low quality) - Wholesale",KG,cereals and tubers,1250,KHR,Cambodia,Battambang,792,Battambang,639,165,14,5,1,639_165_14_5,""
1078,2015-10-15T00:00:00,"Rice (mixed, low quality) - Wholesale",KG,cereals and tubers,1500,KHR,Cambodia,Battambang,792,Battambang,639,165,14,5,1,639_165_14_5,""
1079,2015-11-15T00:00:00,"Rice (mixed, low quality) - Wholesale",KG,cereals and tubers,1400,KHR,Cambodia,Battambang,792,Battambang,639,165,14,5,1,639_165_14_5,""
1080,2015-12-15T00:00:00,"Rice (mixed, low quality) - Wholesale",KG,cereals and tubers,1350,KHR,Cambodia,Battambang,792,Battambang,639,165,14,5,1,639_165_14_5,""
1081,2016-01-15T00:00:00,"Rice (mixed, low quality) - Wholesale",KG,cereals and tubers,1300,KHR,Cambodia,Battambang,792,Battambang,639,165,14,5,1,639_165_14_5,""
1082,2016-02-15T00:00:00,"Rice (mixed, low quality) - Wholesale",KG,cereals and tubers,1100,KHR,Cambodia,Battambang,792,Battambang,639,165,14,5,1,639_165_14_5,""
1083,2016-03-15T00:00:00,"Rice (mixed, low quality) - Wholesale",KG,cereals and tubers,1200,KHR,Cambodia,Battambang,792,Battambang,639,165,14,5,1,639_165_14_5,""
1084,2016-04-15T00:00:00,"Rice (mixed, low quality) - Wholesale",KG,cereals and tubers,1200,KHR,Cambodia,Battambang,792,Battambang,639,165,14,5,1,639_165_14_5,""
1085,2016-05-15T00:00:00,"Rice (mixed, low quality) - Wholesale",KG,cereals and tubers,1200,KHR,Cambodia,Battambang,792,Battambang,639,165,14,5,1,639_165_14_5,""
1086,2016-06-15T00:00:00,"Rice (mixed, low quality) - Wholesale",KG,cereals and tubers,1200,KHR,Cambodia,Battambang,792,Battambang,639,165,14,5,1,639_165_14_5,""
1087,2016-07-15T00:00:00,"Rice (mixed, low quality) - Wholesale",KG,cereals and tubers,1283.33,KHR,Cambodia,Battambang,792,Battambang,639,165,14,5,1,639_165_14_5,""
1088,2016-08-15T00:00:00,"Rice (mixed, low quality) - Wholesale",KG,cereals and tubers,1337.5,KHR,Cambodia,Battambang,792,Battambang,639,165,14,5,1,639_165_14_5,""
1089,2016-09-15T00:00:00,"Rice (mixed, low quality) - Wholesale",KG,cereals and tubers,1350,KHR,Cambodia,Battambang,792,Battambang,639,165,14,5,1,639_165_14_5,""
1090,2016-10-15T00:00:00,"Rice (mixed, low quality) - Wholesale",KG,cereals and tubers,1400,KHR,Cambodia,Battambang,792,Battambang,639,165,14,5,1,639_165_14_5,""
1091,2016-11-15T00:00:00,"Rice (mixed, low quality) - Wholesale",KG,cereals and tubers,1380,KHR,Cambodia,Battambang,792,Battambang,639,165,14,5,1,639_165_14_5,""
1092,2016-12-15T00:00:00,"Rice (mixed, low quality) - Wholesale",KG,cereals and tubers,800,KHR,Cambodia,Battambang,792,Battambang,639,165,14,5,1,639_165_14_5,""
1093,2017-01-15T00:00:00,"Rice (mixed, low quality) - Wholesale",KG,cereals and tubers,950,KHR,Cambodia,Battambang,792,Battambang,639,165,14,5,1,639_165_14_5,""
1094,2017-02-15T00:00:00,"Rice (mixed, low quality) - Wholesale",KG,cereals and tubers,1250,KHR,Cambodia,Battambang,792,Battambang,639,165,14,5,1,639_165_14_5,""
1095,2017-03-15T00:00:00,"Rice (mixed, low quality) - Wholesale",KG,cereals and tubers,1400,KHR,Cambodia,Battambang,792,Battambang,639,165,14,5,1,639_165_14_5,""
1096,2017-04-15T00:00:00,"Rice (mixed, low quality) - Wholesale",KG,cereals and tubers,1500,KHR,Cambodia,Battambang,792,Battambang,639,165,14,5,1,639_165_14_5,""
1097,2017-05-15T00:00:00,"Rice (mixed, low quality) - Wholesale",KG,cereals and tubers,1500,KHR,Cambodia,Battambang,792,Battambang,639,165,14,5,1,639_165_14_5,""
1098,2017-06-15T00:00:00,"Rice (mixed, low quality) - Wholesale",KG,cereals and tubers,1500,KHR,Cambodia,Battambang,792,Battambang,639,165,14,5,1,639_165_14_5,""
1099,2017-07-15T00:00:00,"Rice (mixed, low quality) - Wholesale",KG,cereals and tubers,1500,KHR,Cambodia,Battambang,792,Battambang,639,165,14,5,1,639_165_14_5,""
1100,2017-08-15T00:00:00,"Rice (mixed, low quality) - Wholesale",KG,cereals and tubers,1500,KHR,Cambodia,Battambang,792,Battambang,639,165,14,5,1,639_165_14_5,""
1101,2017-09-15T00:00:00,"Rice (mixed, low quality) - Wholesale",KG,cereals and tubers,1500,KHR,Cambodia,Battambang,792,Battambang,639,165,14,5,1,639_165_14_5,""
1102,2017-10-15T00:00:00,"Rice (mixed, low quality) - Wholesale",KG,cereals and tubers,1500,KHR,Cambodia,Battambang,792,Battambang,639,165,14,5,1,639_165_14_5,""
1103,2017-11-15T00:00:00,"Rice (mixed, low quality) - Wholesale",KG,cereals and tubers,1400,KHR,Cambodia,Battambang,792,Battambang,639,165,14,5,1,639_165_14_5,""
1104,2017-12-15T00:00:00,"Rice (mixed, low quality) - Wholesale",KG,cereals and tubers,1250,KHR,Cambodia,Battambang,792,Battambang,639,165,14,5,1,639_165_14_5,""
1105,2018-01-15T00:00:00,"Rice (mixed, low quality) - Wholesale",KG,cereals and tubers,1500,KHR,Cambodia,Battambang,792,Battambang,639,165,14,5,1,639_165_14_5,""
1106,2018-02-15T00:00:00,"Rice (mixed, low quality) - Wholesale",KG,cereals and tubers,1500,KHR,Cambodia,Battambang,792,Battambang,639,165,14,5,1,639_165_14_5,""
1107,2018-03-15T00:00:00,"Rice (mixed, low quality) - Wholesale",KG,cereals and tubers,1400,KHR,Cambodia,Battambang,792,Battambang,639,165,14,5,1,639_165_14_5,""
1108,2018-04-15T00:00:00,"Rice (mixed, low quality) - Wholesale",KG,cereals and tubers,1500,KHR,Cambodia,Battambang,792,Battambang,639,165,14,5,1,639_165_14_5,""
1109,2018-05-15T00:00:00,"Rice (mixed, low quality) - Wholesale",KG,cereals and tubers,1600,KHR,Cambodia,Battambang,792,Battambang,639,165,14,5,1,639_165_14_5,""
1110,2018-06-15T00:00:00,"Rice (mixed, low quality) - Wholesale",KG,cereals and tubers,1466.67,KHR,Cambodia,Battambang,792,Battambang,639,165,14,5,1,639_165_14_5,""
1111,2018-07-15T00:00:00,"Rice (mixed, low quality) - Wholesale",KG,cereals and tubers,1800,KHR,Cambodia,Battambang,792,Battambang,639,165,14,5,1,639_165_14_5,""
1112,2018-08-15T00:00:00,"Rice (mixed, low quality) - Wholesale",KG,cereals and tubers,1700,KHR,Cambodia,Battambang,792,Battambang,639,165,14,5,1,639_165_14_5,""
1113,2018-09-15T00:00:00,"Rice (mixed, low quality) - Wholesale",KG,cereals and tubers,1650,KHR,Cambodia,Battambang,792,Battambang,639,165,14,5,1,639_165_14_5,""
1114,2018-10-15T00:00:00,"Rice (mixed, low quality) - Wholesale",KG,cereals and tubers,1500,KHR,Cambodia,Battambang,792,Battambang,639,165,14,5,1,639_165_14_5,""
1115,2018-11-15T00:00:00,"Rice (mixed, low quality) - Wholesale",KG,cereals and tubers,1566.67,KHR,Cambodia,Battambang,792,Battambang,639,165,14,5,1,639_165_14_5,""
1116,2018-12-15T00:00:00,"Rice (mixed, low quality) - Wholesale",KG,cereals and tubers,1475,KHR,Cambodia,Battambang,792,Battambang,639,165,14,5,1,639_165_14_5,""
1117,2019-01-15T00:00:00,"Rice (mixed, low quality) - Wholesale",KG,cereals and tubers,1550,KHR,Cambodia,Battambang,792,Battambang,639,165,14,5,1,639_165_14_5,""
1118,2019-02-15T00:00:00,"Rice (mixed, low quality) - Wholesale",KG,cereals and tubers,1500,KHR,Cambodia,Battambang,792,Battambang,639,165,14,5,1,639_165_14_5,""
1119,2019-03-15T00:00:00,"Rice (mixed, low quality) - Wholesale",KG,cereals and tubers,1500,KHR,Cambodia,Battambang,792,Battambang,639,165,14,5,1,639_165_14_5,""
1120,2019-04-15T00:00:00,"Rice (mixed, low quality) - Wholesale",KG,cereals and tubers,1500,KHR,Cambodia,Battambang,792,Battambang,639,165,14,5,1,639_165_14_5,""
1121,2019-05-15T00:00:00,"Rice (mixed, low quality) - Wholesale",KG,cereals and tubers,1800,KHR,Cambodia,Battambang,792,Battambang,639,165,14,5,1,639_165_14_5,""
1122,2019-06-15T00:00:00,"Rice (mixed, low quality) - Wholesale",KG,cereals and tubers,1500,KHR,Cambodia,Battambang,792,Battambang,639,165,14,5,1,639_165_14_5,""
1123,2019-07-15T00:00:00,"Rice (mixed, low quality) - Wholesale",KG,cereals and tubers,1550,KHR,Cambodia,Battambang,792,Battambang,639,165,14,5,1,639_165_14_5,""
1124,2019-08-15T00:00:00,"Rice (mixed, low quality) - Wholesale",KG,cereals and tubers,1300,KHR,Cambodia,Battambang,792,Battambang,639,165,14,5,1,639_165_14_5,""
1125,2019-09-15T00:00:00,"Rice (mixed, low quality) - Wholesale",KG,cereals and tubers,1300,KHR,Cambodia,Battambang,792,Battambang,639,165,14,5,1,639_165_14_5,""
1126,2019-10-15T00:00:00,"Rice (mixed, low quality) - Wholesale",KG,cereals and tubers,1300,KHR,Cambodia,Battambang,792,Battambang,639,165,14,5,1,639_165_14_5,""
1127,2019-11-15T00:00:00,"Rice (mixed, low quality) - Wholesale",KG,cereals and tubers,1300,KHR,Cambodia,Battambang,792,Battambang,639,165,14,5,1,639_165_14_5,""
1128,2019-12-15T00:00:00,"Rice (mixed, low quality) - Wholesale",KG,cereals and tubers,1400,KHR,Cambodia,Battambang,792,Battambang,639,165,14,5,1,639_165_14_5,""
1129,2020-01-15T00:00:00,"Rice (mixed, low quality) - Wholesale",KG,cereals and tubers,1450,KHR,Cambodia,Battambang,792,Battambang,639,165,14,5,1,639_165_14_5,""
1130,2020-02-15T00:00:00,"Rice (mixed, low quality) - Wholesale",KG,cereals and tubers,1400,KHR,Cambodia,Battambang,792,Battambang,639,165,14,5,1,639_165_14_5,""
1131,2020-04-15T00:00:00,"Rice (mixed, low quality) - Wholesale",KG,cereals and tubers,1500,KHR,Cambodia,Battambang,792,Battambang,639,165,14,5,1,639_165_14_5,""
1132,2020-05-15T00:00:00,"Rice (mixed, low quality) - Wholesale",KG,cereals and tubers,1467,KHR,Cambodia,Battambang,792,Battambang,639,165,14,5,1,639_165_14_5,""
1133,2020-06-15T00:00:00,"Rice (mixed, low quality) - Wholesale",KG,cereals and tubers,1467,KHR,Cambodia,Battambang,792,Battambang,639,165,14,5,1,639_165_14_5,""
1134,2018-01-15T00:00:00,Wage (non-qualified labour) - Retail,Day,non-food,28250,KHR,Cambodia,Battambang,792,Battambang,639,277,15,51,8,639_277_15_51,""
1135,2018-02-15T00:00:00,Wage (non-qualified labour) - Retail,Day,non-food,27000,KHR,Cambodia,Battambang,792,Battambang,639,277,15,51,8,639_277_15_51,""
1136,2018-03-15T00:00:00,Wage (non-qualified labour) - Retail,Day,non-food,26500,KHR,Cambodia,Battambang,792,Battambang,639,277,15,51,8,639_277_15_51,""
1137,2018-04-15T00:00:00,Wage (non-qualified labour) - Retail,Day,non-food,26500,KHR,Cambodia,Battambang,792,Battambang,639,277,15,51,8,639_277_15_51,""
1138,2018-05-15T00:00:00,Wage (non-qualified labour) - Retail,Day,non-food,30250,KHR,Cambodia,Battambang,792,Battambang,639,277,15,51,8,639_277_15_51,""
1139,2018-06-15T00:00:00,Wage (non-qualified labour) - Retail,Day,non-food,29250,KHR,Cambodia,Battambang,792,Battambang,639,277,15,51,8,639_277_15_51,""
1140,2018-07-15T00:00:00,Wage (non-qualified labour) - Retail,Day,non-food,30250,KHR,Cambodia,Battambang,792,Battambang,639,277,15,51,8,639_277_15_51,""
1141,2018-08-15T00:00:00,Wage (non-qualified labour) - Retail,Day,non-food,28000,KHR,Cambodia,Battambang,792,Battambang,639,277,15,51,8,639_277_15_51,""
1142,2018-09-15T00:00:00,Wage (non-qualified labour) - Retail,Day,non-food,30500,KHR,Cambodia,Battambang,792,Battambang,639,277,15,51,8,639_277_15_51,""
1143,2018-10-15T00:00:00,Wage (non-qualified labour) - Retail,Day,non-food,27000,KHR,Cambodia,Battambang,792,Battambang,639,277,15,51,8,639_277_15_51,""
1144,2018-11-15T00:00:00,Wage (non-qualified labour) - Retail,Day,non-food,28250,KHR,Cambodia,Battambang,792,Battambang,639,277,15,51,8,639_277_15_51,""
1145,2018-12-15T00:00:00,Wage (non-qualified labour) - Retail,Day,non-food,30500,KHR,Cambodia,Battambang,792,Battambang,639,277,15,51,8,639_277_15_51,""
1146,2019-01-15T00:00:00,Wage (non-qualified labour) - Retail,Day,non-food,30000,KHR,Cambodia,Battambang,792,Battambang,639,277,15,51,8,639_277_15_51,""
1147,2019-02-15T00:00:00,Wage (non-qualified labour) - Retail,Day,non-food,28250,KHR,Cambodia,Battambang,792,Battambang,639,277,15,51,8,639_277_15_51,""
1148,2019-03-15T00:00:00,Wage (non-qualified labour) - Retail,Day,non-food,31000,KHR,Cambodia,Battambang,792,Battambang,639,277,15,51,8,639_277_15_51,""
1149,2019-04-15T00:00:00,Wage (non-qualified labour) - Retail,Day,non-food,30750,KHR,Cambodia,Battambang,792,Battambang,639,277,15,51,8,639_277_15_51,""
1150,2019-05-15T00:00:00,Wage (non-qualified labour) - Retail,Day,non-food,30750,KHR,Cambodia,Battambang,792,Battambang,639,277,15,51,8,639_277_15_51,""
1151,2019-06-15T00:00:00,Wage (non-qualified labour) - Retail,Day,non-food,34750,KHR,Cambodia,Battambang,792,Battambang,639,277,15,51,8,639_277_15_51,""
1152,2019-07-15T00:00:00,Wage (non-qualified labour) - Retail,Day,non-food,33000,KHR,Cambodia,Battambang,792,Battambang,639,277,15,51,8,639_277_15_51,""
1153,2019-08-15T00:00:00,Wage (non-qualified labour) - Retail,Day,non-food,32750,KHR,Cambodia,Battambang,792,Battambang,639,277,15,51,8,639_277_15_51,""
1154,2019-09-15T00:00:00,Wage (non-qualified labour) - Retail,Day,non-food,35750,KHR,Cambodia,Battambang,792,Battambang,639,277,15,51,8,639_277_15_51,""
1155,2019-10-15T00:00:00,Wage (non-qualified labour) - Retail,Day,non-food,34500,KHR,Cambodia,Battambang,792,Battambang,639,277,15,51,8,639_277_15_51,""
1156,2019-11-15T00:00:00,Wage (non-qualified labour) - Retail,Day,non-food,34250,KHR,Cambodia,Battambang,792,Battambang,639,277,15,51,8,639_277_15_51,""
1157,2019-12-15T00:00:00,Wage (non-qualified labour) - Retail,Day,non-food,34250,KHR,Cambodia,Battambang,792,Battambang,639,277,15,51,8,639_277_15_51,""
1158,2020-02-15T00:00:00,Wage (non-qualified labour) - Retail,Day,non-food,34000,KHR,Cambodia,Battambang,792,Battambang,639,277,15,51,8,639_277_15_51,""
1159,2019-02-15T00:00:00,"Meat (pork, with fat) - Retail",KG,"meat, fish and eggs",13000,KHR,Cambodia,Battambang,792,Battambang,639,329,15,5,2,639_329_15_5,""
1160,2019-03-15T00:00:00,"Meat (pork, with fat) - Retail",KG,"meat, fish and eggs",13000,KHR,Cambodia,Battambang,792,Battambang,639,329,15,5,2,639_329_15_5,""
1161,2019-04-15T00:00:00,"Meat (pork, with fat) - Retail",KG,"meat, fish and eggs",13000,KHR,Cambodia,Battambang,792,Battambang,639,329,15,5,2,639_329_15_5,""
1162,2019-05-15T00:00:00,"Meat (pork, with fat) - Retail",KG,"meat, fish and eggs",13000,KHR,Cambodia,Battambang,792,Battambang,639,329,15,5,2,639_329_15_5,""
1163,2019-06-15T00:00:00,"Meat (pork, with fat) - Retail",KG,"meat, fish and eggs",15000,KHR,Cambodia,Battambang,792,Battambang,639,329,15,5,2,639_329_15_5,""
1164,2019-07-15T00:00:00,"Meat (pork, with fat) - Retail",KG,"meat, fish and eggs",15000,KHR,Cambodia,Battambang,792,Battambang,639,329,15,5,2,639_329_15_5,""
1165,2019-08-15T00:00:00,"Meat (pork, with fat) - Retail",KG,"meat, fish and eggs",15000,KHR,Cambodia,Battambang,792,Battambang,639,329,15,5,2,639_329_15_5,""
1166,2019-09-15T00:00:00,"Meat (pork, with fat) - Retail",KG,"meat, fish and eggs",15000,KHR,Cambodia,Battambang,792,Battambang,639,329,15,5,2,639_329_15_5,""
1167,2019-10-15T00:00:00,"Meat (pork, with fat) - Retail",KG,"meat, fish and eggs",15000,KHR,Cambodia,Battambang,792,Battambang,639,329,15,5,2,639_329_15_5,""
1168,2019-11-15T00:00:00,"Meat (pork, with fat) - Retail",KG,"meat, fish and eggs",15000,KHR,Cambodia,Battambang,792,Battambang,639,329,15,5,2,639_329_15_5,""
1169,2019-12-15T00:00:00,"Meat (pork, with fat) - Retail",KG,"meat, fish and eggs",15333.33,KHR,Cambodia,Battambang,792,Battambang,639,329,15,5,2,639_329_15_5,""
1170,2020-01-15T00:00:00,"Meat (pork, with fat) - Retail",KG,"meat, fish and eggs",14666.67,KHR,Cambodia,Battambang,792,Battambang,639,329,15,5,2,639_329_15_5,""
1171,2020-02-15T00:00:00,"Meat (pork, with fat) - Retail",KG,"meat, fish and eggs",15666.67,KHR,Cambodia,Battambang,792,Battambang,639,329,15,5,2,639_329_15_5,""
1172,2019-08-15T00:00:00,Oil (vegetable) - Wholesale,5 L,oil and fats,18958,KHR,Cambodia,Battambang,792,Boeung Chhouk,3111,96,14,67,6,3111_96_14_67,""
1173,2019-11-15T00:00:00,Oil (vegetable) - Wholesale,5 L,oil and fats,16500,KHR,Cambodia,Battambang,792,Boeung Chhouk,3111,96,14,67,6,3111_96_14_67,""
1174,2019-12-15T00:00:00,Oil (vegetable) - Wholesale,5 L,oil and fats,17250,KHR,Cambodia,Battambang,792,Boeung Chhouk,3111,96,14,67,6,3111_96_14_67,""
1175,2020-03-15T00:00:00,Oil (vegetable) - Wholesale,5 L,oil and fats,23000,KHR,Cambodia,Battambang,792,Boeung Chhouk,3111,96,14,67,6,3111_96_14_67,""
1176,2020-04-15T00:00:00,Oil (vegetable) - Wholesale,5 L,oil and fats,21250,KHR,Cambodia,Battambang,792,Boeung Chhouk,3111,96,14,67,6,3111_96_14_67,""
1177,2020-05-15T00:00:00,Oil (vegetable) - Wholesale,5 L,oil and fats,21000,KHR,Cambodia,Battambang,792,Boeung Chhouk,3111,96,14,67,6,3111_96_14_67,""
1178,2020-06-15T00:00:00,Oil (vegetable) - Wholesale,5 L,oil and fats,18875,KHR,Cambodia,Battambang,792,Boeung Chhouk,3111,96,14,67,6,3111_96_14_67,""
1179,2020-07-15T00:00:00,Oil (vegetable) - Wholesale,5 L,oil and fats,18500,KHR,Cambodia,Battambang,792,Boeung Chhouk,3111,96,14,67,6,3111_96_14_67,""
1180,2019-08-15T00:00:00,Oil (vegetable) - Retail,5 L,oil and fats,21233,KHR,Cambodia,Battambang,792,Boeung Chhouk,3111,96,15,67,6,3111_96_15_67,""
1181,2019-11-15T00:00:00,Oil (vegetable) - Retail,5 L,oil and fats,17000,KHR,Cambodia,Battambang,792,Boeung Chhouk,3111,96,15,67,6,3111_96_15_67,""
1182,2019-12-15T00:00:00,Oil (vegetable) - Retail,5 L,oil and fats,18500,KHR,Cambodia,Battambang,792,Boeung Chhouk,3111,96,15,67,6,3111_96_15_67,""
1183,2020-03-15T00:00:00,Oil (vegetable) - Retail,5 L,oil and fats,23000,KHR,Cambodia,Battambang,792,Boeung Chhouk,3111,96,15,67,6,3111_96_15_67,""
1184,2020-04-15T00:00:00,Oil (vegetable) - Retail,5 L,oil and fats,22000,KHR,Cambodia,Battambang,792,Boeung Chhouk,3111,96,15,67,6,3111_96_15_67,""
1185,2020-05-15T00:00:00,Oil (vegetable) - Retail,5 L,oil and fats,25000,KHR,Cambodia,Battambang,792,Boeung Chhouk,3111,96,15,67,6,3111_96_15_67,""
1186,2020-06-15T00:00:00,Oil (vegetable) - Retail,5 L,oil and fats,19000,KHR,Cambodia,Battambang,792,Boeung Chhouk,3111,96,15,67,6,3111_96_15_67,""
1187,2020-07-15T00:00:00,Oil (vegetable) - Retail,5 L,oil and fats,19000,KHR,Cambodia,Battambang,792,Boeung Chhouk,3111,96,15,67,6,3111_96_15_67,""
1188,2019-08-15T00:00:00,"Rice (mixed, low quality) - Wholesale",KG,cereals and tubers,1867,KHR,Cambodia,Battambang,792,Boeung Chhouk,3111,165,14,5,1,3111_165_14_5,""
1189,2019-09-15T00:00:00,"Rice (mixed, low quality) - Wholesale",KG,cereals and tubers,1867,KHR,Cambodia,Battambang,792,Boeung Chhouk,3111,165,14,5,1,3111_165_14_5,""
1190,2019-11-15T00:00:00,"Rice (mixed, low quality) - Wholesale",KG,cereals and tubers,2100,KHR,Cambodia,Battambang,792,Boeung Chhouk,3111,165,14,5,1,3111_165_14_5,""
1191,2019-12-15T00:00:00,"Rice (mixed, low quality) - Wholesale",KG,cereals and tubers,1841.5,KHR,Cambodia,Battambang,792,Boeung Chhouk,3111,165,14,5,1,3111_165_14_5,""
1192,2020-01-15T00:00:00,"Rice (mixed, low quality) - Wholesale",KG,cereals and tubers,1967,KHR,Cambodia,Battambang,792,Boeung Chhouk,3111,165,14,5,1,3111_165_14_5,""
1193,2020-03-15T00:00:00,"Rice (mixed, low quality) - Wholesale",KG,cereals and tubers,1808.25,KHR,Cambodia,Battambang,792,Boeung Chhouk,3111,165,14,5,1,3111_165_14_5,""
1194,2020-04-15T00:00:00,"Rice (mixed, low quality) - Wholesale",KG,cereals and tubers,1783.5,KHR,Cambodia,Battambang,792,Boeung Chhouk,3111,165,14,5,1,3111_165_14_5,""
1195,2020-05-15T00:00:00,"Rice (mixed, low quality) - Wholesale",KG,cereals and tubers,1850,KHR,Cambodia,Battambang,792,Boeung Chhouk,3111,165,14,5,1,3111_165_14_5,""
1196,2020-06-15T00:00:00,"Rice (mixed, low quality) - Wholesale",KG,cereals and tubers,1827.6667,KHR,Cambodia,Battambang,792,Boeung Chhouk,3111,165,14,5,1,3111_165_14_5,""
1197,2020-07-15T00:00:00,"Rice (mixed, low quality) - Wholesale",KG,cereals and tubers,1800,KHR,Cambodia,Battambang,792,Boeung Chhouk,3111,165,14,5,1,3111_165_14_5,""
1198,2019-08-15T00:00:00,"Rice (mixed, low quality) - Retail",KG,cereals and tubers,2000,KHR,Cambodia,Battambang,792,Boeung Chhouk,3111,165,15,5,1,3111_165_15_5,""
1199,2019-09-15T00:00:00,"Rice (mixed, low quality) - Retail",KG,cereals and tubers,2000,KHR,Cambodia,Battambang,792,Boeung Chhouk,3111,165,15,5,1,3111_165_15_5,""
1200,2019-11-15T00:00:00,"Rice (mixed, low quality) - Retail",KG,cereals and tubers,2233,KHR,Cambodia,Battambang,792,Boeung Chhouk,3111,165,15,5,1,3111_165_15_5,""
1201,2019-12-15T00:00:00,"Rice (mixed, low quality) - Retail",KG,cereals and tubers,1950,KHR,Cambodia,Battambang,792,Boeung Chhouk,3111,165,15,5,1,3111_165_15_5,""
1202,2020-01-15T00:00:00,"Rice (mixed, low quality) - Retail",KG,cereals and tubers,2033,KHR,Cambodia,Battambang,792,Boeung Chhouk,3111,165,15,5,1,3111_165_15_5,""
1203,2020-03-15T00:00:00,"Rice (mixed, low quality) - Retail",KG,cereals and tubers,1966.5,KHR,Cambodia,Battambang,792,Boeung Chhouk,3111,165,15,5,1,3111_165_15_5,""
1204,2020-04-15T00:00:00,"Rice (mixed, low quality) - Retail",KG,cereals and tubers,1983.5,KHR,Cambodia,Battambang,792,Boeung Chhouk,3111,165,15,5,1,3111_165_15_5,""
1205,2020-05-15T00:00:00,"Rice (mixed, low quality) - Retail",KG,cereals and tubers,2000,KHR,Cambodia,Battambang,792,Boeung Chhouk,3111,165,15,5,1,3111_165_15_5,""
1206,2020-06-15T00:00:00,"Rice (mixed, low quality) - Retail",KG,cereals and tubers,2000,KHR,Cambodia,Battambang,792,Boeung Chhouk,3111,165,15,5,1,3111_165_15_5,""
1207,2020-07-15T00:00:00,"Rice (mixed, low quality) - Retail",KG,cereals and tubers,2000,KHR,Cambodia,Battambang,792,Boeung Chhouk,3111,165,15,5,1,3111_165_15_5,""
1208,2019-08-15T00:00:00,Fish (snake head) - Wholesale,KG,"meat, fish and eggs",10333,KHR,Cambodia,Battambang,792,Boeung Chhouk,3111,309,14,5,2,3111_309_14_5,""
1209,2019-09-15T00:00:00,Fish (snake head) - Wholesale,KG,"meat, fish and eggs",10250,KHR,Cambodia,Battambang,792,Boeung Chhouk,3111,309,14,5,2,3111_309_14_5,""
1210,2019-11-15T00:00:00,Fish (snake head) - Wholesale,KG,"meat, fish and eggs",9000,KHR,Cambodia,Battambang,792,Boeung Chhouk,3111,309,14,5,2,3111_309_14_5,""
1211,2019-12-15T00:00:00,Fish (snake head) - Wholesale,KG,"meat, fish and eggs",8500,KHR,Cambodia,Battambang,792,Boeung Chhouk,3111,309,14,5,2,3111_309_14_5,""
1212,2020-03-15T00:00:00,Fish (snake head) - Wholesale,KG,"meat, fish and eggs",7500,KHR,Cambodia,Battambang,792,Boeung Chhouk,3111,309,14,5,2,3111_309_14_5,""
1213,2020-04-15T00:00:00,Fish (snake head) - Wholesale,KG,"meat, fish and eggs",8375,KHR,Cambodia,Battambang,792,Boeung Chhouk,3111,309,14,5,2,3111_309_14_5,""
1214,2020-06-15T00:00:00,Fish (snake head) - Wholesale,KG,"meat, fish and eggs",8000,KHR,Cambodia,Battambang,792,Boeung Chhouk,3111,309,14,5,2,3111_309_14_5,""
1215,2020-07-15T00:00:00,Fish (snake head) - Wholesale,KG,"meat, fish and eggs",8400,KHR,Cambodia,Battambang,792,Boeung Chhouk,3111,309,14,5,2,3111_309_14_5,""
1216,2019-08-15T00:00:00,Fish (snake head) - Retail,KG,"meat, fish and eggs",11000,KHR,Cambodia,Battambang,792,Boeung Chhouk,3111,309,15,5,2,3111_309_15_5,""
1217,2019-09-15T00:00:00,Fish (snake head) - Retail,KG,"meat, fish and eggs",10750,KHR,Cambodia,Battambang,792,Boeung Chhouk,3111,309,15,5,2,3111_309_15_5,""
1218,2019-11-15T00:00:00,Fish (snake head) - Retail,KG,"meat, fish and eggs",9750,KHR,Cambodia,Battambang,792,Boeung Chhouk,3111,309,15,5,2,3111_309_15_5,""
1219,2019-12-15T00:00:00,Fish (snake head) - Retail,KG,"meat, fish and eggs",9000,KHR,Cambodia,Battambang,792,Boeung Chhouk,3111,309,15,5,2,3111_309_15_5,""
1220,2020-03-15T00:00:00,Fish (snake head) - Retail,KG,"meat, fish and eggs",8500,KHR,Cambodia,Battambang,792,Boeung Chhouk,3111,309,15,5,2,3111_309_15_5,""
1221,2020-04-15T00:00:00,Fish (snake head) - Retail,KG,"meat, fish and eggs",8625,KHR,Cambodia,Battambang,792,Boeung Chhouk,3111,309,15,5,2,3111_309_15_5,""
1222,2020-06-15T00:00:00,Fish (snake head) - Retail,KG,"meat, fish and eggs",8000,KHR,Cambodia,Battambang,792,Boeung Chhouk,3111,309,15,5,2,3111_309_15_5,""
1223,2020-07-15T00:00:00,Fish (snake head) - Retail,KG,"meat, fish and eggs",8750,KHR,Cambodia,Battambang,792,Boeung Chhouk,3111,309,15,5,2,3111_309_15_5,""
1224,2019-08-15T00:00:00,Fish (catfish) - Wholesale,KG,"meat, fish and eggs",7433,KHR,Cambodia,Battambang,792,Boeung Chhouk,3111,310,14,5,2,3111_310_14_5,""
1225,2019-09-15T00:00:00,Fish (catfish) - Wholesale,KG,"meat, fish and eggs",7000,KHR,Cambodia,Battambang,792,Boeung Chhouk,3111,310,14,5,2,3111_310_14_5,""
1226,2019-11-15T00:00:00,Fish (catfish) - Wholesale,KG,"meat, fish and eggs",7000,KHR,Cambodia,Battambang,792,Boeung Chhouk,3111,310,14,5,2,3111_310_14_5,""
1227,2020-03-15T00:00:00,Fish (catfish) - Wholesale,KG,"meat, fish and eggs",6500,KHR,Cambodia,Battambang,792,Boeung Chhouk,3111,310,14,5,2,3111_310_14_5,""
1228,2020-04-15T00:00:00,Fish (catfish) - Wholesale,KG,"meat, fish and eggs",6300,KHR,Cambodia,Battambang,792,Boeung Chhouk,3111,310,14,5,2,3111_310_14_5,""
1229,2020-06-15T00:00:00,Fish (catfish) - Wholesale,KG,"meat, fish and eggs",9000,KHR,Cambodia,Battambang,792,Boeung Chhouk,3111,310,14,5,2,3111_310_14_5,""
1230,2020-07-15T00:00:00,Fish (catfish) - Wholesale,KG,"meat, fish and eggs",7000,KHR,Cambodia,Battambang,792,Boeung Chhouk,3111,310,14,5,2,3111_310_14_5,""
1231,2019-08-15T00:00:00,Fish (catfish) - Retail,KG,"meat, fish and eggs",7833,KHR,Cambodia,Battambang,792,Boeung Chhouk,3111,310,15,5,2,3111_310_15_5,""
